Workbook

Sheet Get Data
A1: Input Start Date (first day of a month) and End Date. Input the Ticker of the fund you want test.
B2: Start Date | C2: 2000-01-01 | E2: Ticker | F2: FVDFX
B3: End Date | C3: 2015-12-31 | D3: as limited by 12/31/2015
A4: Note: To get more acurate result, please choose funds that have at least 5 years data.
A7: Date | B7: Open | C7: High | D7: Low | E7: Close | F7: Volume | G7: Adj Close
A8: 2002-12-11 | B8: 9.98 | C8: 9.98 | D8: 9.98 | E8: 9.98 | F8: 0 | G8: 7.132877
A9: 2002-12-12 | B9: 10.03 | C9: 10.03 | D9: 10.03 | E9: 10.03 | F9: 0 | G9: 7.168613
A10: 2002-12-13 | B10: 9.93 | C10: 9.93 | D10: 9.93 | E10: 9.93 | F10: 0 | G10: 7.097142
A11: 2002-12-16 | B11: 10.15 | C11: 10.15 | D11: 10.15 | E11: 10.15 | F11: 0 | G11: 7.254379
A12: 2002-12-17 | B12: 10.08 | C12: 10.08 | D12: 10.08 | E12: 10.08 | F12: 0 | G12: 7.204349
A13: 2002-12-18 | B13: 9.94 | C13: 9.94 | D13: 9.94 | E13: 9.94 | F13: 0 | G13: 7.104288
A14: 2002-12-19 | B14: 9.9 | C14: 9.9 | D14: 9.9 | E14: 9.9 | F14: 0 | G14: 7.0757
A15: 2002-12-20 | B15: 10.04 | C15: 10.04 | D15: 10.04 | E15: 10.04 | F15: 0 | G15: 7.17576
A16: 2002-12-23 | B16: 10.04 | C16: 10.04 | D16: 10.04 | E16: 10.04 | F16: 0 | G16: 7.17576
A17: 2002-12-24 | B17: 9.98 | C17: 9.98 | D17: 9.98 | E17: 9.98 | F17: 0 | G17: 7.132877
A18: 2002-12-26 | B18: 9.98 | C18: 9.98 | D18: 9.98 | E18: 9.98 | F18: 0 | G18: 7.132877
A19: 2002-12-27 | B19: 9.84 | C19: 9.84 | D19: 9.84 | E19: 9.84 | F19: 0 | G19: 7.032817
A20: 2002-12-30 | B20: 9.84 | C20: 9.84 | D20: 9.84 | E20: 9.84 | F20: 0 | G20: 7.032817
A21: 2002-12-31 | B21: 9.88 | C21: 9.88 | D21: 9.88 | E21: 9.88 | F21: 0 | G21: 7.061406
A22: 2003-01-02 | B22: 10.16 | C22: 10.16 | D22: 10.16 | E22: 10.16 | F22: 0 | G22: 7.261526
A23: 2003-01-03 | B23: 10.15 | C23: 10.15 | D23: 10.15 | E23: 10.15 | F23: 0 | G23: 7.254379
A24: 2003-01-06 | B24: 10.33 | C24: 10.33 | D24: 10.33 | E24: 10.33 | F24: 0 | G24: 7.383028
A25: 2003-01-07 | B25: 10.22 | C25: 10.22 | D25: 10.22 | E25: 10.22 | F25: 0 | G25: 7.304409
A26: 2003-01-08 | B26: 10.11 | C26: 10.11 | D26: 10.11 | E26: 10.11 | F26: 0 | G26: 7.22579
A27: 2003-01-09 | B27: 10.26 | C27: 10.26 | D27: 10.26 | E27: 10.26 | F27: 0 | G27: 7.332998
A28: 2003-01-10 | B28: 10.26 | C28: 10.26 | D28: 10.26 | E28: 10.26 | F28: 0 | G28: 7.332998
A29: 2003-01-13 | B29: 10.23 | C29: 10.23 | D29: 10.23 | E29: 10.23 | F29: 0 | G29: 7.311556
A30: 2003-01-14 | B30: 10.27 | C30: 10.27 | D30: 10.27 | E30: 10.27 | F30: 0 | G30: 7.340145
A31: 2003-01-15 | B31: 10.19 | C31: 10.19 | D31: 10.19 | E31: 10.19 | F31: 0 | G31: 7.282967
A32: 2003-01-16 | B32: 10.19 | C32: 10.19 | D32: 10.19 | E32: 10.19 | F32: 0 | G32: 7.282967
A33: 2003-01-17 | B33: 10.06 | C33: 10.06 | D33: 10.06 | E33: 10.06 | F33: 0 | G33: 7.190055
A34: 2003-01-21 | B34: 9.87 | C34: 9.87 | D34: 9.87 | E34: 9.87 | F34: 0 | G34: 7.054258
A35: 2003-01-22 | B35: 9.78 | C35: 9.78 | D35: 9.78 | E35: 9.78 | F35: 0 | G35: 6.989934
A36: 2003-01-23 | B36: 9.88 | C36: 9.88 | D36: 9.88 | E36: 9.88 | F36: 0 | G36: 7.061406
A37: 2003-01-24 | B37: 9.63 | C37: 9.63 | D37: 9.63 | E37: 9.63 | F37: 0 | G37: 6.882726
A38: 2003-01-27 | B38: 9.43 | C38: 9.43 | D38: 9.43 | E38: 9.43 | F38: 0 | G38: 6.739783
A39: 2003-01-28 | B39: 9.54 | C39: 9.54 | D39: 9.54 | E39: 9.54 | F39: 0 | G39: 6.818402
A40: 2003-01-29 | B40: 9.57 | C40: 9.57 | D40: 9.57 | E40: 9.57 | F40: 0 | G40: 6.839843
A41: 2003-01-30 | B41: 9.42 | C41: 9.42 | D41: 9.42 | E41: 9.42 | F41: 0 | G41: 6.732636
A42: 2003-01-31 | B42: 9.54 | C42: 9.54 | D42: 9.54 | E42: 9.54 | F42: 0 | G42: 6.818402
A43: 2003-02-03 | B43: 9.58 | C43: 9.58 | D43: 9.58 | E43: 9.58 | F43: 0 | G43: 6.84699
A44: 2003-02-04 | B44: 9.49 | C44: 9.49 | D44: 9.49 | E44: 9.49 | F44: 0 | G44: 6.782666
A45: 2003-02-05 | B45: 9.49 | C45: 9.49 | D45: 9.49 | E45: 9.49 | F45: 0 | G45: 6.782666
A46: 2003-02-06 | B46: 9.41 | C46: 9.41 | D46: 9.41 | E46: 9.41 | F46: 0 | G46: 6.725488
A47: 2003-02-07 | B47: 9.29 | C47: 9.29 | D47: 9.29 | E47: 9.29 | F47: 0 | G47: 6.639722
A48: 2003-02-10 | B48: 9.36 | C48: 9.36 | D48: 9.36 | E48: 9.36 | F48: 0 | G48: 6.689752
A49: 2003-02-11 | B49: 9.3 | C49: 9.3 | D49: 9.3 | E49: 9.3 | F49: 0 | G49: 6.64687
A50: 2003-02-12 | B50: 9.15 | C50: 9.15 | D50: 9.15 | E50: 9.15 | F50: 0 | G50: 6.539662
A51: 2003-02-13 | B51: 9.11 | C51: 9.11 | D51: 9.11 | E51: 9.11 | F51: 0 | G51: 6.511073
A52: 2003-02-14 | B52: 9.27 | C52: 9.27 | D52: 9.27 | E52: 9.27 | F52: 0 | G52: 6.625428
A53: 2003-02-18 | B53: 9.5 | C53: 9.5 | D53: 9.5 | E53: 9.5 | F53: 0 | G53: 6.789813
A54: 2003-02-19 | B54: 9.39 | C54: 9.39 | D54: 9.39 | E54: 9.39 | F54: 0 | G54: 6.711194
A55: 2003-02-20 | B55: 9.34 | C55: 9.34 | D55: 9.34 | E55: 9.34 | F55: 0 | G55: 6.675458
A56: 2003-02-21 | B56: 9.5 | C56: 9.5 | D56: 9.5 | E56: 9.5 | F56: 0 | G56: 6.789813
A57: 2003-02-24 | B57: 9.38 | C57: 9.38 | D57: 9.38 | E57: 9.38 | F57: 0 | G57: 6.704047
A58: 2003-02-25 | B58: 9.4 | C58: 9.4 | D58: 9.4 | E58: 9.4 | F58: 0 | G58: 6.718341
A59: 2003-02-26 | B59: 9.35 | C59: 9.35 | D59: 9.35 | E59: 9.35 | F59: 0 | G59: 6.682606
A60: 2003-02-27 | B60: 9.41 | C60: 9.41 | D60: 9.41 | E60: 9.41 | F60: 0 | G60: 6.725488
A61: 2003-02-28 | B61: 9.44 | C61: 9.44 | D61: 9.44 | E61: 9.44 | F61: 0 | G61: 6.74693
A62: 2003-03-03 | B62: 9.38 | C62: 9.38 | D62: 9.38 | E62: 9.38 | F62: 0 | G62: 6.704047
A63: 2003-03-04 | B63: 9.24 | C63: 9.24 | D63: 9.24 | E63: 9.24 | F63: 0 | G63: 6.603986
A64: 2003-03-05 | B64: 9.28 | C64: 9.28 | D64: 9.28 | E64: 9.28 | F64: 0 | G64: 6.632575
A65: 2003-03-06 | B65: 9.21 | C65: 9.21 | D65: 9.21 | E65: 9.21 | F65: 0 | G65: 6.582545
A66: 2003-03-07 | B66: 9.26 | C66: 9.26 | D66: 9.26 | E66: 9.26 | F66: 0 | G66: 6.618281
A67: 2003-03-10 | B67: 9.05 | C67: 9.05 | D67: 9.05 | E67: 9.05 | F67: 0 | G67: 6.46819
A68: 2003-03-11 | B68: 8.89 | C68: 8.89 | D68: 8.89 | E68: 8.89 | F68: 0 | G68: 6.353836
A69: 2003-03-12 | B69: 8.87 | C69: 8.87 | D69: 8.87 | E69: 8.87 | F69: 0 | G69: 6.339541
A70: 2003-03-13 | B70: 9.18 | C70: 9.18 | D70: 9.18 | E70: 9.18 | F70: 0 | G70: 6.561104
A71: 2003-03-14 | B71: 9.2 | C71: 9.2 | D71: 9.2 | E71: 9.2 | F71: 0 | G71: 6.575398
A72: 2003-03-17 | B72: 9.47 | C72: 9.47 | D72: 9.47 | E72: 9.47 | F72: 0 | G72: 6.768372
A73: 2003-03-18 | B73: 9.56 | C73: 9.56 | D73: 9.56 | E73: 9.56 | F73: 0 | G73: 6.832696
A74: 2003-03-19 | B74: 9.58 | C74: 9.58 | D74: 9.58 | E74: 9.58 | F74: 0 | G74: 6.84699
A75: 2003-03-20 | B75: 9.66 | C75: 9.66 | D75: 9.66 | E75: 9.66 | F75: 0 | G75: 6.904168
A76: 2003-03-21 | B76: 9.84 | C76: 9.84 | D76: 9.84 | E76: 9.84 | F76: 0 | G76: 7.032817
A77: 2003-03-24 | B77: 9.52 | C77: 9.52 | D77: 9.52 | E77: 9.52 | F77: 0 | G77: 6.804108
A78: 2003-03-25 | B78: 9.59 | C78: 9.59 | D78: 9.59 | E78: 9.59 | F78: 0 | G78: 6.854138
A79: 2003-03-26 | B79: 9.54 | C79: 9.54 | D79: 9.54 | E79: 9.54 | F79: 0 | G79: 6.818402
A80: 2003-03-27 | B80: 9.57 | C80: 9.57 | D80: 9.57 | E80: 9.57 | F80: 0 | G80: 6.839843
A81: 2003-03-28 | B81: 9.56 | C81: 9.56 | D81: 9.56 | E81: 9.56 | F81: 0 | G81: 6.832696
A82: 2003-03-31 | B82: 9.39 | C82: 9.39 | D82: 9.39 | E82: 9.39 | F82: 0 | G82: 6.711194
A83: 2003-04-01 | B83: 9.52 | C83: 9.52 | D83: 9.52 | E83: 9.52 | F83: 0 | G83: 6.804108
A84: 2003-04-02 | B84: 9.76 | C84: 9.76 | D84: 9.76 | E84: 9.76 | F84: 0 | G84: 6.97564
A85: 2003-04-03 | B85: 9.68 | C85: 9.68 | D85: 9.68 | E85: 9.68 | F85: 0 | G85: 6.918462
A86: 2003-04-04 | B86: 9.69 | C86: 9.69 | D86: 9.69 | E86: 9.69 | F86: 0 | G86: 6.925609
A87: 2003-04-07 | B87: 9.76 | C87: 9.76 | D87: 9.76 | E87: 9.76 | F87: 0 | G87: 6.97564
A88: 2003-04-08 | B88: 9.7 | C88: 9.7 | D88: 9.7 | E88: 9.7 | F88: 0 | G88: 6.932756
A89: 2003-04-09 | B89: 9.62 | C89: 9.62 | D89: 9.62 | E89: 9.62 | F89: 0 | G89: 6.875579
A90: 2003-04-10 | B90: 9.7 | C90: 9.7 | D90: 9.7 | E90: 9.7 | F90: 0 | G90: 6.932756
A91: 2003-04-11 | B91: 9.68 | C91: 9.68 | D91: 9.68 | E91: 9.68 | F91: 0 | G91: 6.918462
A92: 2003-04-14 | B92: 9.84 | C92: 9.84 | D92: 9.84 | E92: 9.84 | F92: 0 | G92: 7.032817
A93: 2003-04-15 | B93: 9.86 | C93: 9.86 | D93: 9.86 | E93: 9.86 | F93: 0 | G93: 7.047111
A94: 2003-04-16 | B94: 9.8 | C94: 9.8 | D94: 9.8 | E94: 9.8 | F94: 0 | G94: 7.004228
A95: 2003-04-17 | B95: 9.96 | C95: 9.96 | D95: 9.96 | E95: 9.96 | F95: 0 | G95: 7.118583
A96: 2003-04-21 | B96: 9.97 | C96: 9.97 | D96: 9.97 | E96: 9.97 | F96: 0 | G96: 7.12573
A97: 2003-04-22 | B97: 10.19 | C97: 10.19 | D97: 10.19 | E97: 10.19 | F97: 0 | G97: 7.282967
A98: 2003-04-23 | B98: 10.27 | C98: 10.27 | D98: 10.27 | E98: 10.27 | F98: 0 | G98: 7.340145
A99: 2003-04-24 | B99: 10.12 | C99: 10.12 | D99: 10.12 | E99: 10.12 | F99: 0 | G99: 7.232937
A100: 2003-04-25 | B100: 9.97 | C100: 9.97 | D100: 9.97 | E100: 9.97 | F100: 0 | G100: 7.12573
A101: 2003-04-28 | B101: 10.1 | C101: 10.1 | D101: 10.1 | E101: 10.1 | F101: 0 | G101: 7.218643
A102: 2003-04-29 | B102: 10.1 | C102: 10.1 | D102: 10.1 | E102: 10.1 | F102: 0 | G102: 7.218643
A103: 2003-04-30 | B103: 10.16 | C103: 10.16 | D103: 10.16 | E103: 10.16 | F103: 0 | G103: 7.261526
A104: 2003-05-01 | B104: 10.14 | C104: 10.14 | D104: 10.14 | E104: 10.14 | F104: 0 | G104: 7.247232
A105: 2003-05-02 | B105: 10.31 | C105: 10.31 | D105: 10.31 | E105: 10.31 | F105: 0 | G105: 7.368734
A106: 2003-05-05 | B106: 10.31 | C106: 10.31 | D106: 10.31 | E106: 10.31 | F106: 0 | G106: 7.368734
A107: 2003-05-06 | B107: 10.39 | C107: 10.39 | D107: 10.39 | E107: 10.39 | F107: 0 | G107: 7.425911
A108: 2003-05-07 | B108: 10.39 | C108: 10.39 | D108: 10.39 | E108: 10.39 | F108: 0 | G108: 7.425911
A109: 2003-05-08 | B109: 10.29 | C109: 10.29 | D109: 10.29 | E109: 10.29 | F109: 0 | G109: 7.354439
A110: 2003-05-09 | B110: 10.44 | C110: 10.44 | D110: 10.44 | E110: 10.44 | F110: 0 | G110: 7.461647
A111: 2003-05-12 | B111: 10.57 | C111: 10.57 | D111: 10.57 | E111: 10.57 | F111: 0 | G111: 7.55456
A112: 2003-05-13 | B112: 10.59 | C112: 10.59 | D112: 10.59 | E112: 10.59 | F112: 0 | G112: 7.568855
A113: 2003-05-14 | B113: 10.6 | C113: 10.6 | D113: 10.6 | E113: 10.6 | F113: 0 | G113: 7.576002
A114: 2003-05-15 | B114: 10.68 | C114: 10.68 | D114: 10.68 | E114: 10.68 | F114: 0 | G114: 7.633179
A115: 2003-05-16 | B115: 10.67 | C115: 10.67 | D115: 10.67 | E115: 10.67 | F115: 0 | G115: 7.626032
A116: 2003-05-19 | B116: 10.41 | C116: 10.41 | D116: 10.41 | E116: 10.41 | F116: 0 | G116: 7.440205
A117: 2003-05-20 | B117: 10.37 | C117: 10.37 | D117: 10.37 | E117: 10.37 | F117: 0 | G117: 7.411617
A118: 2003-05-21 | B118: 10.46 | C118: 10.46 | D118: 10.46 | E118: 10.46 | F118: 0 | G118: 7.475941
A119: 2003-05-22 | B119: 10.51 | C119: 10.51 | D119: 10.51 | E119: 10.51 | F119: 0 | G119: 7.511677
A120: 2003-05-23 | B120: 10.56 | C120: 10.56 | D120: 10.56 | E120: 10.56 | F120: 0 | G120: 7.547413
A121: 2003-05-27 | B121: 10.76 | C121: 10.76 | D121: 10.76 | E121: 10.76 | F121: 0 | G121: 7.690357
A122: 2003-05-28 | B122: 10.77 | C122: 10.77 | D122: 10.77 | E122: 10.77 | F122: 0 | G122: 7.697504
A123: 2003-05-29 | B123: 10.72 | C123: 10.72 | D123: 10.72 | E123: 10.72 | F123: 0 | G123: 7.661768
A124: 2003-05-30 | B124: 10.9 | C124: 10.9 | D124: 10.9 | E124: 10.9 | F124: 0 | G124: 7.790417
A125: 2003-06-02 | B125: 10.97 | C125: 10.97 | D125: 10.97 | E125: 10.97 | F125: 0 | G125: 7.840447
A126: 2003-06-03 | B126: 10.94 | C126: 10.94 | D126: 10.94 | E126: 10.94 | F126: 0 | G126: 7.819005
A127: 2003-06-04 | B127: 11.14 | C127: 11.14 | D127: 11.14 | E127: 11.14 | F127: 0 | G127: 7.961949
A128: 2003-06-05 | B128: 11.21 | C128: 11.21 | D128: 11.21 | E128: 11.21 | F128: 0 | G128: 8.011979
A129: 2003-06-06 | B129: 11.16 | C129: 11.16 | D129: 11.16 | E129: 11.16 | F129: 0 | G129: 7.976243
A130: 2003-06-09 | B130: 10.99 | C130: 10.99 | D130: 10.99 | E130: 10.99 | F130: 0 | G130: 7.854741
A131: 2003-06-10 | B131: 11.09 | C131: 11.09 | D131: 11.09 | E131: 11.09 | F131: 0 | G131: 7.926213
A132: 2003-06-11 | B132: 11.32 | C132: 11.32 | D132: 11.32 | E132: 11.32 | F132: 0 | G132: 8.090598
A133: 2003-06-12 | B133: 11.33 | C133: 11.33 | D133: 11.33 | E133: 11.33 | F133: 0 | G133: 8.097745
A134: 2003-06-13 | B134: 11.16 | C134: 11.16 | D134: 11.16 | E134: 11.16 | F134: 0 | G134: 7.976243
A135: 2003-06-16 | B135: 11.31 | C135: 11.31 | D135: 11.31 | E135: 11.31 | F135: 0 | G135: 8.083451
A136: 2003-06-17 | B136: 11.31 | C136: 11.31 | D136: 11.31 | E136: 11.31 | F136: 0 | G136: 8.083451
A137: 2003-06-18 | B137: 11.28 | C137: 11.28 | D137: 11.28 | E137: 11.28 | F137: 0 | G137: 8.062009
A138: 2003-06-19 | B138: 11.15 | C138: 11.15 | D138: 11.15 | E138: 11.15 | F138: 0 | G138: 7.969096
A139: 2003-06-20 | B139: 11.15 | C139: 11.15 | D139: 11.15 | E139: 11.15 | F139: 0 | G139: 7.969096
A140: 2003-06-23 | B140: 10.96 | C140: 10.96 | D140: 10.96 | E140: 10.96 | F140: 0 | G140: 7.8333
A141: 2003-06-24 | B141: 10.99 | C141: 10.99 | D141: 10.99 | E141: 10.99 | F141: 0 | G141: 7.854741
A142: 2003-06-25 | B142: 10.98 | C142: 10.98 | D142: 10.98 | E142: 10.98 | F142: 0 | G142: 7.847594
A143: 2003-06-26 | B143: 11.06 | C143: 11.06 | D143: 11.06 | E143: 11.06 | F143: 0 | G143: 7.904772
A144: 2003-06-27 | B144: 10.98 | C144: 10.98 | D144: 10.98 | E144: 10.98 | F144: 0 | G144: 7.847594
A145: 2003-06-30 | B145: 10.92 | C145: 10.92 | D145: 10.92 | E145: 10.92 | F145: 0 | G145: 7.804711
A146: 2003-07-01 | B146: 10.95 | C146: 10.95 | D146: 10.95 | E146: 10.95 | F146: 0 | G146: 7.826153
A147: 2003-07-02 | B147: 11.1 | C147: 11.1 | D147: 11.1 | E147: 11.1 | F147: 0 | G147: 7.933361
A148: 2003-07-03 | B148: 11.08 | C148: 11.08 | D148: 11.08 | E148: 11.08 | F148: 0 | G148: 7.919066
A149: 2003-07-07 | B149: 11.2 | C149: 11.2 | D149: 11.2 | E149: 11.2 | F149: 0 | G149: 8.004832
A150: 2003-07-08 | B150: 11.31 | C150: 11.31 | D150: 11.31 | E150: 11.31 | F150: 0 | G150: 8.083451
A151: 2003-07-09 | B151: 11.35 | C151: 11.35 | D151: 11.35 | E151: 11.35 | F151: 0 | G151: 8.11204
A152: 2003-07-10 | B152: 11.1 | C152: 11.1 | D152: 11.1 | E152: 11.1 | F152: 0 | G152: 7.933361
A153: 2003-07-11 | B153: 11.19 | C153: 11.19 | D153: 11.19 | E153: 11.19 | F153: 0 | G153: 7.997685
A154: 2003-07-14 | B154: 11.26 | C154: 11.26 | D154: 11.26 | E154: 11.26 | F154: 0 | G154: 8.047715
A155: 2003-07-15 | B155: 11.22 | C155: 11.22 | D155: 11.22 | E155: 11.22 | F155: 0 | G155: 8.019127
A156: 2003-07-16 | B156: 11.14 | C156: 11.14 | D156: 11.14 | E156: 11.14 | F156: 0 | G156: 7.961949
A157: 2003-07-17 | B157: 10.99 | C157: 10.99 | D157: 10.99 | E157: 10.99 | F157: 0 | G157: 7.854741
A158: 2003-07-18 | B158: 11.2 | C158: 11.2 | D158: 11.2 | E158: 11.2 | F158: 0 | G158: 8.004832
A159: 2003-07-21 | B159: 11.04 | C159: 11.04 | D159: 11.04 | E159: 11.04 | F159: 0 | G159: 7.890477
A160: 2003-07-22 | B160: 11.08 | C160: 11.08 | D160: 11.08 | E160: 11.08 | F160: 0 | G160: 7.919066
A161: 2003-07-23 | B161: 11 | C161: 11 | D161: 11 | E161: 11 | F161: 0 | G161: 7.861889
A162: 2003-07-24 | B162: 10.94 | C162: 10.94 | D162: 10.94 | E162: 10.94 | F162: 0 | G162: 7.819005
A163: 2003-07-25 | B163: 11.06 | C163: 11.06 | D163: 11.06 | E163: 11.06 | F163: 0 | G163: 7.904772
A164: 2003-07-28 | B164: 11.07 | C164: 11.07 | D164: 11.07 | E164: 11.07 | F164: 0 | G164: 7.911919
A165: 2003-07-29 | B165: 10.97 | C165: 10.97 | D165: 10.97 | E165: 10.97 | F165: 0 | G165: 7.840447
A166: 2003-07-30 | B166: 11 | C166: 11 | D166: 11 | E166: 11 | F166: 0 | G166: 7.861889
A167: 2003-07-31 | B167: 11.09 | C167: 11.09 | D167: 11.09 | E167: 11.09 | F167: 0 | G167: 7.926213
A168: 2003-08-01 | B168: 10.98 | C168: 10.98 | D168: 10.98 | E168: 10.98 | F168: 0 | G168: 7.847594
A169: 2003-08-04 | B169: 10.93 | C169: 10.93 | D169: 10.93 | E169: 10.93 | F169: 0 | G169: 7.811859
A170: 2003-08-05 | B170: 10.73 | C170: 10.73 | D170: 10.73 | E170: 10.73 | F170: 0 | G170: 7.668915
A171: 2003-08-06 | B171: 10.78 | C171: 10.78 | D171: 10.78 | E171: 10.78 | F171: 0 | G171: 7.704651
A172: 2003-08-07 | B172: 10.84 | C172: 10.84 | D172: 10.84 | E172: 10.84 | F172: 0 | G172: 7.747534
A173: 2003-08-08 | B173: 10.86 | C173: 10.86 | D173: 10.86 | E173: 10.86 | F173: 0 | G173: 7.761828
A174: 2003-08-11 | B174: 10.91 | C174: 10.91 | D174: 10.91 | E174: 10.91 | F174: 0 | G174: 7.797564
A175: 2003-08-12 | B175: 11.05 | C175: 11.05 | D175: 11.05 | E175: 11.05 | F175: 0 | G175: 7.897625
A176: 2003-08-13 | B176: 11.03 | C176: 11.03 | D176: 11.03 | E176: 11.03 | F176: 0 | G176: 7.88333
A177: 2003-08-14 | B177: 11.07 | C177: 11.07 | D177: 11.07 | E177: 11.07 | F177: 0 | G177: 7.911919
A178: 2003-08-15 | B178: 11.09 | C178: 11.09 | D178: 11.09 | E178: 11.09 | F178: 0 | G178: 7.926213
A179: 2003-08-18 | B179: 11.19 | C179: 11.19 | D179: 11.19 | E179: 11.19 | F179: 0 | G179: 7.997685
A180: 2003-08-19 | B180: 11.3 | C180: 11.3 | D180: 11.3 | E180: 11.3 | F180: 0 | G180: 8.076304
A181: 2003-08-20 | B181: 11.33 | C181: 11.33 | D181: 11.33 | E181: 11.33 | F181: 0 | G181: 8.097745
A182: 2003-08-21 | B182: 11.43 | C182: 11.43 | D182: 11.43 | E182: 11.43 | F182: 0 | G182: 8.169217
A183: 2003-08-22 | B183: 11.26 | C183: 11.26 | D183: 11.26 | E183: 11.26 | F183: 0 | G183: 8.047715
A184: 2003-08-25 | B184: 11.19 | C184: 11.19 | D184: 11.19 | E184: 11.19 | F184: 0 | G184: 7.997685
A185: 2003-08-26 | B185: 11.2 | C185: 11.2 | D185: 11.2 | E185: 11.2 | F185: 0 | G185: 8.004832
A186: 2003-08-27 | B186: 11.23 | C186: 11.23 | D186: 11.23 | E186: 11.23 | F186: 0 | G186: 8.026273
A187: 2003-08-28 | B187: 11.38 | C187: 11.38 | D187: 11.38 | E187: 11.38 | F187: 0 | G187: 8.133481
A188: 2003-08-29 | B188: 11.44 | C188: 11.44 | D188: 11.44 | E188: 11.44 | F188: 0 | G188: 8.176364
A189: 2003-09-02 | B189: 11.52 | C189: 11.52 | D189: 11.52 | E189: 11.52 | F189: 0 | G189: 8.233542
A190: 2003-09-03 | B190: 11.57 | C190: 11.57 | D190: 11.57 | E190: 11.57 | F190: 0 | G190: 8.269277
A191: 2003-09-04 | B191: 11.6 | C191: 11.6 | D191: 11.6 | E191: 11.6 | F191: 0 | G191: 8.290719
A192: 2003-09-05 | B192: 11.42 | C192: 11.42 | D192: 11.42 | E192: 11.42 | F192: 0 | G192: 8.268997
A193: 2003-09-08 | B193: 11.55 | C193: 11.55 | D193: 11.55 | E193: 11.55 | F193: 0 | G193: 8.363127
A194: 2003-09-09 | B194: 11.44 | C194: 11.44 | D194: 11.44 | E194: 11.44 | F194: 0 | G194: 8.283478
A195: 2003-09-10 | B195: 11.21 | C195: 11.21 | D195: 11.21 | E195: 11.21 | F195: 0 | G195: 8.11694
A196: 2003-09-11 | B196: 11.25 | C196: 11.25 | D196: 11.25 | E196: 11.25 | F196: 0 | G196: 8.145903
A197: 2003-09-12 | B197: 11.28 | C197: 11.28 | D197: 11.28 | E197: 11.28 | F197: 0 | G197: 8.167625
A198: 2003-09-15 | B198: 11.23 | C198: 11.23 | D198: 11.23 | E198: 11.23 | F198: 0 | G198: 8.131421
A199: 2003-09-16 | B199: 11.43 | C199: 11.43 | D199: 11.43 | E199: 11.43 | F199: 0 | G199: 8.276238
A200: 2003-09-17 | B200: 11.39 | C200: 11.39 | D200: 11.39 | E200: 11.39 | F200: 0 | G200: 8.247274
A201: 2003-09-18 | B201: 11.55 | C201: 11.55 | D201: 11.55 | E201: 11.55 | F201: 0 | G201: 8.363127
A202: 2003-09-19 | B202: 11.54 | C202: 11.54 | D202: 11.54 | E202: 11.54 | F202: 0 | G202: 8.355886
... 3092 more rows

Sheet FF 3, 4 factor
B1: Mkt-RF | C1: SMB | D1: HML | E1: Mom | F1: RF | G1: =ticker -> FVDFX | H1: Return | I1: Excess Return
A2: 1927-01-31 | B2: -0.0016 | C2: -0.003 | D2: 0.0479 | E2: 0.0044 | F2: 0.0025 | G2: =IFERROR(INDEX('Get Data'!$A$8:$G$8616,MATCH(A2,'Get Data'!$A$8:$A$8616,1),7),"--") -> -- | H2: =IFERROR(G2/G1-1,"--") -> -- | I2: =IFERROR(H2-F2,"--") -> -- | K2: Asset Pricing Model | L2: Alpha (annual) | M2: Rm-rf | N2: SMB | O2: HML | P2: MOM
A3: 1927-02-28 | B3: 0.0422 | C3: -0.0024 | D3: 0.0335 | E3: -0.0201 | F3: 0.0026 | G3: =IFERROR(INDEX('Get Data'!$A$8:$G$8616,MATCH(A3,'Get Data'!$A$8:$A$8616,1),7),"--") -> -- | H3: =IFERROR(G3/G2-1,"--") -> -- | I3: -- | K3: 3 Factor (FF) | L3: =INDEX(LINEST(INDIRECT($I$1074),INDIRECT($C$1074),,1),1,4)*12 -> -0.002922673736 | M3: =INDEX(LINEST(INDIRECT($I$1074),INDIRECT($C$1074),,1),1,3) -> 1.052413926 | N3: =INDEX(LINEST(INDIRECT($I$1074),INDIRECT($C$1074),,1),1,2) -> 0.04103704409 | O3: =INDEX(LINEST(INDIRECT($I$1074),INDIRECT($C$1074),,1),1,1) -> 0.2213817427
A4: 1927-03-31 | B4: 0.0038 | C4: -0.0187 | D4: -0.0258 | E4: 0.0359 | F4: 0.003 | G4: =IFERROR(INDEX('Get Data'!$A$8:$G$8616,MATCH(A4,'Get Data'!$A$8:$A$8616,1),7),"--") -> -- | H4: -- | I4: -- | K4: p-value | L4: =TDIST(ABS(INDEX(LINEST(INDIRECT($I$1074),INDIRECT($C$1074),,1),1,4)/INDEX(LINEST(INDIRECT($I$1074),INDIRECT($C$1074),,1),2,4)),INDEX(LINEST(INDIRECT($I$1074),INDIRECT($C$1074),,1),4,2),2) -> 0.745789758 | M4: =TDIST(ABS(INDEX(LINEST(INDIRECT($I$1074),INDIRECT($C$1074),,1),1,3)/INDEX(LINEST(INDIRECT($I$1074),INDIRECT($C$1074),,1),2,3)),INDEX(LINEST(INDIRECT($I$1074),INDIRECT($C$1074),,1),4,2),2) -> 6.091910675e-99 | N4: =TDIST(ABS(INDEX(LINEST(INDIRECT($I$1074),INDIRECT($C$1074),,1),1,2)/INDEX(LINEST(INDIRECT($I$1074),INDIRECT($C$1074),,1),2,2)),INDEX(LINEST(INDIRECT($I$1074),INDIRECT($C$1074),,1),4,2),2) -> 0.2405130575 | O4: =TDIST(ABS(INDEX(LINEST(INDIRECT($I$1074),INDIRECT($C$1074),,1),1,1)/INDEX(LINEST(INDIRECT($I$1074),INDIRECT($C$1074),,1),2,1)),INDEX(LINEST(INDIRECT($I$1074),INDIRECT($C$1074),,1),4,2),2) -> 1.107576246e-09
A5: 1927-04-30 | B5: 0.0041 | C5: 0.0029 | D5: 0.0095 | E5: 0.0419 | F5: 0.0025 | G5: =IFERROR(INDEX('Get Data'!$A$8:$G$8616,MATCH(A5,'Get Data'!$A$8:$A$8616,1),7),"--") -> -- | H5: -- | I5: -- | K5: 4 Factor (FF) | L5: =INDEX(LINEST(INDIRECT($I$1074),INDIRECT($D$1074),,1),1,5)*12 -> -0.00357140405 | M5: =INDEX(LINEST(INDIRECT($I$1074),INDIRECT($D$1074),,1),1,4) -> 1.05881026 | N5: =INDEX(LINEST(INDIRECT($I$1074),INDIRECT($D$1074),,1),1,3) -> 0.0383550691 | O5: =INDEX(LINEST(INDIRECT($I$1074),INDIRECT($D$1074),,1),1,2) -> 0.2324285163 | P5: =INDEX(LINEST(INDIRECT($I$1074),INDIRECT($D$1074),,1),1,1) -> 0.01929464633
A6: 1927-05-31 | B6: 0.0536 | C6: 0.0153 | D6: 0.0507 | E6: 0.0301 | F6: 0.003 | G6: =IFERROR(INDEX('Get Data'!$A$8:$G$8616,MATCH(A6,'Get Data'!$A$8:$A$8616,1),7),"--") -> -- | H6: -- | I6: -- | K6: p-value | L6: =TDIST(ABS(INDEX(LINEST(INDIRECT($I$1074),INDIRECT($D$1074),,1),1,5)/INDEX(LINEST(INDIRECT($I$1074),INDIRECT($D$1074),,1),2,5)),INDEX(LINEST(INDIRECT($I$1074),INDIRECT($D$1074),,1),4,2),2) -> 0.6924707419 | M6: =TDIST(ABS(INDEX(LINEST(INDIRECT($I$1074),INDIRECT($D$1074),,1),1,4)/INDEX(LINEST(INDIRECT($I$1074),INDIRECT($D$1074),,1),2,4)),INDEX(LINEST(INDIRECT($I$1074),INDIRECT($D$1074),,1),4,2),2) -> 2.096561687e-96 | N6: =TDIST(ABS(INDEX(LINEST(INDIRECT($I$1074),INDIRECT($D$1074),,1),1,3)/INDEX(LINEST(INDIRECT($I$1074),INDIRECT($D$1074),,1),2,3)),INDEX(LINEST(INDIRECT($I$1074),INDIRECT($D$1074),,1),4,2),2) -> 0.2734027759 | O6: =TDIST(ABS(INDEX(LINEST(INDIRECT($I$1074),INDIRECT($D$1074),,1),1,2)/INDEX(LINEST(INDIRECT($I$1074),INDIRECT($D$1074),,1),2,2)),INDEX(LINEST(INDIRECT($I$1074),INDIRECT($D$1074),,1),4,2),2) -> 8.860183836e-10 | P6: =TDIST(ABS(INDEX(LINEST(INDIRECT($I$1074),INDIRECT($D$1074),,1),1,1)/INDEX(LINEST(INDIRECT($I$1074),INDIRECT($D$1074),,1),2,1)),INDEX(LINEST(INDIRECT($I$1074),INDIRECT($D$1074),,1),4,2),2) -> 0.2767450978
A7: 1927-06-30 | B7: -0.0227 | C7: 0.0065 | D7: -0.0204 | E7: 0.0051 | F7: 0.0026 | G7: =IFERROR(INDEX('Get Data'!$A$8:$G$8616,MATCH(A7,'Get Data'!$A$8:$A$8616,1),7),"--") -> -- | H7: -- | I7: --
A8: 1927-07-30 | B8: 0.073 | C8: -0.0354 | D8: -0.0086 | E8: 0.0432 | F8: 0.003 | G8: =IFERROR(INDEX('Get Data'!$A$8:$G$8616,MATCH(A8,'Get Data'!$A$8:$A$8616,1),7),"--") -> -- | H8: -- | I8: --
A9: 1927-08-31 | B9: 0.0243 | C9: -0.0075 | D9: -0.0414 | E9: 0.0112 | F9: 0.0028 | G9: =IFERROR(INDEX('Get Data'!$A$8:$G$8616,MATCH(A9,'Get Data'!$A$8:$A$8616,1),7),"--") -> -- | H9: -- | I9: --
A10: 1927-09-30 | B10: 0.0468 | C10: -0.0344 | D10: -0.0108 | E10: 0.0193 | F10: 0.0021 | G10: =IFERROR(INDEX('Get Data'!$A$8:$G$8616,MATCH(A10,'Get Data'!$A$8:$A$8616,1),7),"--") -> -- | H10: -- | I10: --
A11: 1927-10-31 | B11: -0.0441 | C11: 0.0204 | D11: -0.0445 | E11: -0.0111 | F11: 0.0025 | G11: =IFERROR(INDEX('Get Data'!$A$8:$G$8616,MATCH(A11,'Get Data'!$A$8:$A$8616,1),7),"--") -> -- | H11: -- | I11: --
A12: 1927-11-30 | B12: 0.066 | C12: 0.0256 | D12: -0.0002 | E12: -0.0068 | F12: 0.0021 | G12: =IFERROR(INDEX('Get Data'!$A$8:$G$8616,MATCH(A12,'Get Data'!$A$8:$A$8616,1),7),"--") -> -- | H12: -- | I12: --
A13: 1927-12-31 | B13: 0.0208 | C13: 0.0106 | D13: -0.0073 | E13: 0.0319 | F13: 0.0022 | G13: =IFERROR(INDEX('Get Data'!$A$8:$G$8616,MATCH(A13,'Get Data'!$A$8:$A$8616,1),7),"--") -> -- | H13: -- | I13: --
A14: 1928-01-31 | B14: -0.0068 | C14: 0.044 | D14: -0.0132 | E14: -0.006 | F14: 0.0025 | G14: =IFERROR(INDEX('Get Data'!$A$8:$G$8616,MATCH(A14,'Get Data'!$A$8:$A$8616,1),7),"--") -> -- | H14: -- | I14: --
A15: 1928-02-29 | B15: -0.017 | C15: -0.0196 | D15: -0.0063 | E15: -0.0102 | F15: 0.0033 | G15: =IFERROR(INDEX('Get Data'!$A$8:$G$8616,MATCH(A15,'Get Data'!$A$8:$A$8616,1),7),"--") -> -- | H15: -- | I15: --
A16: 1928-03-31 | B16: 0.0886 | C16: -0.0024 | D16: -0.0141 | E16: 0.0487 | F16: 0.0029 | G16: =IFERROR(INDEX('Get Data'!$A$8:$G$8616,MATCH(A16,'Get Data'!$A$8:$A$8616,1),7),"--") -> -- | H16: -- | I16: --
A17: 1928-04-30 | B17: 0.0416 | C17: 0.0408 | D17: 0.0342 | E17: -0.0565 | F17: 0.0022 | G17: =IFERROR(INDEX('Get Data'!$A$8:$G$8616,MATCH(A17,'Get Data'!$A$8:$A$8616,1),7),"--") -> -- | H17: -- | I17: --
A18: 1928-05-31 | B18: 0.0156 | C18: 0.0306 | D18: -0.037 | E18: 0.0285 | F18: 0.0032 | G18: =IFERROR(INDEX('Get Data'!$A$8:$G$8616,MATCH(A18,'Get Data'!$A$8:$A$8616,1),7),"--") -> -- | H18: -- | I18: --
A19: 1928-06-30 | B19: -0.0487 | C19: -0.0359 | D19: 0.0007 | E19: 0.0205 | F19: 0.0031 | G19: =IFERROR(INDEX('Get Data'!$A$8:$G$8616,MATCH(A19,'Get Data'!$A$8:$A$8616,1),7),"--") -> -- | H19: -- | I19: --
A20: 1928-07-31 | B20: 0.0067 | C20: -0.0163 | D20: -0.0007 | E20: 0.0275 | F20: 0.0032 | G20: =IFERROR(INDEX('Get Data'!$A$8:$G$8616,MATCH(A20,'Get Data'!$A$8:$A$8616,1),7),"--") -> -- | H20: -- | I20: --
A21: 1928-08-31 | B21: 0.0663 | C21: -0.0214 | D21: -0.0212 | E21: 0.0362 | F21: 0.0032 | G21: =IFERROR(INDEX('Get Data'!$A$8:$G$8616,MATCH(A21,'Get Data'!$A$8:$A$8616,1),7),"--") -> -- | H21: -- | I21: --
A22: 1928-09-29 | B22: 0.0287 | C22: 0.0177 | D22: 0.0135 | E22: 0.0362 | F22: 0.0027 | G22: =IFERROR(INDEX('Get Data'!$A$8:$G$8616,MATCH(A22,'Get Data'!$A$8:$A$8616,1),7),"--") -> -- | H22: -- | I22: --
A23: 1928-10-31 | B23: 0.0126 | C23: 0.0271 | D23: -0.0263 | E23: 0.0505 | F23: 0.0041 | G23: =IFERROR(INDEX('Get Data'!$A$8:$G$8616,MATCH(A23,'Get Data'!$A$8:$A$8616,1),7),"--") -> -- | H23: -- | I23: --
A24: 1928-11-30 | B24: 0.1177 | C24: -0.022 | D24: 0.033 | E24: 0.0193 | F24: 0.0038 | G24: =IFERROR(INDEX('Get Data'!$A$8:$G$8616,MATCH(A24,'Get Data'!$A$8:$A$8616,1),7),"--") -> -- | H24: -- | I24: --
A25: 1928-12-31 | B25: 0.0032 | C25: -0.0109 | D25: -0.0002 | E25: 0.0171 | F25: 0.0006 | G25: =IFERROR(INDEX('Get Data'!$A$8:$G$8616,MATCH(A25,'Get Data'!$A$8:$A$8616,1),7),"--") -> -- | H25: -- | I25: --
A26: 1929-01-31 | B26: 0.0446 | C26: -0.028 | D26: -0.0175 | E26: 0.0243 | F26: 0.0034 | G26: =IFERROR(INDEX('Get Data'!$A$8:$G$8616,MATCH(A26,'Get Data'!$A$8:$A$8616,1),7),"--") -> -- | H26: -- | I26: --
A27: 1929-02-28 | B27: -0.0031 | C27: 0.0087 | D27: 0.0094 | E27: 0.0305 | F27: 0.0036 | G27: =IFERROR(INDEX('Get Data'!$A$8:$G$8616,MATCH(A27,'Get Data'!$A$8:$A$8616,1),7),"--") -> -- | H27: -- | I27: --
A28: 1929-03-28 | B28: -0.009 | C28: -0.0436 | D28: 0.01 | E28: -0.0105 | F28: 0.0034 | G28: =IFERROR(INDEX('Get Data'!$A$8:$G$8616,MATCH(A28,'Get Data'!$A$8:$A$8616,1),7),"--") -> -- | H28: -- | I28: --
A29: 1929-04-30 | B29: 0.0138 | C29: -0.0082 | D29: 0.0046 | E29: 0.019 | F29: 0.0036 | G29: =IFERROR(INDEX('Get Data'!$A$8:$G$8616,MATCH(A29,'Get Data'!$A$8:$A$8616,1),7),"--") -> -- | H29: -- | I29: --
A30: 1929-05-31 | B30: -0.063 | C30: -0.0709 | D30: 0.0071 | E30: -0.0204 | F30: 0.0044 | G30: =IFERROR(INDEX('Get Data'!$A$8:$G$8616,MATCH(A30,'Get Data'!$A$8:$A$8616,1),7),"--") -> -- | H30: -- | I30: --
A31: 1929-06-29 | B31: 0.0948 | C31: -0.0174 | D31: -0.0248 | E31: 0.0872 | F31: 0.0052 | G31: =IFERROR(INDEX('Get Data'!$A$8:$G$8616,MATCH(A31,'Get Data'!$A$8:$A$8616,1),7),"--") -> -- | H31: -- | I31: --
A32: 1929-07-31 | B32: 0.044 | C32: -0.0438 | D32: 0.0199 | E32: 0.0283 | F32: 0.0033 | G32: =IFERROR(INDEX('Get Data'!$A$8:$G$8616,MATCH(A32,'Get Data'!$A$8:$A$8616,1),7),"--") -> -- | H32: -- | I32: --
A33: 1929-08-30 | B33: 0.0822 | C33: -0.0879 | D33: -0.0049 | E33: 0.0459 | F33: 0.004 | G33: =IFERROR(INDEX('Get Data'!$A$8:$G$8616,MATCH(A33,'Get Data'!$A$8:$A$8616,1),7),"--") -> -- | H33: -- | I33: --
A34: 1929-09-30 | B34: -0.0542 | C34: 0.0142 | D34: -0.0112 | E34: 0.0304 | F34: 0.0035 | G34: =IFERROR(INDEX('Get Data'!$A$8:$G$8616,MATCH(A34,'Get Data'!$A$8:$A$8616,1),7),"--") -> -- | H34: -- | I34: --
A35: 1929-10-31 | B35: -0.2003 | C35: -0.0377 | D35: 0.0895 | E35: 0.0409 | F35: 0.0046 | G35: =IFERROR(INDEX('Get Data'!$A$8:$G$8616,MATCH(A35,'Get Data'!$A$8:$A$8616,1),7),"--") -> -- | H35: -- | I35: --
A36: 1929-11-27 | B36: -0.1268 | C36: -0.022 | D36: 0.047 | E36: -0.0239 | F36: 0.0037 | G36: =IFERROR(INDEX('Get Data'!$A$8:$G$8616,MATCH(A36,'Get Data'!$A$8:$A$8616,1),7),"--") -> -- | H36: -- | I36: --
A37: 1929-12-31 | B37: 0.0147 | C37: -0.0463 | D37: 0.0025 | E37: 0.0513 | F37: 0.0037 | G37: =IFERROR(INDEX('Get Data'!$A$8:$G$8616,MATCH(A37,'Get Data'!$A$8:$A$8616,1),7),"--") -> -- | H37: -- | I37: --
A38: 1930-01-31 | B38: 0.0544 | C38: 0.0446 | D38: -0.0229 | E38: -0.0524 | F38: 0.0014 | G38: =IFERROR(INDEX('Get Data'!$A$8:$G$8616,MATCH(A38,'Get Data'!$A$8:$A$8616,1),7),"--") -> -- | H38: -- | I38: --
A39: 1930-02-28 | B39: 0.0244 | C39: 0.007 | D39: -0.0055 | E39: 0.0045 | F39: 0.003 | G39: =IFERROR(INDEX('Get Data'!$A$8:$G$8616,MATCH(A39,'Get Data'!$A$8:$A$8616,1),7),"--") -> -- | H39: -- | I39: --
A40: 1930-03-31 | B40: 0.0714 | C40: 0.0371 | D40: 0.0037 | E40: -0.0418 | F40: 0.0035 | G40: =IFERROR(INDEX('Get Data'!$A$8:$G$8616,MATCH(A40,'Get Data'!$A$8:$A$8616,1),7),"--") -> -- | H40: -- | I40: --
A41: 1930-04-30 | B41: -0.0211 | C41: -0.0067 | D41: -0.0196 | E41: 0.0391 | F41: 0.0021 | G41: =IFERROR(INDEX('Get Data'!$A$8:$G$8616,MATCH(A41,'Get Data'!$A$8:$A$8616,1),7),"--") -> -- | H41: -- | I41: --
A42: 1930-05-29 | B42: -0.0159 | C42: -0.0178 | D42: -0.0157 | E42: -0.0002 | F42: 0.0026 | G42: =IFERROR(INDEX('Get Data'!$A$8:$G$8616,MATCH(A42,'Get Data'!$A$8:$A$8616,1),7),"--") -> -- | H42: -- | I42: --
A43: 1930-06-30 | B43: -0.1606 | C43: -0.0333 | D43: 0.0211 | E43: 0.0661 | F43: 0.0027 | G43: =IFERROR(INDEX('Get Data'!$A$8:$G$8616,MATCH(A43,'Get Data'!$A$8:$A$8616,1),7),"--") -> -- | H43: -- | I43: --
A44: 1930-07-31 | B44: 0.0387 | C44: 0.0056 | D44: -0.0254 | E44: -0.0216 | F44: 0.002 | G44: =IFERROR(INDEX('Get Data'!$A$8:$G$8616,MATCH(A44,'Get Data'!$A$8:$A$8616,1),7),"--") -> -- | H44: -- | I44: --
A45: 1930-08-29 | B45: 0.0035 | C45: -0.0213 | D45: -0.0088 | E45: 0.0395 | F45: 0.0009 | G45: =IFERROR(INDEX('Get Data'!$A$8:$G$8616,MATCH(A45,'Get Data'!$A$8:$A$8616,1),7),"--") -> -- | H45: -- | I45: --
A46: 1930-09-30 | B46: -0.1267 | C46: -0.0217 | D46: -0.0445 | E46: 0.1144 | F46: 0.0022 | G46: =IFERROR(INDEX('Get Data'!$A$8:$G$8616,MATCH(A46,'Get Data'!$A$8:$A$8616,1),7),"--") -> -- | H46: -- | I46: --
A47: 1930-10-31 | B47: -0.0884 | C47: -0.0102 | D47: -0.0061 | E47: 0.0701 | F47: 0.0009 | G47: =IFERROR(INDEX('Get Data'!$A$8:$G$8616,MATCH(A47,'Get Data'!$A$8:$A$8616,1),7),"--") -> -- | H47: -- | I47: --
A48: 1930-11-29 | B48: -0.0283 | C48: 0.0223 | D48: -0.029 | E48: -0.0117 | F48: 0.0013 | G48: =IFERROR(INDEX('Get Data'!$A$8:$G$8616,MATCH(A48,'Get Data'!$A$8:$A$8616,1),7),"--") -> -- | H48: -- | I48: --
A49: 1930-12-31 | B49: -0.079 | C49: -0.0497 | D49: -0.0501 | E49: 0.1329 | F49: 0.0014 | G49: =IFERROR(INDEX('Get Data'!$A$8:$G$8616,MATCH(A49,'Get Data'!$A$8:$A$8616,1),7),"--") -> -- | H49: -- | I49: --
A50: 1931-01-31 | B50: 0.0609 | C50: 0.0379 | D50: 0.0756 | E50: -0.1094 | F50: 0.0015 | G50: =IFERROR(INDEX('Get Data'!$A$8:$G$8616,MATCH(A50,'Get Data'!$A$8:$A$8616,1),7),"--") -> -- | H50: -- | I50: --
A51: 1931-02-28 | B51: 0.1087 | C51: 0.0271 | D51: 0.0222 | E51: -0.1437 | F51: 0.0004 | G51: =IFERROR(INDEX('Get Data'!$A$8:$G$8616,MATCH(A51,'Get Data'!$A$8:$A$8616,1),7),"--") -> -- | H51: -- | I51: --
A52: 1931-03-31 | B52: -0.0655 | C52: 0.028 | D52: -0.0308 | E52: 0.0955 | F52: 0.0013 | G52: =IFERROR(INDEX('Get Data'!$A$8:$G$8616,MATCH(A52,'Get Data'!$A$8:$A$8616,1),7),"--") -> -- | H52: -- | I52: --
A53: 1931-04-30 | B53: -0.0982 | C53: -0.0487 | D53: -0.0339 | E53: 0.1142 | F53: 0.0008 | G53: =IFERROR(INDEX('Get Data'!$A$8:$G$8616,MATCH(A53,'Get Data'!$A$8:$A$8616,1),7),"--") -> -- | H53: -- | I53: --
A54: 1931-05-29 | B54: -0.1317 | C54: 0.0585 | D54: -0.0631 | E54: 0.0903 | F54: 0.0009 | G54: =IFERROR(INDEX('Get Data'!$A$8:$G$8616,MATCH(A54,'Get Data'!$A$8:$A$8616,1),7),"--") -> -- | H54: -- | I54: --
A55: 1931-06-30 | B55: 0.1369 | C55: -0.0566 | D55: 0.1058 | E55: -0.1785 | F55: 0.0008 | G55: =IFERROR(INDEX('Get Data'!$A$8:$G$8616,MATCH(A55,'Get Data'!$A$8:$A$8616,1),7),"--") -> -- | H55: -- | I55: --
A56: 1931-07-31 | B56: -0.0649 | C56: 0.0182 | D56: -0.0376 | E56: 0.0805 | F56: 0.0006 | G56: =IFERROR(INDEX('Get Data'!$A$8:$G$8616,MATCH(A56,'Get Data'!$A$8:$A$8616,1),7),"--") -> -- | H56: -- | I56: --
A57: 1931-08-31 | B57: 0.0034 | C57: -0.0114 | D57: -0.0247 | E57: -0.0352 | F57: 0.0003 | G57: =IFERROR(INDEX('Get Data'!$A$8:$G$8616,MATCH(A57,'Get Data'!$A$8:$A$8616,1),7),"--") -> -- | H57: -- | I57: --
A58: 1931-09-30 | B58: -0.2898 | C58: 0.0009 | D58: -0.0665 | E58: 0.1018 | F58: 0.0003 | G58: =IFERROR(INDEX('Get Data'!$A$8:$G$8616,MATCH(A58,'Get Data'!$A$8:$A$8616,1),7),"--") -> -- | H58: -- | I58: --
A59: 1931-10-31 | B59: 0.078 | C59: -0.0147 | D59: 0.0045 | E59: 0.0328 | F59: 0.001 | G59: =IFERROR(INDEX('Get Data'!$A$8:$G$8616,MATCH(A59,'Get Data'!$A$8:$A$8616,1),7),"--") -> -- | H59: -- | I59: --
A60: 1931-11-30 | B60: -0.0911 | C60: 0.0519 | D60: -0.0605 | E60: 0.0761 | F60: 0.0017 | G60: =IFERROR(INDEX('Get Data'!$A$8:$G$8616,MATCH(A60,'Get Data'!$A$8:$A$8616,1),7),"--") -> -- | H60: -- | I60: --
A61: 1931-12-31 | B61: -0.1336 | C61: -0.0052 | D61: -0.0896 | E61: 0.1417 | F61: 0.0012 | G61: =IFERROR(INDEX('Get Data'!$A$8:$G$8616,MATCH(A61,'Get Data'!$A$8:$A$8616,1),7),"--") -> -- | H61: -- | I61: --
A62: 1932-01-30 | B62: -0.016 | C62: 0.0377 | D62: 0.1069 | E62: -0.1032 | F62: 0.0023 | G62: =IFERROR(INDEX('Get Data'!$A$8:$G$8616,MATCH(A62,'Get Data'!$A$8:$A$8616,1),7),"--") -> -- | H62: -- | I62: --
A63: 1932-02-29 | B63: 0.0528 | C63: -0.0133 | D63: -0.0512 | E63: 0.0162 | F63: 0.0023 | G63: =IFERROR(INDEX('Get Data'!$A$8:$G$8616,MATCH(A63,'Get Data'!$A$8:$A$8616,1),7),"--") -> -- | H63: -- | I63: --
A64: 1932-03-31 | B64: -0.1102 | C64: 0.0173 | D64: -0.01 | E64: 0.1033 | F64: 0.0016 | G64: =IFERROR(INDEX('Get Data'!$A$8:$G$8616,MATCH(A64,'Get Data'!$A$8:$A$8616,1),7),"--") -> -- | H64: -- | I64: --
A65: 1932-04-30 | B65: -0.1793 | C65: 0.0173 | D65: -0.0091 | E65: 0.0678 | F65: 0.0011 | G65: =IFERROR(INDEX('Get Data'!$A$8:$G$8616,MATCH(A65,'Get Data'!$A$8:$A$8616,1),7),"--") -> -- | H65: -- | I65: --
A66: 1932-05-31 | B66: -0.2065 | C66: 0.0448 | D66: -0.0403 | E66: 0.122 | F66: 0.0006 | G66: =IFERROR(INDEX('Get Data'!$A$8:$G$8616,MATCH(A66,'Get Data'!$A$8:$A$8616,1),7),"--") -> -- | H66: -- | I66: =IFERROR(H66-F66,"--") -> --
A67: 1932-06-30 | B67: -0.0079 | C67: -0.0049 | D67: 0.0549 | E67: 0.021 | F67: 0.0002 | G67: =IFERROR(INDEX('Get Data'!$A$8:$G$8616,MATCH(A67,'Get Data'!$A$8:$A$8616,1),7),"--") -> -- | H67: =IFERROR(G67/G66-1,"--") -> -- | I67: --
A68: 1932-07-30 | B68: 0.3351 | C68: -0.0595 | D68: 0.3548 | E68: -0.4394 | F68: 0.0003 | G68: =IFERROR(INDEX('Get Data'!$A$8:$G$8616,MATCH(A68,'Get Data'!$A$8:$A$8616,1),7),"--") -> -- | H68: -- | I68: --
A69: 1932-08-31 | B69: 0.3652 | C69: 0.1924 | D69: 0.2774 | E69: -0.5226 | F69: 0.0003 | G69: =IFERROR(INDEX('Get Data'!$A$8:$G$8616,MATCH(A69,'Get Data'!$A$8:$A$8616,1),7),"--") -> -- | H69: -- | I69: --
A70: 1932-09-30 | B70: -0.0316 | C70: -0.0245 | D70: -0.0641 | E70: 0.0244 | F70: 0.0003 | G70: =IFERROR(INDEX('Get Data'!$A$8:$G$8616,MATCH(A70,'Get Data'!$A$8:$A$8616,1),7),"--") -> -- | H70: -- | I70: --
A71: 1932-10-31 | B71: -0.1303 | C71: -0.0263 | D71: -0.0998 | E71: 0.0429 | F71: 0.0002 | G71: =IFERROR(INDEX('Get Data'!$A$8:$G$8616,MATCH(A71,'Get Data'!$A$8:$A$8616,1),7),"--") -> -- | H71: -- | I71: --
A72: 1932-11-30 | B72: -0.0562 | C72: 0.014 | D72: -0.1226 | E72: -0.0209 | F72: 0.0002 | G72: =IFERROR(INDEX('Get Data'!$A$8:$G$8616,MATCH(A72,'Get Data'!$A$8:$A$8616,1),7),"--") -> -- | H72: -- | I72: --
A73: 1932-12-31 | B73: 0.0445 | C73: -0.0972 | D73: -0.0692 | E73: 0.0526 | F73: 0.0001 | G73: =IFERROR(INDEX('Get Data'!$A$8:$G$8616,MATCH(A73,'Get Data'!$A$8:$A$8616,1),7),"--") -> -- | H73: -- | I73: --
A74: 1933-01-31 | B74: 0.0124 | C74: -0.0102 | D74: 0.0825 | E74: -0.0153 | F74: 0.0001 | G74: =IFERROR(INDEX('Get Data'!$A$8:$G$8616,MATCH(A74,'Get Data'!$A$8:$A$8616,1),7),"--") -> -- | H74: -- | I74: --
A75: 1933-02-28 | B75: -0.1495 | C75: -0.0326 | D75: -0.029 | E75: 0.0419 | F75: -0.0003 | G75: =IFERROR(INDEX('Get Data'!$A$8:$G$8616,MATCH(A75,'Get Data'!$A$8:$A$8616,1),7),"--") -> -- | H75: -- | I75: --
A76: 1933-03-31 | B76: 0.0338 | C76: 0.049 | D76: 0.0698 | E76: 0.0235 | F76: 0.0004 | G76: =IFERROR(INDEX('Get Data'!$A$8:$G$8616,MATCH(A76,'Get Data'!$A$8:$A$8616,1),7),"--") -> -- | H76: -- | I76: --
A77: 1933-04-29 | B77: 0.3777 | C77: 0.0569 | D77: 0.1834 | E77: -0.1595 | F77: 0.001 | G77: =IFERROR(INDEX('Get Data'!$A$8:$G$8616,MATCH(A77,'Get Data'!$A$8:$A$8616,1),7),"--") -> -- | H77: -- | I77: --
A78: 1933-05-31 | B78: 0.213 | C78: 0.3904 | D78: 0.1519 | E78: -0.0392 | F78: 0.0004 | G78: =IFERROR(INDEX('Get Data'!$A$8:$G$8616,MATCH(A78,'Get Data'!$A$8:$A$8616,1),7),"--") -> -- | H78: -- | I78: --
A79: 1933-06-30 | B79: 0.1321 | C79: 0.0846 | D79: -0.0272 | E79: 0.0354 | F79: 0.0002 | G79: =IFERROR(INDEX('Get Data'!$A$8:$G$8616,MATCH(A79,'Get Data'!$A$8:$A$8616,1),7),"--") -> -- | H79: -- | I79: --
A80: 1933-07-31 | B80: -0.096 | C80: -0.0041 | D80: 0.0059 | E80: 0.0041 | F80: 0.0002 | G80: =IFERROR(INDEX('Get Data'!$A$8:$G$8616,MATCH(A80,'Get Data'!$A$8:$A$8616,1),7),"--") -> -- | H80: -- | I80: --
A81: 1933-08-31 | B81: 0.1203 | C81: -0.0578 | D81: 0.0378 | E81: 0.0751 | F81: 0.0003 | G81: =IFERROR(INDEX('Get Data'!$A$8:$G$8616,MATCH(A81,'Get Data'!$A$8:$A$8616,1),7),"--") -> -- | H81: -- | I81: --
A82: 1933-09-30 | B82: -0.1054 | C82: 0.0025 | D82: -0.1345 | E82: 0.0165 | F82: 0.0002 | G82: =IFERROR(INDEX('Get Data'!$A$8:$G$8616,MATCH(A82,'Get Data'!$A$8:$A$8616,1),7),"--") -> -- | H82: -- | I82: --
A83: 1933-10-31 | B83: -0.0831 | C83: 0.004 | D83: -0.0855 | E83: -0.0228 | F83: 0.0001 | G83: =IFERROR(INDEX('Get Data'!$A$8:$G$8616,MATCH(A83,'Get Data'!$A$8:$A$8616,1),7),"--") -> -- | H83: -- | I83: --
A84: 1933-11-29 | B84: 0.0997 | C84: -0.0685 | D84: 0.021 | E84: 0.0635 | F84: 0.0002 | G84: =IFERROR(INDEX('Get Data'!$A$8:$G$8616,MATCH(A84,'Get Data'!$A$8:$A$8616,1),7),"--") -> -- | H84: -- | I84: --
A85: 1933-12-31 | B85: 0.0205 | C85: 0.0067 | D85: -0.0141 | E85: 0.0396 | F85: 0.0002 | G85: =IFERROR(INDEX('Get Data'!$A$8:$G$8616,MATCH(A85,'Get Data'!$A$8:$A$8616,1),7),"--") -> -- | H85: -- | I85: --
A86: 1934-01-31 | B86: 0.129 | C86: 0.1117 | D86: 0.1642 | E86: -0.031 | F86: 0.0005 | G86: =IFERROR(INDEX('Get Data'!$A$8:$G$8616,MATCH(A86,'Get Data'!$A$8:$A$8616,1),7),"--") -> -- | H86: -- | I86: --
A87: 1934-02-28 | B87: -0.0239 | C87: 0.0509 | D87: 0.0251 | E87: -0.0025 | F87: 0.0002 | G87: =IFERROR(INDEX('Get Data'!$A$8:$G$8616,MATCH(A87,'Get Data'!$A$8:$A$8616,1),7),"--") -> -- | H87: -- | I87: --
A88: 1934-03-31 | B88: 0.0013 | C88: 0.0264 | D88: -0.0363 | E88: -0.0086 | F88: 0.0002 | G88: =IFERROR(INDEX('Get Data'!$A$8:$G$8616,MATCH(A88,'Get Data'!$A$8:$A$8616,1),7),"--") -> -- | H88: -- | I88: --
A89: 1934-04-30 | B89: -0.0175 | C89: 0.0336 | D89: -0.0502 | E89: -0.0512 | F89: 0.0001 | G89: =IFERROR(INDEX('Get Data'!$A$8:$G$8616,MATCH(A89,'Get Data'!$A$8:$A$8616,1),7),"--") -> -- | H89: -- | I89: --
A90: 1934-05-31 | B90: -0.0712 | C90: 0.0018 | D90: -0.0712 | E90: -0.0283 | F90: 0.0001 | G90: =IFERROR(INDEX('Get Data'!$A$8:$G$8616,MATCH(A90,'Get Data'!$A$8:$A$8616,1),7),"--") -> -- | H90: -- | I90: --
A91: 1934-06-30 | B91: 0.0262 | C91: -0.0238 | D91: -0.022 | E91: -0.0096 | F91: 0.0001 | G91: =IFERROR(INDEX('Get Data'!$A$8:$G$8616,MATCH(A91,'Get Data'!$A$8:$A$8616,1),7),"--") -> -- | H91: -- | I91: --
A92: 1934-07-31 | B92: -0.1085 | C92: -0.0642 | D92: -0.1206 | E92: 0.0873 | F92: 0.0001 | G92: =IFERROR(INDEX('Get Data'!$A$8:$G$8616,MATCH(A92,'Get Data'!$A$8:$A$8616,1),7),"--") -> -- | H92: -- | I92: --
A93: 1934-08-31 | B93: 0.0585 | C93: 0.0459 | D93: 0.0186 | E93: 0.0241 | F93: 0.0001 | G93: =IFERROR(INDEX('Get Data'!$A$8:$G$8616,MATCH(A93,'Get Data'!$A$8:$A$8616,1),7),"--") -> -- | H93: -- | I93: --
A94: 1934-09-29 | B94: -0.003 | C94: -0.0151 | D94: -0.0032 | E94: -0.001 | F94: 0.0001 | G94: =IFERROR(INDEX('Get Data'!$A$8:$G$8616,MATCH(A94,'Get Data'!$A$8:$A$8616,1),7),"--") -> -- | H94: -- | I94: --
A95: 1934-10-31 | B95: -0.0171 | C95: 0.0126 | D95: -0.0463 | E95: 0.0691 | F95: 0.0001 | G95: =IFERROR(INDEX('Get Data'!$A$8:$G$8616,MATCH(A95,'Get Data'!$A$8:$A$8616,1),7),"--") -> -- | H95: -- | I95: --
A96: 1934-11-30 | B96: 0.0853 | C96: 0.0756 | D96: -0.0426 | E96: 0.0422 | F96: 0.0001 | G96: =IFERROR(INDEX('Get Data'!$A$8:$G$8616,MATCH(A96,'Get Data'!$A$8:$A$8616,1),7),"--") -> -- | H96: -- | I96: --
A97: 1934-12-31 | B97: 0.0039 | C97: 0.0294 | D97: -0.0329 | E97: 0.0463 | F97: 0.0001 | G97: =IFERROR(INDEX('Get Data'!$A$8:$G$8616,MATCH(A97,'Get Data'!$A$8:$A$8616,1),7),"--") -> -- | H97: -- | I97: --
A98: 1935-01-31 | B98: -0.0339 | C98: 0.0109 | D98: -0.0222 | E98: 0.036 | F98: 0.0001 | G98: =IFERROR(INDEX('Get Data'!$A$8:$G$8616,MATCH(A98,'Get Data'!$A$8:$A$8616,1),7),"--") -> -- | H98: -- | I98: --
A99: 1935-02-28 | B99: -0.0186 | C99: 0.005 | D99: -0.0716 | E99: 0.1375 | F99: 0.0002 | G99: =IFERROR(INDEX('Get Data'!$A$8:$G$8616,MATCH(A99,'Get Data'!$A$8:$A$8616,1),7),"--") -> -- | H99: -- | I99: --
A100: 1935-03-30 | B100: -0.0378 | C100: -0.0377 | D100: -0.0482 | E100: 0.0286 | F100: 0.0001 | G100: =IFERROR(INDEX('Get Data'!$A$8:$G$8616,MATCH(A100,'Get Data'!$A$8:$A$8616,1),7),"--") -> -- | H100: -- | I100: --
A101: 1935-04-30 | B101: 0.0893 | C101: -0.0209 | D101: 0.0509 | E101: -0.0472 | F101: 0.0001 | G101: =IFERROR(INDEX('Get Data'!$A$8:$G$8616,MATCH(A101,'Get Data'!$A$8:$A$8616,1),7),"--") -> -- | H101: -- | I101: --
A102: 1935-05-31 | B102: 0.0349 | C102: -0.0391 | D102: 0.0189 | E102: -0.0367 | F102: 0.0001 | G102: =IFERROR(INDEX('Get Data'!$A$8:$G$8616,MATCH(A102,'Get Data'!$A$8:$A$8616,1),7),"--") -> -- | H102: -- | I102: --
A103: 1935-06-29 | B103: 0.0567 | C103: -0.0554 | D103: 0.0427 | E103: 0.0207 | F103: 0.0001 | G103: =IFERROR(INDEX('Get Data'!$A$8:$G$8616,MATCH(A103,'Get Data'!$A$8:$A$8616,1),7),"--") -> -- | H103: -- | I103: --
A104: 1935-07-31 | B104: 0.0746 | C104: 0.0297 | D104: 0.0499 | E104: -0.0422 | F104: 0.0001 | G104: =IFERROR(INDEX('Get Data'!$A$8:$G$8616,MATCH(A104,'Get Data'!$A$8:$A$8616,1),7),"--") -> -- | H104: -- | I104: --
A105: 1935-08-31 | B105: 0.0259 | C105: 0.0752 | D105: 0.0514 | E105: -0.0769 | F105: 0.0001 | G105: =IFERROR(INDEX('Get Data'!$A$8:$G$8616,MATCH(A105,'Get Data'!$A$8:$A$8616,1),7),"--") -> -- | H105: -- | I105: --
A106: 1935-09-30 | B106: 0.0262 | C106: 0.0059 | D106: -0.0483 | E106: 0.0893 | F106: 0.0001 | G106: =IFERROR(INDEX('Get Data'!$A$8:$G$8616,MATCH(A106,'Get Data'!$A$8:$A$8616,1),7),"--") -> -- | H106: -- | I106: --
A107: 1935-10-31 | B107: 0.0723 | C107: 0.023 | D107: -0.0043 | E107: 0.0209 | F107: 0.0001 | G107: =IFERROR(INDEX('Get Data'!$A$8:$G$8616,MATCH(A107,'Get Data'!$A$8:$A$8616,1),7),"--") -> -- | H107: -- | I107: --
A108: 1935-11-30 | B108: 0.0479 | C108: 0.0566 | D108: 0.1053 | E108: -0.0591 | F108: 0.0002 | G108: =IFERROR(INDEX('Get Data'!$A$8:$G$8616,MATCH(A108,'Get Data'!$A$8:$A$8616,1),7),"--") -> -- | H108: -- | I108: --
A109: 1935-12-31 | B109: 0.0447 | C109: 0.0096 | D109: 0.0027 | E109: 0.0375 | F109: 0.0001 | G109: =IFERROR(INDEX('Get Data'!$A$8:$G$8616,MATCH(A109,'Get Data'!$A$8:$A$8616,1),7),"--") -> -- | H109: -- | I109: --
A110: 1936-01-31 | B110: 0.0653 | C110: 0.0643 | D110: 0.1009 | E110: -0.0336 | F110: 0.0001 | G110: =IFERROR(INDEX('Get Data'!$A$8:$G$8616,MATCH(A110,'Get Data'!$A$8:$A$8616,1),7),"--") -> -- | H110: -- | I110: --
A111: 1936-02-29 | B111: 0.0253 | C111: 0.0077 | D111: 0.0398 | E111: 0.0257 | F111: 0.0001 | G111: =IFERROR(INDEX('Get Data'!$A$8:$G$8616,MATCH(A111,'Get Data'!$A$8:$A$8616,1),7),"--") -> -- | H111: -- | I111: --
A112: 1936-03-31 | B112: 0.0111 | C112: 0.011 | D112: -0.0223 | E112: 0.0173 | F112: 0.0002 | G112: =IFERROR(INDEX('Get Data'!$A$8:$G$8616,MATCH(A112,'Get Data'!$A$8:$A$8616,1),7),"--") -> -- | H112: -- | I112: --
A113: 1936-04-30 | B113: -0.0804 | C113: -0.0681 | D113: -0.0218 | E113: -0.0783 | F113: 0.0002 | G113: =IFERROR(INDEX('Get Data'!$A$8:$G$8616,MATCH(A113,'Get Data'!$A$8:$A$8616,1),7),"--") -> -- | H113: -- | I113: --
A114: 1936-05-29 | B114: 0.0501 | C114: 0.0081 | D114: 0.0269 | E114: 0.0237 | F114: 0.0002 | G114: =IFERROR(INDEX('Get Data'!$A$8:$G$8616,MATCH(A114,'Get Data'!$A$8:$A$8616,1),7),"--") -> -- | H114: -- | I114: --
A115: 1936-06-30 | B115: 0.0253 | C115: -0.032 | D115: -0.0097 | E115: 0.0045 | F115: 0.0003 | G115: =IFERROR(INDEX('Get Data'!$A$8:$G$8616,MATCH(A115,'Get Data'!$A$8:$A$8616,1),7),"--") -> -- | H115: -- | I115: --
A116: 1936-07-31 | B116: 0.0654 | C116: 0.0112 | D116: 0.0135 | E116: 0.029 | F116: 0.0001 | G116: =IFERROR(INDEX('Get Data'!$A$8:$G$8616,MATCH(A116,'Get Data'!$A$8:$A$8616,1),7),"--") -> -- | H116: -- | I116: --
A117: 1936-08-31 | B117: 0.0097 | C117: -0.0009 | D117: 0.0384 | E117: 0.0061 | F117: 0.0002 | G117: =IFERROR(INDEX('Get Data'!$A$8:$G$8616,MATCH(A117,'Get Data'!$A$8:$A$8616,1),7),"--") -> -- | H117: -- | I117: --
A118: 1936-09-30 | B118: 0.0123 | C118: 0.0312 | D118: -0.0032 | E118: 0.0127 | F118: 0.0001 | G118: =IFERROR(INDEX('Get Data'!$A$8:$G$8616,MATCH(A118,'Get Data'!$A$8:$A$8616,1),7),"--") -> -- | H118: -- | I118: --
A119: 1936-10-31 | B119: 0.0703 | C119: -0.0219 | D119: 0.0161 | E119: 0.0099 | F119: 0.0002 | G119: =IFERROR(INDEX('Get Data'!$A$8:$G$8616,MATCH(A119,'Get Data'!$A$8:$A$8616,1),7),"--") -> -- | H119: -- | I119: --
A120: 1936-11-30 | B120: 0.0331 | C120: 0.0834 | D120: -0.0101 | E120: 0.0211 | F120: 0.0001 | G120: =IFERROR(INDEX('Get Data'!$A$8:$G$8616,MATCH(A120,'Get Data'!$A$8:$A$8616,1),7),"--") -> -- | H120: -- | I120: --
A121: 1936-12-31 | B121: 0.0013 | C121: 0.0367 | D121: 0.0496 | E121: 0.0211 | F121: 0 | G121: =IFERROR(INDEX('Get Data'!$A$8:$G$8616,MATCH(A121,'Get Data'!$A$8:$A$8616,1),7),"--") -> -- | H121: -- | I121: --
A122: 1937-01-30 | B122: 0.0328 | C122: 0.0421 | D122: 0.0322 | E122: -0.0185 | F122: 0.0001 | G122: =IFERROR(INDEX('Get Data'!$A$8:$G$8616,MATCH(A122,'Get Data'!$A$8:$A$8616,1),7),"--") -> -- | H122: -- | I122: --
A123: 1937-02-27 | B123: 0.0108 | C123: 0.0063 | D123: 0.0594 | E123: 0.0298 | F123: 0.0002 | G123: =IFERROR(INDEX('Get Data'!$A$8:$G$8616,MATCH(A123,'Get Data'!$A$8:$A$8616,1),7),"--") -> -- | H123: -- | I123: --
A124: 1937-03-31 | B124: -0.0036 | C124: -0.0215 | D124: 0.0705 | E124: 0.0281 | F124: 0.0001 | G124: =IFERROR(INDEX('Get Data'!$A$8:$G$8616,MATCH(A124,'Get Data'!$A$8:$A$8616,1),7),"--") -> -- | H124: -- | I124: --
A125: 1937-04-30 | B125: -0.0723 | C125: -0.034 | D125: -0.0491 | E125: -0.0371 | F125: 0.0003 | G125: =IFERROR(INDEX('Get Data'!$A$8:$G$8616,MATCH(A125,'Get Data'!$A$8:$A$8616,1),7),"--") -> -- | H125: -- | I125: --
A126: 1937-05-28 | B126: -0.0098 | C126: -0.0074 | D126: -0.0317 | E126: 0.0051 | F126: 0.0006 | G126: =IFERROR(INDEX('Get Data'!$A$8:$G$8616,MATCH(A126,'Get Data'!$A$8:$A$8616,1),7),"--") -> -- | H126: -- | I126: --
A127: 1937-06-30 | B127: -0.042 | C127: -0.0305 | D127: -0.0356 | E127: 0.0068 | F127: 0.0003 | G127: =IFERROR(INDEX('Get Data'!$A$8:$G$8616,MATCH(A127,'Get Data'!$A$8:$A$8616,1),7),"--") -> -- | H127: -- | I127: --
A128: 1937-07-31 | B128: 0.0883 | C128: 0.0117 | D128: 0.0015 | E128: -0.004 | F128: 0.0003 | G128: =IFERROR(INDEX('Get Data'!$A$8:$G$8616,MATCH(A128,'Get Data'!$A$8:$A$8616,1),7),"--") -> -- | H128: -- | I128: --
A129: 1937-08-31 | B129: -0.0488 | C129: 0.0051 | D129: -0.0199 | E129: -0.0179 | F129: 0.0002 | G129: =IFERROR(INDEX('Get Data'!$A$8:$G$8616,MATCH(A129,'Get Data'!$A$8:$A$8616,1),7),"--") -> -- | H129: -- | I129: --
A130: 1937-09-30 | B130: -0.1349 | C130: -0.0676 | D130: -0.0454 | E130: -0.0714 | F130: 0.0004 | G130: =IFERROR(INDEX('Get Data'!$A$8:$G$8616,MATCH(A130,'Get Data'!$A$8:$A$8616,1),7),"--") -> -- | H130: -- | I130: =IFERROR(H130-F130,"--") -> --
A131: 1937-10-30 | B131: -0.095 | C131: 0.0051 | D131: -0.0153 | E131: -0.0156 | F131: 0.0002 | G131: =IFERROR(INDEX('Get Data'!$A$8:$G$8616,MATCH(A131,'Get Data'!$A$8:$A$8616,1),7),"--") -> -- | H131: =IFERROR(G131/G130-1,"--") -> -- | I131: --
A132: 1937-11-30 | B132: -0.0837 | C132: -0.0324 | D132: 0.0022 | E132: -0.0097 | F132: 0.0002 | G132: =IFERROR(INDEX('Get Data'!$A$8:$G$8616,MATCH(A132,'Get Data'!$A$8:$A$8616,1),7),"--") -> -- | H132: -- | I132: --
A133: 1937-12-31 | B133: -0.0417 | C133: -0.078 | D133: -0.0085 | E133: 0.047 | F133: 0 | G133: =IFERROR(INDEX('Get Data'!$A$8:$G$8616,MATCH(A133,'Get Data'!$A$8:$A$8616,1),7),"--") -> -- | H133: -- | I133: --
A134: 1938-01-31 | B134: 0.0058 | C134: 0.0519 | D134: -0.0222 | E134: -0.0144 | F134: 0 | G134: =IFERROR(INDEX('Get Data'!$A$8:$G$8616,MATCH(A134,'Get Data'!$A$8:$A$8616,1),7),"--") -> -- | H134: -- | I134: --
A135: 1938-02-28 | B135: 0.0582 | C135: 0.006 | D135: -0.0196 | E135: -0.0308 | F135: 0 | G135: =IFERROR(INDEX('Get Data'!$A$8:$G$8616,MATCH(A135,'Get Data'!$A$8:$A$8616,1),7),"--") -> -- | H135: -- | I135: --
A136: 1938-03-31 | B136: -0.2368 | C136: -0.0356 | D136: -0.0441 | E136: 0.1575 | F136: -0.0001 | G136: =IFERROR(INDEX('Get Data'!$A$8:$G$8616,MATCH(A136,'Get Data'!$A$8:$A$8616,1),7),"--") -> -- | H136: -- | I136: --
A137: 1938-04-30 | B137: 0.1447 | C137: 0.0658 | D137: -0.0035 | E137: -0.0888 | F137: 0.0001 | G137: =IFERROR(INDEX('Get Data'!$A$8:$G$8616,MATCH(A137,'Get Data'!$A$8:$A$8616,1),7),"--") -> -- | H137: -- | I137: --
A138: 1938-05-31 | B138: -0.0385 | C138: -0.0238 | D138: -0.0042 | E138: 0.0713 | F138: 0 | G138: =IFERROR(INDEX('Get Data'!$A$8:$G$8616,MATCH(A138,'Get Data'!$A$8:$A$8616,1),7),"--") -> -- | H138: -- | I138: --
A139: 1938-06-30 | B139: 0.2369 | C139: 0.0353 | D139: 0.0211 | E139: -0.2486 | F139: 0 | G139: =IFERROR(INDEX('Get Data'!$A$8:$G$8616,MATCH(A139,'Get Data'!$A$8:$A$8616,1),7),"--") -> -- | H139: -- | I139: --
A140: 1938-07-30 | B140: 0.0733 | C140: 0.0672 | D140: 0.0078 | E140: -0.0644 | F140: -0.0001 | G140: =IFERROR(INDEX('Get Data'!$A$8:$G$8616,MATCH(A140,'Get Data'!$A$8:$A$8616,1),7),"--") -> -- | H140: -- | I140: --
A141: 1938-08-31 | B141: -0.0267 | C141: -0.0246 | D141: -0.0426 | E141: 0.0395 | F141: 0 | G141: =IFERROR(INDEX('Get Data'!$A$8:$G$8616,MATCH(A141,'Get Data'!$A$8:$A$8616,1),7),"--") -> -- | H141: -- | I141: --
A142: 1938-09-30 | B142: 0.0077 | C142: -0.0253 | D142: -0.0126 | E142: 0.0253 | F142: 0.0002 | G142: =IFERROR(INDEX('Get Data'!$A$8:$G$8616,MATCH(A142,'Get Data'!$A$8:$A$8616,1),7),"--") -> -- | H142: -- | I142: --
A143: 1938-10-31 | B143: 0.0769 | C143: 0.0662 | D143: 0.0398 | E143: -0.077 | F143: 0.0001 | G143: =IFERROR(INDEX('Get Data'!$A$8:$G$8616,MATCH(A143,'Get Data'!$A$8:$A$8616,1),7),"--") -> -- | H143: -- | I143: --
A144: 1938-11-30 | B144: -0.0174 | C144: -0.0242 | D144: -0.0076 | E144: 0.0313 | F144: -0.0006 | G144: =IFERROR(INDEX('Get Data'!$A$8:$G$8616,MATCH(A144,'Get Data'!$A$8:$A$8616,1),7),"--") -> -- | H144: -- | I144: --
A145: 1938-12-31 | B145: 0.041 | C145: -0.0185 | D145: 0.0077 | E145: 0.0205 | F145: 0 | G145: =IFERROR(INDEX('Get Data'!$A$8:$G$8616,MATCH(A145,'Get Data'!$A$8:$A$8616,1),7),"--") -> -- | H145: -- | I145: --
A146: 1939-01-31 | B146: -0.0587 | C146: -0.0143 | D146: -0.0352 | E146: -0.0305 | F146: -0.0001 | G146: =IFERROR(INDEX('Get Data'!$A$8:$G$8616,MATCH(A146,'Get Data'!$A$8:$A$8616,1),7),"--") -> -- | H146: -- | I146: --
A147: 1939-02-28 | B147: 0.0347 | C147: 0.0031 | D147: 0.0323 | E147: 0.0325 | F147: 0.0001 | G147: =IFERROR(INDEX('Get Data'!$A$8:$G$8616,MATCH(A147,'Get Data'!$A$8:$A$8616,1),7),"--") -> -- | H147: -- | I147: --
A148: 1939-03-31 | B148: -0.1183 | C148: -0.0541 | D148: -0.0831 | E148: -0.0148 | F148: -0.0001 | G148: =IFERROR(INDEX('Get Data'!$A$8:$G$8616,MATCH(A148,'Get Data'!$A$8:$A$8616,1),7),"--") -> -- | H148: -- | I148: --
A149: 1939-04-29 | B149: -0.0023 | C149: 0.0197 | D149: 0.0029 | E149: 0.027 | F149: 0 | G149: =IFERROR(INDEX('Get Data'!$A$8:$G$8616,MATCH(A149,'Get Data'!$A$8:$A$8616,1),7),"--") -> -- | H149: -- | I149: --
A150: 1939-05-31 | B150: 0.0677 | C150: 0.0387 | D150: -0.0008 | E150: 0.0356 | F150: 0.0001 | G150: =IFERROR(INDEX('Get Data'!$A$8:$G$8616,MATCH(A150,'Get Data'!$A$8:$A$8616,1),7),"--") -> -- | H150: -- | I150: --
A151: 1939-06-30 | B151: -0.0523 | C151: -0.0168 | D151: -0.0554 | E151: 0.0196 | F151: 0.0001 | G151: =IFERROR(INDEX('Get Data'!$A$8:$G$8616,MATCH(A151,'Get Data'!$A$8:$A$8616,1),7),"--") -> -- | H151: -- | I151: --
A152: 1939-07-31 | B152: 0.1019 | C152: 0.0462 | D152: 0.0055 | E152: -0.0057 | F152: 0 | G152: =IFERROR(INDEX('Get Data'!$A$8:$G$8616,MATCH(A152,'Get Data'!$A$8:$A$8616,1),7),"--") -> -- | H152: -- | I152: --
A153: 1939-08-31 | B153: -0.0655 | C153: -0.045 | D153: -0.0299 | E153: 0.059 | F153: -0.0001 | G153: =IFERROR(INDEX('Get Data'!$A$8:$G$8616,MATCH(A153,'Get Data'!$A$8:$A$8616,1),7),"--") -> -- | H153: -- | I153: --
A154: 1939-09-30 | B154: 0.1665 | C154: 0.1877 | D154: 0.2327 | E154: -0.3035 | F154: 0.0001 | G154: =IFERROR(INDEX('Get Data'!$A$8:$G$8616,MATCH(A154,'Get Data'!$A$8:$A$8616,1),7),"--") -> -- | H154: -- | I154: --
A155: 1939-10-31 | B155: -0.0049 | C155: 0.0026 | D155: -0.0466 | E155: 0.0648 | F155: 0 | G155: =IFERROR(INDEX('Get Data'!$A$8:$G$8616,MATCH(A155,'Get Data'!$A$8:$A$8616,1),7),"--") -> -- | H155: -- | I155: --
A156: 1939-11-30 | B156: -0.0358 | C156: -0.0443 | D156: -0.0654 | E156: -0.0022 | F156: 0 | G156: =IFERROR(INDEX('Get Data'!$A$8:$G$8616,MATCH(A156,'Get Data'!$A$8:$A$8616,1),7),"--") -> -- | H156: -- | I156: --
A157: 1939-12-31 | B157: 0.031 | C157: 0.0067 | D157: -0.0384 | E157: 0.054 | F157: 0 | G157: =IFERROR(INDEX('Get Data'!$A$8:$G$8616,MATCH(A157,'Get Data'!$A$8:$A$8616,1),7),"--") -> -- | H157: -- | I157: --
A158: 1940-01-31 | B158: -0.0239 | C158: 0.0021 | D158: -0.0075 | E158: 0.0174 | F158: 0 | G158: =IFERROR(INDEX('Get Data'!$A$8:$G$8616,MATCH(A158,'Get Data'!$A$8:$A$8616,1),7),"--") -> -- | H158: -- | I158: --
A159: 1940-02-29 | B159: 0.0133 | C159: 0.0232 | D159: -0.0044 | E159: 0.0181 | F159: 0 | G159: =IFERROR(INDEX('Get Data'!$A$8:$G$8616,MATCH(A159,'Get Data'!$A$8:$A$8616,1),7),"--") -> -- | H159: -- | I159: --
A160: 1940-03-30 | B160: 0.0207 | C160: 0.0163 | D160: -0.0112 | E160: -0.0036 | F160: 0 | G160: =IFERROR(INDEX('Get Data'!$A$8:$G$8616,MATCH(A160,'Get Data'!$A$8:$A$8616,1),7),"--") -> -- | H160: -- | I160: --
A161: 1940-04-30 | B161: 0.0025 | C161: 0.0357 | D161: -0.0028 | E161: 0.0333 | F161: 0 | G161: =IFERROR(INDEX('Get Data'!$A$8:$G$8616,MATCH(A161,'Get Data'!$A$8:$A$8616,1),7),"--") -> -- | H161: -- | I161: --
A162: 1940-05-31 | B162: -0.2186 | C162: -0.0621 | D162: -0.0404 | E162: 0.0286 | F162: -0.0002 | G162: =IFERROR(INDEX('Get Data'!$A$8:$G$8616,MATCH(A162,'Get Data'!$A$8:$A$8616,1),7),"--") -> -- | H162: -- | I162: --
A163: 1940-06-29 | B163: 0.0666 | C163: -0.0234 | D163: 0.048 | E163: -0.0214 | F163: 0 | G163: =IFERROR(INDEX('Get Data'!$A$8:$G$8616,MATCH(A163,'Get Data'!$A$8:$A$8616,1),7),"--") -> -- | H163: -- | I163: --
A164: 1940-07-31 | B164: 0.0319 | C164: 0.0087 | D164: -0.0057 | E164: 0.0085 | F164: 0.0001 | G164: =IFERROR(INDEX('Get Data'!$A$8:$G$8616,MATCH(A164,'Get Data'!$A$8:$A$8616,1),7),"--") -> -- | H164: -- | I164: --
A165: 1940-08-31 | B165: 0.0216 | C165: 0.0019 | D165: 0.0047 | E165: -0.0161 | F165: -0.0001 | G165: =IFERROR(INDEX('Get Data'!$A$8:$G$8616,MATCH(A165,'Get Data'!$A$8:$A$8616,1),7),"--") -> -- | H165: -- | I165: --
A166: 1940-09-30 | B166: 0.0239 | C166: 0.0339 | D166: -0.017 | E166: -0.0026 | F166: 0 | G166: =IFERROR(INDEX('Get Data'!$A$8:$G$8616,MATCH(A166,'Get Data'!$A$8:$A$8616,1),7),"--") -> -- | H166: -- | I166: --
A167: 1940-10-31 | B167: 0.0297 | C167: -0.0017 | D167: 0.0543 | E167: -0.0653 | F167: 0 | G167: =IFERROR(INDEX('Get Data'!$A$8:$G$8616,MATCH(A167,'Get Data'!$A$8:$A$8616,1),7),"--") -> -- | H167: -- | I167: --
A168: 1940-11-30 | B168: -0.0157 | C168: 0.0206 | D168: 0.0049 | E168: 0.0133 | F168: 0 | G168: =IFERROR(INDEX('Get Data'!$A$8:$G$8616,MATCH(A168,'Get Data'!$A$8:$A$8616,1),7),"--") -> -- | H168: -- | I168: --
A169: 1940-12-31 | B169: 0.0072 | C169: -0.0241 | D169: -0.0131 | E169: 0.0346 | F169: 0 | G169: =IFERROR(INDEX('Get Data'!$A$8:$G$8616,MATCH(A169,'Get Data'!$A$8:$A$8616,1),7),"--") -> -- | H169: -- | I169: --
A170: 1941-01-31 | B170: -0.0409 | C170: 0.0085 | D170: 0.0322 | E170: -0.0472 | F170: -0.0001 | G170: =IFERROR(INDEX('Get Data'!$A$8:$G$8616,MATCH(A170,'Get Data'!$A$8:$A$8616,1),7),"--") -> -- | H170: -- | I170: --
A171: 1941-02-28 | B171: -0.0153 | C171: -0.0121 | D171: 0.0105 | E171: 0.0091 | F171: -0.0001 | G171: =IFERROR(INDEX('Get Data'!$A$8:$G$8616,MATCH(A171,'Get Data'!$A$8:$A$8616,1),7),"--") -> -- | H171: -- | I171: --
A172: 1941-03-31 | B172: 0.0085 | C172: 0.0012 | D172: 0.0295 | E172: 0.0243 | F172: 0.0001 | G172: =IFERROR(INDEX('Get Data'!$A$8:$G$8616,MATCH(A172,'Get Data'!$A$8:$A$8616,1),7),"--") -> -- | H172: -- | I172: --
A173: 1941-04-30 | B173: -0.0536 | C173: -0.0169 | D173: 0.0343 | E173: 0.0303 | F173: -0.0001 | G173: =IFERROR(INDEX('Get Data'!$A$8:$G$8616,MATCH(A173,'Get Data'!$A$8:$A$8616,1),7),"--") -> -- | H173: -- | I173: --
A174: 1941-05-31 | B174: 0.0146 | C174: -0.0083 | D174: 0.0052 | E174: 0.0246 | F174: 0 | G174: =IFERROR(INDEX('Get Data'!$A$8:$G$8616,MATCH(A174,'Get Data'!$A$8:$A$8616,1),7),"--") -> -- | H174: -- | I174: --
A175: 1941-06-30 | B175: 0.0586 | C175: 0.0147 | D175: 0.0066 | E175: -0.0064 | F175: 0 | G175: =IFERROR(INDEX('Get Data'!$A$8:$G$8616,MATCH(A175,'Get Data'!$A$8:$A$8616,1),7),"--") -> -- | H175: -- | I175: --
A176: 1941-07-31 | B176: 0.0586 | C176: 0.0574 | D176: 0.0725 | E176: -0.0175 | F176: 0.0003 | G176: =IFERROR(INDEX('Get Data'!$A$8:$G$8616,MATCH(A176,'Get Data'!$A$8:$A$8616,1),7),"--") -> -- | H176: -- | I176: --
A177: 1941-08-30 | B177: -0.0011 | C177: -0.0016 | D177: -0.012 | E177: 0.0017 | F177: 0.0001 | G177: =IFERROR(INDEX('Get Data'!$A$8:$G$8616,MATCH(A177,'Get Data'!$A$8:$A$8616,1),7),"--") -> -- | H177: -- | I177: --
A178: 1941-09-30 | B178: -0.0086 | C178: -0.0143 | D178: 0.0028 | E178: -0.0157 | F178: 0.0001 | G178: =IFERROR(INDEX('Get Data'!$A$8:$G$8616,MATCH(A178,'Get Data'!$A$8:$A$8616,1),7),"--") -> -- | H178: -- | I178: --
A179: 1941-10-31 | B179: -0.0513 | C179: -0.021 | D179: 0.0131 | E179: 0.0474 | F179: 0 | G179: =IFERROR(INDEX('Get Data'!$A$8:$G$8616,MATCH(A179,'Get Data'!$A$8:$A$8616,1),7),"--") -> -- | H179: -- | I179: --
A180: 1941-11-29 | B180: -0.0183 | C180: -0.0105 | D180: -0.0064 | E180: 0.0404 | F180: 0 | G180: =IFERROR(INDEX('Get Data'!$A$8:$G$8616,MATCH(A180,'Get Data'!$A$8:$A$8616,1),7),"--") -> -- | H180: -- | I180: --
A181: 1941-12-31 | B181: -0.0488 | C181: -0.0333 | D181: -0.0504 | E181: 0.0028 | F181: 0.0001 | G181: =IFERROR(INDEX('Get Data'!$A$8:$G$8616,MATCH(A181,'Get Data'!$A$8:$A$8616,1),7),"--") -> -- | H181: -- | I181: --
A182: 1942-01-31 | B182: 0.006 | C182: 0.0751 | D182: 0.0993 | E182: -0.0358 | F182: 0.0002 | G182: =IFERROR(INDEX('Get Data'!$A$8:$G$8616,MATCH(A182,'Get Data'!$A$8:$A$8616,1),7),"--") -> -- | H182: -- | I182: --
A183: 1942-02-28 | B183: -0.0251 | C183: 0.0169 | D183: -0.0106 | E183: -0.0071 | F183: 0.0001 | G183: =IFERROR(INDEX('Get Data'!$A$8:$G$8616,MATCH(A183,'Get Data'!$A$8:$A$8616,1),7),"--") -> -- | H183: -- | I183: --
A184: 1942-03-31 | B184: -0.0664 | C184: 0.0229 | D184: -0.0122 | E184: -0.0021 | F184: 0.0001 | G184: =IFERROR(INDEX('Get Data'!$A$8:$G$8616,MATCH(A184,'Get Data'!$A$8:$A$8616,1),7),"--") -> -- | H184: -- | I184: --
A185: 1942-04-30 | B185: -0.0433 | C185: -0.0103 | D185: 0.0187 | E185: -0.0079 | F185: 0.0001 | G185: =IFERROR(INDEX('Get Data'!$A$8:$G$8616,MATCH(A185,'Get Data'!$A$8:$A$8616,1),7),"--") -> -- | H185: -- | I185: --
A186: 1942-05-29 | B186: 0.0602 | C186: -0.0303 | D186: -0.0297 | E186: -0.0471 | F186: 0.0003 | G186: =IFERROR(INDEX('Get Data'!$A$8:$G$8616,MATCH(A186,'Get Data'!$A$8:$A$8616,1),7),"--") -> -- | H186: -- | I186: --
A187: 1942-06-30 | B187: 0.0267 | C187: -0.009 | D187: 0.0025 | E187: -0.0132 | F187: 0.0002 | G187: =IFERROR(INDEX('Get Data'!$A$8:$G$8616,MATCH(A187,'Get Data'!$A$8:$A$8616,1),7),"--") -> -- | H187: -- | I187: --
A188: 1942-07-31 | B188: 0.0346 | C188: -0.0033 | D188: 0.0256 | E188: 0.0077 | F188: 0.0003 | G188: =IFERROR(INDEX('Get Data'!$A$8:$G$8616,MATCH(A188,'Get Data'!$A$8:$A$8616,1),7),"--") -> -- | H188: -- | I188: --
A189: 1942-08-31 | B189: 0.0182 | C189: -0.0039 | D189: 0.0194 | E189: -0.0013 | F189: 0.0003 | G189: =IFERROR(INDEX('Get Data'!$A$8:$G$8616,MATCH(A189,'Get Data'!$A$8:$A$8616,1),7),"--") -> -- | H189: -- | I189: --
A190: 1942-09-30 | B190: 0.0253 | C190: 0.0014 | D190: 0.034 | E190: -0.0064 | F190: 0.0003 | G190: =IFERROR(INDEX('Get Data'!$A$8:$G$8616,MATCH(A190,'Get Data'!$A$8:$A$8616,1),7),"--") -> -- | H190: -- | I190: --
A191: 1942-10-31 | B191: 0.0667 | C191: 0.0139 | D191: 0.0668 | E191: -0.0401 | F191: 0.0003 | G191: =IFERROR(INDEX('Get Data'!$A$8:$G$8616,MATCH(A191,'Get Data'!$A$8:$A$8616,1),7),"--") -> -- | H191: -- | I191: --
A192: 1942-11-30 | B192: 0.0028 | C192: -0.0077 | D192: -0.0535 | E192: -0.0097 | F192: 0.0003 | G192: =IFERROR(INDEX('Get Data'!$A$8:$G$8616,MATCH(A192,'Get Data'!$A$8:$A$8616,1),7),"--") -> -- | H192: -- | I192: --
A193: 1942-12-31 | B193: 0.0502 | C193: -0.0209 | D193: 0.0078 | E193: 0.0306 | F193: 0.0003 | G193: =IFERROR(INDEX('Get Data'!$A$8:$G$8616,MATCH(A193,'Get Data'!$A$8:$A$8616,1),7),"--") -> -- | H193: -- | I193: --
A194: 1943-01-30 | B194: 0.0711 | C194: 0.0834 | D194: 0.0766 | E194: -0.0036 | F194: 0.0003 | G194: =IFERROR(INDEX('Get Data'!$A$8:$G$8616,MATCH(A194,'Get Data'!$A$8:$A$8616,1),7),"--") -> -- | H194: -- | I194: =IFERROR(H194-F194,"--") -> --
A195: 1943-02-27 | B195: 0.0609 | C195: 0.0447 | D195: 0.0641 | E195: -0.0146 | F195: 0.0003 | G195: =IFERROR(INDEX('Get Data'!$A$8:$G$8616,MATCH(A195,'Get Data'!$A$8:$A$8616,1),7),"--") -> -- | H195: =IFERROR(G195/G194-1,"--") -> -- | I195: --
A196: 1943-03-31 | B196: 0.0604 | C196: 0.0466 | D196: 0.0552 | E196: 0.0474 | F196: 0.0003 | G196: =IFERROR(INDEX('Get Data'!$A$8:$G$8616,MATCH(A196,'Get Data'!$A$8:$A$8616,1),7),"--") -> -- | H196: -- | I196: --
A197: 1943-04-30 | B197: 0.0077 | C197: 0.0192 | D197: 0.0636 | E197: 0.0618 | F197: 0.0003 | G197: =IFERROR(INDEX('Get Data'!$A$8:$G$8616,MATCH(A197,'Get Data'!$A$8:$A$8616,1),7),"--") -> -- | H197: -- | I197: --
A198: 1943-05-29 | B198: 0.0573 | C198: 0.042 | D198: 0.0313 | E198: 0.0561 | F198: 0.0003 | G198: =IFERROR(INDEX('Get Data'!$A$8:$G$8616,MATCH(A198,'Get Data'!$A$8:$A$8616,1),7),"--") -> -- | H198: -- | I198: --
A199: 1943-06-30 | B199: 0.0177 | C199: -0.0063 | D199: -0.0095 | E199: -0.013 | F199: 0.0003 | G199: =IFERROR(INDEX('Get Data'!$A$8:$G$8616,MATCH(A199,'Get Data'!$A$8:$A$8616,1),7),"--") -> -- | H199: -- | I199: --
A200: 1943-07-31 | B200: -0.0461 | C200: -0.0268 | D200: -0.0247 | E200: -0.0459 | F200: 0.0003 | G200: =IFERROR(INDEX('Get Data'!$A$8:$G$8616,MATCH(A200,'Get Data'!$A$8:$A$8616,1),7),"--") -> -- | H200: -- | I200: --
... 873 more rows

Sheet QMJ factor
B1: Mkt-RF | C1: SMB | D1: HML | E1: QMJ | F1: RF | G1: =ticker -> FVDFX | H1: Return | I1: Excess Return | K1: Factor Model Analysis
A2: 1957-07-31 | B2: 0.0066 | C2: -0.0076 | D2: 0.0039 | E2: 0.01160559 | F2: 0.003 | G2: =IFERROR(INDEX('Get Data'!$A$8:$G$8616,MATCH(A2,'Get Data'!$A$8:$A$8616,1),7),"--") -> -- | H2: =IFERROR(G2/#REF!-1,"--") -> -- | I2: =IFERROR(H2-F2,"--") -> -- | K2: Asset Pricing Model | L2: Alpha (annual) | M2: Rm-rf | N2: SMB | O2: HML | P2: QMJ
A3: 1957-08-31 | B3: -0.0511 | C3: 0.0007 | D3: -0.0045 | E3: 0.004413807 | F3: 0.0025 | G3: =IFERROR(INDEX('Get Data'!$A$8:$G$8616,MATCH(A3,'Get Data'!$A$8:$A$8616,1),7),"--") -> -- | H3: =IFERROR(G3/G2-1,"--") -> -- | I3: -- | K3: QMJ 4-factor Model | L3: =INDEX(LINEST(INDIRECT($I$694),INDIRECT($D$694),,1),1,5)*12 -> 0.000929281527 | M3: =INDEX(LINEST(INDIRECT($I$694),INDIRECT($D$694),,1),1,4) -> 1.031769152 | N3: =INDEX(LINEST(INDIRECT($I$694),INDIRECT($D$694),,1),1,3) -> 0.02827531707 | O3: =INDEX(LINEST(INDIRECT($I$694),INDIRECT($D$694),,1),1,2) -> 0.2029968627 | P3: =INDEX(LINEST(INDIRECT($I$694),INDIRECT($D$694),,1),1,1) -> -0.06980856854
A4: 1957-09-30 | B4: -0.0598 | C4: 0.0007 | D4: 0.0088 | E4: 0.005898284 | F4: 0.0026 | G4: =IFERROR(INDEX('Get Data'!$A$8:$G$8616,MATCH(A4,'Get Data'!$A$8:$A$8616,1),7),"--") -> -- | H4: =IFERROR(G4/G3-1,"--") -> -- | I4: -- | K4: p-value | L4: =TDIST(ABS(INDEX(LINEST(INDIRECT($I$694),INDIRECT($D$694),,1),1,5)/INDEX(LINEST(INDIRECT($I$694),INDIRECT($D$694),,1),2,5)),INDEX(LINEST(INDIRECT($I$694),INDIRECT($D$694),,1),4,2),2) -> 0.9253622098 | M4: =TDIST(ABS(INDEX(LINEST(INDIRECT($I$694),INDIRECT($D$694),,1),1,4)/INDEX(LINEST(INDIRECT($I$694),INDIRECT($D$694),,1),2,4)),INDEX(LINEST(INDIRECT($I$694),INDIRECT($D$694),,1),4,2),2) -> 1.344961246e-72 | N4: =TDIST(ABS(INDEX(LINEST(INDIRECT($I$694),INDIRECT($D$694),,1),1,3)/INDEX(LINEST(INDIRECT($I$694),INDIRECT($D$694),,1),2,3)),INDEX(LINEST(INDIRECT($I$694),INDIRECT($D$694),,1),4,2),2) -> 0.4696545749 | O4: =TDIST(ABS(INDEX(LINEST(INDIRECT($I$694),INDIRECT($D$694),,1),1,2)/INDEX(LINEST(INDIRECT($I$694),INDIRECT($D$694),,1),2,2)),INDEX(LINEST(INDIRECT($I$694),INDIRECT($D$694),,1),4,2),2) -> 9.129700845e-07 | P4: =TDIST(ABS(INDEX(LINEST(INDIRECT($I$694),INDIRECT($D$694),,1),1,1)/INDEX(LINEST(INDIRECT($I$694),INDIRECT($D$694),,1),2,1)),INDEX(LINEST(INDIRECT($I$694),INDIRECT($D$694),,1),4,2),2) -> 0.148760203
A5: 1957-10-31 | B5: -0.0432 | C5: -0.0252 | D5: -0.0183 | E5: 0.0149603 | F5: 0.0029 | G5: =IFERROR(INDEX('Get Data'!$A$8:$G$8616,MATCH(A5,'Get Data'!$A$8:$A$8616,1),7),"--") -> -- | H5: =IFERROR(G5/G4-1,"--") -> -- | I5: --
A6: 1957-11-30 | B6: 0.023 | C6: 0.0041 | D6: -0.029 | E6: -0.0129947 | F6: 0.0028 | G6: =IFERROR(INDEX('Get Data'!$A$8:$G$8616,MATCH(A6,'Get Data'!$A$8:$A$8616,1),7),"--") -> -- | H6: -- | I6: --
A7: 1957-12-31 | B7: -0.0391 | C7: -0.0092 | D7: -0.0172 | E7: -0.0005013555 | F7: 0.0024 | G7: =IFERROR(INDEX('Get Data'!$A$8:$G$8616,MATCH(A7,'Get Data'!$A$8:$A$8616,1),7),"--") -> -- | H7: -- | I7: --
A8: 1958-01-31 | B8: 0.0466 | C8: 0.0437 | D8: 0.0422 | E8: -0.02199428 | F8: 0.0028 | G8: =IFERROR(INDEX('Get Data'!$A$8:$G$8616,MATCH(A8,'Get Data'!$A$8:$A$8616,1),7),"--") -> -- | H8: -- | I8: --
A9: 1958-02-28 | B9: -0.0152 | C9: 0.007 | D9: 0.0028 | E9: -0.002805078 | F9: 0.0012 | G9: =IFERROR(INDEX('Get Data'!$A$8:$G$8616,MATCH(A9,'Get Data'!$A$8:$A$8616,1),7),"--") -> -- | H9: -- | I9: --
A10: 1958-03-31 | B10: 0.0327 | C10: 0.0063 | D10: -0.0092 | E10: 0.01670662 | F10: 0.0009 | G10: =IFERROR(INDEX('Get Data'!$A$8:$G$8616,MATCH(A10,'Get Data'!$A$8:$A$8616,1),7),"--") -> -- | H10: -- | I10: --
A11: 1958-04-30 | B11: 0.0309 | C11: -0.0059 | D11: 0.0147 | E11: 0.003584601 | F11: 0.0008 | G11: =IFERROR(INDEX('Get Data'!$A$8:$G$8616,MATCH(A11,'Get Data'!$A$8:$A$8616,1),7),"--") -> -- | H11: -- | I11: --
A12: 1958-05-31 | B12: 0.0231 | C12: 0.0223 | D12: -0.0035 | E12: -0.01560034 | F12: 0.0011 | G12: =IFERROR(INDEX('Get Data'!$A$8:$G$8616,MATCH(A12,'Get Data'!$A$8:$A$8616,1),7),"--") -> -- | H12: -- | I12: --
A13: 1958-06-30 | B13: 0.0293 | C13: -0.0024 | D13: 0.0051 | E13: 0.01017123 | F13: 0.0003 | G13: =IFERROR(INDEX('Get Data'!$A$8:$G$8616,MATCH(A13,'Get Data'!$A$8:$A$8616,1),7),"--") -> -- | H13: -- | I13: --
A14: 1958-07-31 | B14: 0.0439 | C14: 0.0048 | D14: 0.031 | E14: 0.003793052 | F14: 0.0007 | G14: =IFERROR(INDEX('Get Data'!$A$8:$G$8616,MATCH(A14,'Get Data'!$A$8:$A$8616,1),7),"--") -> -- | H14: -- | I14: --
A15: 1958-08-31 | B15: 0.0191 | C15: 0.0117 | D15: 0.0031 | E15: 0.009703066 | F15: 0.0004 | G15: =IFERROR(INDEX('Get Data'!$A$8:$G$8616,MATCH(A15,'Get Data'!$A$8:$A$8616,1),7),"--") -> -- | H15: -- | I15: --
A16: 1958-09-30 | B16: 0.0466 | C16: 0.0014 | D16: 0.0298 | E16: -0.01592617 | F16: 0.0019 | G16: =IFERROR(INDEX('Get Data'!$A$8:$G$8616,MATCH(A16,'Get Data'!$A$8:$A$8616,1),7),"--") -> -- | H16: -- | I16: --
A17: 1958-10-31 | B17: 0.0253 | C17: 0.0113 | D17: -0.0118 | E17: -0.01390743 | F17: 0.0018 | G17: =IFERROR(INDEX('Get Data'!$A$8:$G$8616,MATCH(A17,'Get Data'!$A$8:$A$8616,1),7),"--") -> -- | H17: -- | I17: --
A18: 1958-11-30 | B18: 0.0301 | C18: 0.0204 | D18: -0.0128 | E18: 0.01360744 | F18: 0.0011 | G18: =IFERROR(INDEX('Get Data'!$A$8:$G$8616,MATCH(A18,'Get Data'!$A$8:$A$8616,1),7),"--") -> -- | H18: -- | I18: --
A19: 1958-12-31 | B19: 0.0515 | C19: -0.0205 | D19: -0.0008 | E19: -0.01227774 | F19: 0.0022 | G19: =IFERROR(INDEX('Get Data'!$A$8:$G$8616,MATCH(A19,'Get Data'!$A$8:$A$8616,1),7),"--") -> -- | H19: -- | I19: --
A20: 1959-01-31 | B20: 0.0071 | C20: 0.03 | D20: 0.0303 | E20: 0.0126152 | F20: 0.0021 | G20: =IFERROR(INDEX('Get Data'!$A$8:$G$8616,MATCH(A20,'Get Data'!$A$8:$A$8616,1),7),"--") -> -- | H20: -- | I20: =IFERROR(H20-F20,"--") -> --
A21: 1959-02-28 | B21: 0.0095 | C21: 0.0153 | D21: 0.0099 | E21: -0.01914774 | F21: 0.0019 | G21: =IFERROR(INDEX('Get Data'!$A$8:$G$8616,MATCH(A21,'Get Data'!$A$8:$A$8616,1),7),"--") -> -- | H21: =IFERROR(G21/G20-1,"--") -> -- | I21: --
A22: 1959-03-31 | B22: 0.0028 | C22: 0.0149 | D22: -0.0038 | E22: -0.009312348 | F22: 0.0022 | G22: =IFERROR(INDEX('Get Data'!$A$8:$G$8616,MATCH(A22,'Get Data'!$A$8:$A$8616,1),7),"--") -> -- | H22: -- | I22: --
A23: 1959-04-30 | B23: 0.0366 | C23: -0.0054 | D23: -0.0132 | E23: 0.02510846 | F23: 0.002 | G23: =IFERROR(INDEX('Get Data'!$A$8:$G$8616,MATCH(A23,'Get Data'!$A$8:$A$8616,1),7),"--") -> -- | H23: -- | I23: --
A24: 1959-05-31 | B24: 0.0173 | C24: -0.0211 | D24: 0.0178 | E24: 0.002902034 | F24: 0.0022 | G24: =IFERROR(INDEX('Get Data'!$A$8:$G$8616,MATCH(A24,'Get Data'!$A$8:$A$8616,1),7),"--") -> -- | H24: -- | I24: --
A25: 1959-06-30 | B25: -0.0025 | C25: 0.0066 | D25: 0.0138 | E25: 0.004359898 | F25: 0.0025 | G25: =IFERROR(INDEX('Get Data'!$A$8:$G$8616,MATCH(A25,'Get Data'!$A$8:$A$8616,1),7),"--") -> -- | H25: -- | I25: --
A26: 1959-07-31 | B26: 0.0317 | C26: -0.0033 | D26: 0.0028 | E26: 0.01335698 | F26: 0.0025 | G26: =IFERROR(INDEX('Get Data'!$A$8:$G$8616,MATCH(A26,'Get Data'!$A$8:$A$8616,1),7),"--") -> -- | H26: -- | I26: --
A27: 1959-08-31 | B27: -0.0139 | C27: -0.0078 | D27: 0.004 | E27: 0.009657715 | F27: 0.0019 | G27: =IFERROR(INDEX('Get Data'!$A$8:$G$8616,MATCH(A27,'Get Data'!$A$8:$A$8616,1),7),"--") -> -- | H27: -- | I27: --
A28: 1959-09-30 | B28: -0.048 | C28: -0.0008 | D28: 0.005 | E28: 0.01040186 | F28: 0.0031 | G28: =IFERROR(INDEX('Get Data'!$A$8:$G$8616,MATCH(A28,'Get Data'!$A$8:$A$8616,1),7),"--") -> -- | H28: -- | I28: --
A29: 1959-10-31 | B29: 0.0128 | C29: 0.0143 | D29: -0.0204 | E29: -0.004508738 | F29: 0.003 | G29: =IFERROR(INDEX('Get Data'!$A$8:$G$8616,MATCH(A29,'Get Data'!$A$8:$A$8616,1),7),"--") -> -- | H29: -- | I29: --
A30: 1959-11-30 | B30: 0.016 | C30: 0.0129 | D30: -0.0327 | E30: 0.02059801 | F30: 0.0026 | G30: =IFERROR(INDEX('Get Data'!$A$8:$G$8616,MATCH(A30,'Get Data'!$A$8:$A$8616,1),7),"--") -> -- | H30: -- | I30: --
A31: 1959-12-31 | B31: 0.0245 | C31: -0.006 | D31: -0.0008 | E31: 0.008414845 | F31: 0.0034 | G31: =IFERROR(INDEX('Get Data'!$A$8:$G$8616,MATCH(A31,'Get Data'!$A$8:$A$8616,1),7),"--") -> -- | H31: -- | I31: --
A32: 1960-01-31 | B32: -0.0698 | C32: 0.0205 | D32: 0.0269 | E32: 0.005738581 | F32: 0.0033 | G32: =IFERROR(INDEX('Get Data'!$A$8:$G$8616,MATCH(A32,'Get Data'!$A$8:$A$8616,1),7),"--") -> -- | H32: -- | I32: --
A33: 1960-02-29 | B33: 0.0117 | C33: 0.0056 | D33: -0.0203 | E33: 0.0122563 | F33: 0.0029 | G33: =IFERROR(INDEX('Get Data'!$A$8:$G$8616,MATCH(A33,'Get Data'!$A$8:$A$8616,1),7),"--") -> -- | H33: -- | I33: --
A34: 1960-03-31 | B34: -0.0163 | C34: -0.0047 | D34: -0.0284 | E34: 0.02872686 | F34: 0.0035 | G34: =IFERROR(INDEX('Get Data'!$A$8:$G$8616,MATCH(A34,'Get Data'!$A$8:$A$8616,1),7),"--") -> -- | H34: -- | I34: --
A35: 1960-04-30 | B35: -0.0171 | C35: 0.0039 | D35: -0.0237 | E35: 0.0193171 | F35: 0.0019 | G35: =IFERROR(INDEX('Get Data'!$A$8:$G$8616,MATCH(A35,'Get Data'!$A$8:$A$8616,1),7),"--") -> -- | H35: -- | I35: --
A36: 1960-05-31 | B36: 0.0312 | C36: 0.0127 | D36: -0.0372 | E36: -0.001680063 | F36: 0.0027 | G36: =IFERROR(INDEX('Get Data'!$A$8:$G$8616,MATCH(A36,'Get Data'!$A$8:$A$8616,1),7),"--") -> -- | H36: -- | I36: --
A37: 1960-06-30 | B37: 0.0208 | C37: -0.0017 | D37: -0.0026 | E37: 0.01625714 | F37: 0.0024 | G37: =IFERROR(INDEX('Get Data'!$A$8:$G$8616,MATCH(A37,'Get Data'!$A$8:$A$8616,1),7),"--") -> -- | H37: -- | I37: --
A38: 1960-07-31 | B38: -0.0237 | C38: -0.0057 | D38: 0.0212 | E38: 0.004336886 | F38: 0.0013 | G38: =IFERROR(INDEX('Get Data'!$A$8:$G$8616,MATCH(A38,'Get Data'!$A$8:$A$8616,1),7),"--") -> -- | H38: -- | I38: --
A39: 1960-08-31 | B39: 0.0301 | C39: 0.0088 | D39: -0.0017 | E39: -0.01095884 | F39: 0.0017 | G39: =IFERROR(INDEX('Get Data'!$A$8:$G$8616,MATCH(A39,'Get Data'!$A$8:$A$8616,1),7),"--") -> -- | H39: -- | I39: --
A40: 1960-09-30 | B40: -0.0599 | C40: -0.0114 | D40: 0.0162 | E40: 0.004630664 | F40: 0.0016 | G40: =IFERROR(INDEX('Get Data'!$A$8:$G$8616,MATCH(A40,'Get Data'!$A$8:$A$8616,1),7),"--") -> -- | H40: -- | I40: --
A41: 1960-10-31 | B41: -0.0071 | C41: -0.0395 | D41: 0.0261 | E41: 0.02160496 | F41: 0.0022 | G41: =IFERROR(INDEX('Get Data'!$A$8:$G$8616,MATCH(A41,'Get Data'!$A$8:$A$8616,1),7),"--") -> -- | H41: -- | I41: --
A42: 1960-11-30 | B42: 0.0469 | C42: 0.0029 | D42: -0.024 | E42: -0.004639767 | F42: 0.0013 | G42: =IFERROR(INDEX('Get Data'!$A$8:$G$8616,MATCH(A42,'Get Data'!$A$8:$A$8616,1),7),"--") -> -- | H42: -- | I42: --
A43: 1960-12-31 | B43: 0.0471 | C43: -0.016 | D43: -0.0071 | E43: -0.0163796 | F43: 0.0016 | G43: =IFERROR(INDEX('Get Data'!$A$8:$G$8616,MATCH(A43,'Get Data'!$A$8:$A$8616,1),7),"--") -> -- | H43: -- | I43: --
A44: 1961-01-31 | B44: 0.062 | C44: 0.0068 | D44: 0.0367 | E44: -0.002280141 | F44: 0.0019 | G44: =IFERROR(INDEX('Get Data'!$A$8:$G$8616,MATCH(A44,'Get Data'!$A$8:$A$8616,1),7),"--") -> -- | H44: -- | I44: --
A45: 1961-02-28 | B45: 0.0357 | C45: 0.0394 | D45: -0.0068 | E45: -0.01832508 | F45: 0.0014 | G45: =IFERROR(INDEX('Get Data'!$A$8:$G$8616,MATCH(A45,'Get Data'!$A$8:$A$8616,1),7),"--") -> -- | H45: -- | I45: --
A46: 1961-03-31 | B46: 0.0289 | C46: 0.032 | D46: -0.0068 | E46: -0.01427905 | F46: 0.002 | G46: =IFERROR(INDEX('Get Data'!$A$8:$G$8616,MATCH(A46,'Get Data'!$A$8:$A$8616,1),7),"--") -> -- | H46: -- | I46: --
A47: 1961-04-30 | B47: 0.0029 | C47: 0.0012 | D47: 0.0204 | E47: 0.007687258 | F47: 0.0017 | G47: =IFERROR(INDEX('Get Data'!$A$8:$G$8616,MATCH(A47,'Get Data'!$A$8:$A$8616,1),7),"--") -> -- | H47: -- | I47: --
A48: 1961-05-31 | B48: 0.024 | C48: 0.0193 | D48: 0.0051 | E48: -0.01409242 | F48: 0.0018 | G48: =IFERROR(INDEX('Get Data'!$A$8:$G$8616,MATCH(A48,'Get Data'!$A$8:$A$8616,1),7),"--") -> -- | H48: -- | I48: --
A49: 1961-06-30 | B49: -0.0308 | C49: -0.0247 | D49: -0.0019 | E49: 0.02383069 | F49: 0.002 | G49: =IFERROR(INDEX('Get Data'!$A$8:$G$8616,MATCH(A49,'Get Data'!$A$8:$A$8616,1),7),"--") -> -- | H49: -- | I49: --
A50: 1961-07-31 | B50: 0.0283 | C50: -0.019 | D50: -0.0013 | E50: -0.002738599 | F50: 0.0018 | G50: =IFERROR(INDEX('Get Data'!$A$8:$G$8616,MATCH(A50,'Get Data'!$A$8:$A$8616,1),7),"--") -> -- | H50: -- | I50: --
A51: 1961-08-31 | B51: 0.0257 | C51: -0.0181 | D51: -0.0019 | E51: 0.02216666 | F51: 0.0014 | G51: =IFERROR(INDEX('Get Data'!$A$8:$G$8616,MATCH(A51,'Get Data'!$A$8:$A$8616,1),7),"--") -> -- | H51: -- | I51: --
A52: 1961-09-30 | B52: -0.0215 | C52: -0.0112 | D52: -0.0048 | E52: 0.0143025 | F52: 0.0017 | G52: =IFERROR(INDEX('Get Data'!$A$8:$G$8616,MATCH(A52,'Get Data'!$A$8:$A$8616,1),7),"--") -> -- | H52: -- | I52: --
A53: 1961-10-31 | B53: 0.0257 | C53: -0.0198 | D53: 0.0061 | E53: 0.04280733 | F53: 0.0019 | G53: =IFERROR(INDEX('Get Data'!$A$8:$G$8616,MATCH(A53,'Get Data'!$A$8:$A$8616,1),7),"--") -> -- | H53: -- | I53: --
A54: 1961-11-30 | B54: 0.0445 | C54: 0.0105 | D54: -0.009 | E54: -0.003089615 | F54: 0.0015 | G54: =IFERROR(INDEX('Get Data'!$A$8:$G$8616,MATCH(A54,'Get Data'!$A$8:$A$8616,1),7),"--") -> -- | H54: -- | I54: --
A55: 1961-12-31 | B55: -0.0018 | C55: -0.0112 | D55: 0.0221 | E55: -0.01791911 | F55: 0.0019 | G55: =IFERROR(INDEX('Get Data'!$A$8:$G$8616,MATCH(A55,'Get Data'!$A$8:$A$8616,1),7),"--") -> -- | H55: -- | I55: --
A56: 1962-01-31 | B56: -0.0387 | C56: 0.0184 | D56: 0.0499 | E56: -0.0005279655 | F56: 0.0024 | G56: =IFERROR(INDEX('Get Data'!$A$8:$G$8616,MATCH(A56,'Get Data'!$A$8:$A$8616,1),7),"--") -> -- | H56: -- | I56: --
A57: 1962-02-28 | B57: 0.0181 | C57: -0.0119 | D57: 0.0089 | E57: 0.0135978 | F57: 0.002 | G57: =IFERROR(INDEX('Get Data'!$A$8:$G$8616,MATCH(A57,'Get Data'!$A$8:$A$8616,1),7),"--") -> -- | H57: -- | I57: --
A58: 1962-03-31 | B58: -0.0068 | C58: 0.0023 | D58: -0.0101 | E58: -0.003460603 | F58: 0.002 | G58: =IFERROR(INDEX('Get Data'!$A$8:$G$8616,MATCH(A58,'Get Data'!$A$8:$A$8616,1),7),"--") -> -- | H58: -- | I58: --
A59: 1962-04-30 | B59: -0.0659 | C59: -0.0098 | D59: 0.0047 | E59: 0.01262161 | F59: 0.0022 | G59: =IFERROR(INDEX('Get Data'!$A$8:$G$8616,MATCH(A59,'Get Data'!$A$8:$A$8616,1),7),"--") -> -- | H59: -- | I59: --
A60: 1962-05-31 | B60: -0.0865 | C60: -0.0301 | D60: 0.0231 | E60: 0.004848777 | F60: 0.0024 | G60: =IFERROR(INDEX('Get Data'!$A$8:$G$8616,MATCH(A60,'Get Data'!$A$8:$A$8616,1),7),"--") -> -- | H60: -- | I60: --
A61: 1962-06-30 | B61: -0.0847 | C61: -0.0077 | D61: 0.028 | E61: -0.01182714 | F61: 0.002 | G61: =IFERROR(INDEX('Get Data'!$A$8:$G$8616,MATCH(A61,'Get Data'!$A$8:$A$8616,1),7),"--") -> -- | H61: -- | I61: --
A62: 1962-07-31 | B62: 0.0628 | C62: 0.016 | D62: -0.036 | E62: 0.0014505 | F62: 0.0027 | G62: =IFERROR(INDEX('Get Data'!$A$8:$G$8616,MATCH(A62,'Get Data'!$A$8:$A$8616,1),7),"--") -> -- | H62: -- | I62: --
A63: 1962-08-31 | B63: 0.0213 | C63: 0.0124 | D63: -0.0124 | E63: 0.002110222 | F63: 0.0023 | G63: =IFERROR(INDEX('Get Data'!$A$8:$G$8616,MATCH(A63,'Get Data'!$A$8:$A$8616,1),7),"--") -> -- | H63: -- | I63: --
A64: 1962-09-30 | B64: -0.0522 | C64: -0.0248 | D64: 0.0132 | E64: 0.004976819 | F64: 0.0021 | G64: =IFERROR(INDEX('Get Data'!$A$8:$G$8616,MATCH(A64,'Get Data'!$A$8:$A$8616,1),7),"--") -> -- | H64: -- | I64: --
A65: 1962-10-31 | B65: -0.0005 | C65: -0.0401 | D65: 0.0136 | E65: 0.008315323 | F65: 0.0025 | G65: =IFERROR(INDEX('Get Data'!$A$8:$G$8616,MATCH(A65,'Get Data'!$A$8:$A$8616,1),7),"--") -> -- | H65: -- | I65: --
A66: 1962-11-30 | B66: 0.1087 | C66: 0.0258 | D66: 0.0104 | E66: -0.02139144 | F66: 0.002 | G66: =IFERROR(INDEX('Get Data'!$A$8:$G$8616,MATCH(A66,'Get Data'!$A$8:$A$8616,1),7),"--") -> -- | H66: -- | I66: --
A67: 1962-12-31 | B67: 0.0101 | C67: -0.0379 | D67: 0.0033 | E67: 0.01316001 | F67: 0.0023 | G67: =IFERROR(INDEX('Get Data'!$A$8:$G$8616,MATCH(A67,'Get Data'!$A$8:$A$8616,1),7),"--") -> -- | H67: -- | I67: --
A68: 1963-01-31 | B68: 0.0493 | C68: 0.031 | D68: 0.0219 | E68: -0.01065 | F68: 0.0025 | G68: =IFERROR(INDEX('Get Data'!$A$8:$G$8616,MATCH(A68,'Get Data'!$A$8:$A$8616,1),7),"--") -> -- | H68: -- | I68: --
A69: 1963-02-28 | B69: -0.0238 | C69: 0.0048 | D69: 0.0225 | E69: -0.005000433 | F69: 0.0023 | G69: =IFERROR(INDEX('Get Data'!$A$8:$G$8616,MATCH(A69,'Get Data'!$A$8:$A$8616,1),7),"--") -> -- | H69: -- | I69: --
A70: 1963-03-31 | B70: 0.0308 | C70: -0.0251 | D70: 0.0193 | E70: 0.004146451 | F70: 0.0023 | G70: =IFERROR(INDEX('Get Data'!$A$8:$G$8616,MATCH(A70,'Get Data'!$A$8:$A$8616,1),7),"--") -> -- | H70: -- | I70: --
A71: 1963-04-30 | B71: 0.0451 | C71: -0.0132 | D71: 0.0103 | E71: 0.002822453 | F71: 0.0025 | G71: =IFERROR(INDEX('Get Data'!$A$8:$G$8616,MATCH(A71,'Get Data'!$A$8:$A$8616,1),7),"--") -> -- | H71: -- | I71: --
A72: 1963-05-31 | B72: 0.0176 | C72: 0.0107 | D72: 0.0256 | E72: -0.009386305 | F72: 0.0024 | G72: =IFERROR(INDEX('Get Data'!$A$8:$G$8616,MATCH(A72,'Get Data'!$A$8:$A$8616,1),7),"--") -> -- | H72: -- | I72: --
A73: 1963-06-30 | B73: -0.02 | C73: -0.0027 | D73: 0.0073 | E73: 0.006249742 | F73: 0.0023 | G73: =IFERROR(INDEX('Get Data'!$A$8:$G$8616,MATCH(A73,'Get Data'!$A$8:$A$8616,1),7),"--") -> -- | H73: -- | I73: --
A74: 1963-07-31 | B74: -0.0039 | C74: -0.0055 | D74: -0.0082 | E74: 0.001805509 | F74: 0.0027 | G74: =IFERROR(INDEX('Get Data'!$A$8:$G$8616,MATCH(A74,'Get Data'!$A$8:$A$8616,1),7),"--") -> -- | H74: -- | I74: --
A75: 1963-08-31 | B75: 0.0507 | C75: -0.0097 | D75: 0.0163 | E75: -0.005701795 | F75: 0.0025 | G75: =IFERROR(INDEX('Get Data'!$A$8:$G$8616,MATCH(A75,'Get Data'!$A$8:$A$8616,1),7),"--") -> -- | H75: -- | I75: --
A76: 1963-09-30 | B76: -0.0157 | C76: -0.0032 | D76: 0.0019 | E76: 0.007631072 | F76: 0.0027 | G76: =IFERROR(INDEX('Get Data'!$A$8:$G$8616,MATCH(A76,'Get Data'!$A$8:$A$8616,1),7),"--") -> -- | H76: -- | I76: --
A77: 1963-10-31 | B77: 0.0253 | C77: -0.0054 | D77: -0.0011 | E77: 0.02059194 | F77: 0.0029 | G77: =IFERROR(INDEX('Get Data'!$A$8:$G$8616,MATCH(A77,'Get Data'!$A$8:$A$8616,1),7),"--") -> -- | H77: -- | I77: --
A78: 1963-11-30 | B78: -0.0085 | C78: -0.011 | D78: 0.0166 | E78: -0.007303089 | F78: 0.0027 | G78: =IFERROR(INDEX('Get Data'!$A$8:$G$8616,MATCH(A78,'Get Data'!$A$8:$A$8616,1),7),"--") -> -- | H78: -- | I78: --
A79: 1963-12-31 | B79: 0.0183 | C79: -0.0196 | D79: -0.0011 | E79: 0.005247403 | F79: 0.0029 | G79: =IFERROR(INDEX('Get Data'!$A$8:$G$8616,MATCH(A79,'Get Data'!$A$8:$A$8616,1),7),"--") -> -- | H79: -- | I79: --
A80: 1964-01-31 | B80: 0.0224 | C80: -0.0018 | D80: 0.0164 | E80: 0.01065168 | F80: 0.003 | G80: =IFERROR(INDEX('Get Data'!$A$8:$G$8616,MATCH(A80,'Get Data'!$A$8:$A$8616,1),7),"--") -> -- | H80: -- | I80: --
A81: 1964-02-29 | B81: 0.0154 | C81: 0.0009 | D81: 0.0283 | E81: -0.005879816 | F81: 0.0026 | G81: =IFERROR(INDEX('Get Data'!$A$8:$G$8616,MATCH(A81,'Get Data'!$A$8:$A$8616,1),7),"--") -> -- | H81: -- | I81: --
A82: 1964-03-31 | B82: 0.0141 | C82: 0.01 | D82: 0.0336 | E82: -0.008572087 | F82: 0.0031 | G82: =IFERROR(INDEX('Get Data'!$A$8:$G$8616,MATCH(A82,'Get Data'!$A$8:$A$8616,1),7),"--") -> -- | H82: -- | I82: --
A83: 1964-04-30 | B83: 0.001 | C83: -0.0141 | D83: -0.0042 | E83: 0.009185591 | F83: 0.0029 | G83: =IFERROR(INDEX('Get Data'!$A$8:$G$8616,MATCH(A83,'Get Data'!$A$8:$A$8616,1),7),"--") -> -- | H83: -- | I83: --
A84: 1964-05-31 | B84: 0.0142 | C84: -0.0088 | D84: 0.0188 | E84: 0.001624001 | F84: 0.0026 | G84: =IFERROR(INDEX('Get Data'!$A$8:$G$8616,MATCH(A84,'Get Data'!$A$8:$A$8616,1),7),"--") -> -- | H84: -- | I84: =IFERROR(H84-F84,"--") -> --
A85: 1964-06-30 | B85: 0.0127 | C85: -0.003 | D85: 0.0072 | E85: -0.003043475 | F85: 0.003 | G85: =IFERROR(INDEX('Get Data'!$A$8:$G$8616,MATCH(A85,'Get Data'!$A$8:$A$8616,1),7),"--") -> -- | H85: =IFERROR(G85/G84-1,"--") -> -- | I85: --
A86: 1964-07-31 | B86: 0.0174 | C86: 0.0023 | D86: 0.007 | E86: 0.007136969 | F86: 0.003 | G86: =IFERROR(INDEX('Get Data'!$A$8:$G$8616,MATCH(A86,'Get Data'!$A$8:$A$8616,1),7),"--") -> -- | H86: -- | I86: --
A87: 1964-08-31 | B87: -0.0144 | C87: 0.0009 | D87: 0.0012 | E87: -0.006749698 | F87: 0.0028 | G87: =IFERROR(INDEX('Get Data'!$A$8:$G$8616,MATCH(A87,'Get Data'!$A$8:$A$8616,1),7),"--") -> -- | H87: -- | I87: --
A88: 1964-09-30 | B88: 0.0269 | C88: -0.0052 | D88: 0.0165 | E88: -0.001689147 | F88: 0.0028 | G88: =IFERROR(INDEX('Get Data'!$A$8:$G$8616,MATCH(A88,'Get Data'!$A$8:$A$8616,1),7),"--") -> -- | H88: -- | I88: --
A89: 1964-10-31 | B89: 0.0059 | C89: 0.0045 | D89: 0.0114 | E89: -0.005131615 | F89: 0.0029 | G89: =IFERROR(INDEX('Get Data'!$A$8:$G$8616,MATCH(A89,'Get Data'!$A$8:$A$8616,1),7),"--") -> -- | H89: -- | I89: --
A90: 1964-11-30 | B90: 0 | C90: 0.006 | D90: -0.0196 | E90: 0.003235412 | F90: 0.0029 | G90: =IFERROR(INDEX('Get Data'!$A$8:$G$8616,MATCH(A90,'Get Data'!$A$8:$A$8616,1),7),"--") -> -- | H90: -- | I90: --
A91: 1964-12-31 | B91: 0.0003 | C91: -0.0024 | D91: -0.0258 | E91: 0.008661239 | F91: 0.0031 | G91: =IFERROR(INDEX('Get Data'!$A$8:$G$8616,MATCH(A91,'Get Data'!$A$8:$A$8616,1),7),"--") -> -- | H91: -- | I91: --
A92: 1965-01-31 | B92: 0.0354 | C92: 0.0267 | D92: 0.002 | E92: -0.01268931 | F92: 0.0028 | G92: =IFERROR(INDEX('Get Data'!$A$8:$G$8616,MATCH(A92,'Get Data'!$A$8:$A$8616,1),7),"--") -> -- | H92: -- | I92: --
A93: 1965-02-28 | B93: 0.0044 | C93: 0.0348 | D93: 0.0019 | E93: -0.008955036 | F93: 0.003 | G93: =IFERROR(INDEX('Get Data'!$A$8:$G$8616,MATCH(A93,'Get Data'!$A$8:$A$8616,1),7),"--") -> -- | H93: -- | I93: --
A94: 1965-03-31 | B94: -0.0134 | C94: 0.0178 | D94: 0.0107 | E94: -0.004209326 | F94: 0.0036 | G94: =IFERROR(INDEX('Get Data'!$A$8:$G$8616,MATCH(A94,'Get Data'!$A$8:$A$8616,1),7),"--") -> -- | H94: -- | I94: --
A95: 1965-04-30 | B95: 0.0311 | C95: 0.0119 | D95: 0.007 | E95: -0.008652044 | F95: 0.0031 | G95: =IFERROR(INDEX('Get Data'!$A$8:$G$8616,MATCH(A95,'Get Data'!$A$8:$A$8616,1),7),"--") -> -- | H95: -- | I95: --
A96: 1965-05-31 | B96: -0.0077 | C96: 0.0003 | D96: -0.0162 | E96: 0.0003094856 | F96: 0.0031 | G96: =IFERROR(INDEX('Get Data'!$A$8:$G$8616,MATCH(A96,'Get Data'!$A$8:$A$8616,1),7),"--") -> -- | H96: -- | I96: --
A97: 1965-06-30 | B97: -0.0551 | C97: -0.0435 | D97: 0.0058 | E97: 0.0140693 | F97: 0.0035 | G97: =IFERROR(INDEX('Get Data'!$A$8:$G$8616,MATCH(A97,'Get Data'!$A$8:$A$8616,1),7),"--") -> -- | H97: -- | I97: --
A98: 1965-07-31 | B98: 0.0143 | C98: 0.0085 | D98: 0.0222 | E98: -0.007263375 | F98: 0.0031 | G98: =IFERROR(INDEX('Get Data'!$A$8:$G$8616,MATCH(A98,'Get Data'!$A$8:$A$8616,1),7),"--") -> -- | H98: -- | I98: --
A99: 1965-08-31 | B99: 0.0273 | C99: 0.0284 | D99: -0.0107 | E99: -0.01021509 | F99: 0.0033 | G99: =IFERROR(INDEX('Get Data'!$A$8:$G$8616,MATCH(A99,'Get Data'!$A$8:$A$8616,1),7),"--") -> -- | H99: -- | I99: --
A100: 1965-09-30 | B100: 0.0286 | C100: 0.0062 | D100: -0.0011 | E100: -0.002510622 | F100: 0.0031 | G100: =IFERROR(INDEX('Get Data'!$A$8:$G$8616,MATCH(A100,'Get Data'!$A$8:$A$8616,1),7),"--") -> -- | H100: -- | I100: --
A101: 1965-10-31 | B101: 0.026 | C101: 0.0243 | D101: 0.016 | E101: -0.0008932932 | F101: 0.0031 | G101: =IFERROR(INDEX('Get Data'!$A$8:$G$8616,MATCH(A101,'Get Data'!$A$8:$A$8616,1),7),"--") -> -- | H101: -- | I101: --
A102: 1965-11-30 | B102: -0.0003 | C102: 0.0468 | D102: 0.0023 | E102: -0.01232582 | F102: 0.0035 | G102: =IFERROR(INDEX('Get Data'!$A$8:$G$8616,MATCH(A102,'Get Data'!$A$8:$A$8616,1),7),"--") -> -- | H102: -- | I102: --
A103: 1965-12-31 | B103: 0.0101 | C103: 0.0207 | D103: 0.0208 | E103: -0.01752916 | F103: 0.0033 | G103: =IFERROR(INDEX('Get Data'!$A$8:$G$8616,MATCH(A103,'Get Data'!$A$8:$A$8616,1),7),"--") -> -- | H103: -- | I103: --
A104: 1966-01-31 | B104: 0.0072 | C104: 0.0386 | D104: 0.0357 | E104: -0.004126314 | F104: 0.0038 | G104: =IFERROR(INDEX('Get Data'!$A$8:$G$8616,MATCH(A104,'Get Data'!$A$8:$A$8616,1),7),"--") -> -- | H104: -- | I104: --
A105: 1966-02-28 | B105: -0.0121 | C105: 0.0445 | D105: 0.0036 | E105: -0.02166696 | F105: 0.0035 | G105: =IFERROR(INDEX('Get Data'!$A$8:$G$8616,MATCH(A105,'Get Data'!$A$8:$A$8616,1),7),"--") -> -- | H105: -- | I105: --
A106: 1966-03-31 | B106: -0.0251 | C106: 0.0095 | D106: -0.0205 | E106: -0.001244341 | F106: 0.0038 | G106: =IFERROR(INDEX('Get Data'!$A$8:$G$8616,MATCH(A106,'Get Data'!$A$8:$A$8616,1),7),"--") -> -- | H106: -- | I106: --
A107: 1966-04-30 | B107: 0.0214 | C107: 0.0343 | D107: -0.0045 | E107: -0.008470736 | F107: 0.0034 | G107: =IFERROR(INDEX('Get Data'!$A$8:$G$8616,MATCH(A107,'Get Data'!$A$8:$A$8616,1),7),"--") -> -- | H107: -- | I107: --
A108: 1966-05-31 | B108: -0.0566 | C108: -0.0465 | D108: -0.0165 | E108: 0.02735227 | F108: 0.0041 | G108: =IFERROR(INDEX('Get Data'!$A$8:$G$8616,MATCH(A108,'Get Data'!$A$8:$A$8616,1),7),"--") -> -- | H108: -- | I108: --
A109: 1966-06-30 | B109: -0.0144 | C109: 0.0106 | D109: 0.0049 | E109: -0.0111885 | F109: 0.0038 | G109: =IFERROR(INDEX('Get Data'!$A$8:$G$8616,MATCH(A109,'Get Data'!$A$8:$A$8616,1),7),"--") -> -- | H109: -- | I109: --
A110: 1966-07-31 | B110: -0.0163 | C110: -0.0032 | D110: 0.0082 | E110: 0.008447501 | F110: 0.0035 | G110: =IFERROR(INDEX('Get Data'!$A$8:$G$8616,MATCH(A110,'Get Data'!$A$8:$A$8616,1),7),"--") -> -- | H110: -- | I110: --
A111: 1966-08-31 | B111: -0.0791 | C111: -0.0332 | D111: 0.0056 | E111: 0.0133635 | F111: 0.0041 | G111: =IFERROR(INDEX('Get Data'!$A$8:$G$8616,MATCH(A111,'Get Data'!$A$8:$A$8616,1),7),"--") -> -- | H111: -- | I111: --
A112: 1966-09-30 | B112: -0.0106 | C112: -0.011 | D112: 0.005 | E112: 0.008454949 | F112: 0.004 | G112: =IFERROR(INDEX('Get Data'!$A$8:$G$8616,MATCH(A112,'Get Data'!$A$8:$A$8616,1),7),"--") -> -- | H112: -- | I112: --
A113: 1966-10-31 | B113: 0.0386 | C113: -0.0659 | D113: 0.0281 | E113: 0.005267326 | F113: 0.0045 | G113: =IFERROR(INDEX('Get Data'!$A$8:$G$8616,MATCH(A113,'Get Data'!$A$8:$A$8616,1),7),"--") -> -- | H113: -- | I113: --
A114: 1966-11-30 | B114: 0.014 | C114: 0.0433 | D114: -0.046 | E114: -0.009673332 | F114: 0.004 | G114: =IFERROR(INDEX('Get Data'!$A$8:$G$8616,MATCH(A114,'Get Data'!$A$8:$A$8616,1),7),"--") -> -- | H114: -- | I114: --
A115: 1966-12-31 | B115: 0.0013 | C115: 0.0186 | D115: -0.0129 | E115: -0.01352211 | F115: 0.004 | G115: =IFERROR(INDEX('Get Data'!$A$8:$G$8616,MATCH(A115,'Get Data'!$A$8:$A$8616,1),7),"--") -> -- | H115: -- | I115: --
A116: 1967-01-31 | B116: 0.0815 | C116: 0.0843 | D116: 0.0203 | E116: -0.03737543 | F116: 0.0043 | G116: =IFERROR(INDEX('Get Data'!$A$8:$G$8616,MATCH(A116,'Get Data'!$A$8:$A$8616,1),7),"--") -> -- | H116: -- | I116: --
A117: 1967-02-28 | B117: 0.0078 | C117: 0.0337 | D117: -0.0226 | E117: -0.005406655 | F117: 0.0036 | G117: =IFERROR(INDEX('Get Data'!$A$8:$G$8616,MATCH(A117,'Get Data'!$A$8:$A$8616,1),7),"--") -> -- | H117: -- | I117: --
A118: 1967-03-31 | B118: 0.0399 | C118: 0.0174 | D118: 0.0019 | E118: -0.008341211 | F118: 0.0039 | G118: =IFERROR(INDEX('Get Data'!$A$8:$G$8616,MATCH(A118,'Get Data'!$A$8:$A$8616,1),7),"--") -> -- | H118: -- | I118: --
A119: 1967-04-30 | B119: 0.0389 | C119: 0.0057 | D119: -0.0254 | E119: 0.01503466 | F119: 0.0032 | G119: =IFERROR(INDEX('Get Data'!$A$8:$G$8616,MATCH(A119,'Get Data'!$A$8:$A$8616,1),7),"--") -> -- | H119: -- | I119: --
A120: 1967-05-31 | B120: -0.0433 | C120: 0.02 | D120: 0.0089 | E120: 0.007519166 | F120: 0.0033 | G120: =IFERROR(INDEX('Get Data'!$A$8:$G$8616,MATCH(A120,'Get Data'!$A$8:$A$8616,1),7),"--") -> -- | H120: -- | I120: --
A121: 1967-06-30 | B121: 0.0241 | C121: 0.06 | D121: 0.0095 | E121: -0.01089296 | F121: 0.0027 | G121: =IFERROR(INDEX('Get Data'!$A$8:$G$8616,MATCH(A121,'Get Data'!$A$8:$A$8616,1),7),"--") -> -- | H121: -- | I121: --
A122: 1967-07-31 | B122: 0.0458 | C122: 0.0309 | D122: 0.0265 | E122: -0.01378488 | F122: 0.0031 | G122: =IFERROR(INDEX('Get Data'!$A$8:$G$8616,MATCH(A122,'Get Data'!$A$8:$A$8616,1),7),"--") -> -- | H122: -- | I122: --
A123: 1967-08-31 | B123: -0.0089 | C123: 0.0048 | D123: 0.0146 | E123: 0.003076561 | F123: 0.0031 | G123: =IFERROR(INDEX('Get Data'!$A$8:$G$8616,MATCH(A123,'Get Data'!$A$8:$A$8616,1),7),"--") -> -- | H123: -- | I123: --
A124: 1967-09-30 | B124: 0.0311 | C124: 0.0309 | D124: -0.0246 | E124: 0.01108606 | F124: 0.0032 | G124: =IFERROR(INDEX('Get Data'!$A$8:$G$8616,MATCH(A124,'Get Data'!$A$8:$A$8616,1),7),"--") -> -- | H124: -- | I124: --
A125: 1967-10-31 | B125: -0.0309 | C125: 0.0142 | D125: -0.0338 | E125: 0.01176272 | F125: 0.0039 | G125: =IFERROR(INDEX('Get Data'!$A$8:$G$8616,MATCH(A125,'Get Data'!$A$8:$A$8616,1),7),"--") -> -- | H125: -- | I125: --
A126: 1967-11-30 | B126: 0.0037 | C126: 0.002 | D126: -0.0171 | E126: -0.002025627 | F126: 0.0036 | G126: =IFERROR(INDEX('Get Data'!$A$8:$G$8616,MATCH(A126,'Get Data'!$A$8:$A$8616,1),7),"--") -> -- | H126: -- | I126: --
A127: 1967-12-31 | B127: 0.0305 | C127: 0.0573 | D127: -0.0039 | E127: -0.02092976 | F127: 0.0033 | G127: =IFERROR(INDEX('Get Data'!$A$8:$G$8616,MATCH(A127,'Get Data'!$A$8:$A$8616,1),7),"--") -> -- | H127: -- | I127: --
A128: 1968-01-31 | B128: -0.0406 | C128: 0.039 | D128: 0.0477 | E128: 0.0002284994 | F128: 0.004 | G128: =IFERROR(INDEX('Get Data'!$A$8:$G$8616,MATCH(A128,'Get Data'!$A$8:$A$8616,1),7),"--") -> -- | H128: -- | I128: --
A129: 1968-02-29 | B129: -0.0375 | C129: -0.0294 | D129: 0.0115 | E129: 0.02398451 | F129: 0.0039 | G129: =IFERROR(INDEX('Get Data'!$A$8:$G$8616,MATCH(A129,'Get Data'!$A$8:$A$8616,1),7),"--") -> -- | H129: -- | I129: --
A130: 1968-03-31 | B130: 0.002 | C130: -0.0129 | D130: -0.0059 | E130: -0.00194639 | F130: 0.0038 | G130: =IFERROR(INDEX('Get Data'!$A$8:$G$8616,MATCH(A130,'Get Data'!$A$8:$A$8616,1),7),"--") -> -- | H130: -- | I130: --
A131: 1968-04-30 | B131: 0.0905 | C131: 0.0573 | D131: -0.0102 | E131: -0.02578434 | F131: 0.0043 | G131: =IFERROR(INDEX('Get Data'!$A$8:$G$8616,MATCH(A131,'Get Data'!$A$8:$A$8616,1),7),"--") -> -- | H131: -- | I131: --
A132: 1968-05-31 | B132: 0.0228 | C132: 0.0642 | D132: 0.0085 | E132: -0.001612087 | F132: 0.0045 | G132: =IFERROR(INDEX('Get Data'!$A$8:$G$8616,MATCH(A132,'Get Data'!$A$8:$A$8616,1),7),"--") -> -- | H132: -- | I132: --
A133: 1968-06-30 | B133: 0.0069 | C133: -0.0017 | D133: 0.0068 | E133: -0.004177244 | F133: 0.0043 | G133: =IFERROR(INDEX('Get Data'!$A$8:$G$8616,MATCH(A133,'Get Data'!$A$8:$A$8616,1),7),"--") -> -- | H133: -- | I133: --
A134: 1968-07-31 | B134: -0.0272 | C134: -0.0131 | D134: 0.0548 | E134: 0.02042778 | F134: 0.0048 | G134: =IFERROR(INDEX('Get Data'!$A$8:$G$8616,MATCH(A134,'Get Data'!$A$8:$A$8616,1),7),"--") -> -- | H134: -- | I134: --
A135: 1968-08-31 | B135: 0.0134 | C135: 0.0234 | D135: 0.0101 | E135: 0.0001197478 | F135: 0.0042 | G135: =IFERROR(INDEX('Get Data'!$A$8:$G$8616,MATCH(A135,'Get Data'!$A$8:$A$8616,1),7),"--") -> -- | H135: -- | I135: --
A136: 1968-09-30 | B136: 0.0403 | C136: 0.028 | D136: 0.0026 | E136: -0.02974899 | F136: 0.0043 | G136: =IFERROR(INDEX('Get Data'!$A$8:$G$8616,MATCH(A136,'Get Data'!$A$8:$A$8616,1),7),"--") -> -- | H136: -- | I136: --
A137: 1968-10-31 | B137: 0.0042 | C137: -0.0047 | D137: 0.0291 | E137: 0.0005424873 | F137: 0.0044 | G137: =IFERROR(INDEX('Get Data'!$A$8:$G$8616,MATCH(A137,'Get Data'!$A$8:$A$8616,1),7),"--") -> -- | H137: -- | I137: --
A138: 1968-11-30 | B138: 0.0543 | C138: 0.0237 | D138: -0.009 | E138: -0.01985746 | F138: 0.0042 | G138: =IFERROR(INDEX('Get Data'!$A$8:$G$8616,MATCH(A138,'Get Data'!$A$8:$A$8616,1),7),"--") -> -- | H138: -- | I138: --
A139: 1968-12-31 | B139: -0.0394 | C139: 0.0344 | D139: 0.0002 | E139: -0.001146785 | F139: 0.0043 | G139: =IFERROR(INDEX('Get Data'!$A$8:$G$8616,MATCH(A139,'Get Data'!$A$8:$A$8616,1),7),"--") -> -- | H139: -- | I139: --
A140: 1969-01-31 | B140: -0.0125 | C140: -0.0079 | D140: 0.0169 | E140: -0.006723278 | F140: 0.0053 | G140: =IFERROR(INDEX('Get Data'!$A$8:$G$8616,MATCH(A140,'Get Data'!$A$8:$A$8616,1),7),"--") -> -- | H140: -- | I140: --
A141: 1969-02-28 | B141: -0.0584 | C141: -0.0388 | D141: 0.0092 | E141: 0.04301556 | F141: 0.0046 | G141: =IFERROR(INDEX('Get Data'!$A$8:$G$8616,MATCH(A141,'Get Data'!$A$8:$A$8616,1),7),"--") -> -- | H141: -- | I141: --
A142: 1969-03-31 | B142: 0.0264 | C142: -0.0026 | D142: -0.0045 | E142: 0.001385621 | F142: 0.0046 | G142: =IFERROR(INDEX('Get Data'!$A$8:$G$8616,MATCH(A142,'Get Data'!$A$8:$A$8616,1),7),"--") -> -- | H142: -- | I142: --
A143: 1969-04-30 | B143: 0.0146 | C143: -0.0087 | D143: 0.0006 | E143: 0.007850196 | F143: 0.0053 | G143: =IFERROR(INDEX('Get Data'!$A$8:$G$8616,MATCH(A143,'Get Data'!$A$8:$A$8616,1),7),"--") -> -- | H143: -- | I143: --
A144: 1969-05-31 | B144: -0.001 | C144: -0.0027 | D144: 0.0073 | E144: 0.01383348 | F144: 0.0048 | G144: =IFERROR(INDEX('Get Data'!$A$8:$G$8616,MATCH(A144,'Get Data'!$A$8:$A$8616,1),7),"--") -> -- | H144: -- | I144: --
A145: 1969-06-30 | B145: -0.0718 | C145: -0.0539 | D145: -0.011 | E145: 0.04727679 | F145: 0.0051 | G145: =IFERROR(INDEX('Get Data'!$A$8:$G$8616,MATCH(A145,'Get Data'!$A$8:$A$8616,1),7),"--") -> -- | H145: -- | I145: --
A146: 1969-07-31 | B146: -0.07 | C146: -0.0321 | D146: 0.0141 | E146: 0.02611999 | F146: 0.0053 | G146: =IFERROR(INDEX('Get Data'!$A$8:$G$8616,MATCH(A146,'Get Data'!$A$8:$A$8616,1),7),"--") -> -- | H146: -- | I146: --
A147: 1969-08-31 | B147: 0.0468 | C147: 0.0094 | D147: -0.0385 | E147: -0.001092347 | F147: 0.005 | G147: =IFERROR(INDEX('Get Data'!$A$8:$G$8616,MATCH(A147,'Get Data'!$A$8:$A$8616,1),7),"--") -> -- | H147: -- | I147: --
A148: 1969-09-30 | B148: -0.0298 | C148: 0.0122 | D148: -0.0321 | E148: 0.04346639 | F148: 0.0062 | G148: =IFERROR(INDEX('Get Data'!$A$8:$G$8616,MATCH(A148,'Get Data'!$A$8:$A$8616,1),7),"--") -> -- | H148: -- | I148: =IFERROR(H148-F148,"--") -> --
A149: 1969-10-31 | B149: 0.0506 | C149: 0.038 | D149: -0.0322 | E149: -0.01034859 | F149: 0.006 | G149: =IFERROR(INDEX('Get Data'!$A$8:$G$8616,MATCH(A149,'Get Data'!$A$8:$A$8616,1),7),"--") -> -- | H149: =IFERROR(G149/G148-1,"--") -> -- | I149: --
A150: 1969-11-30 | B150: -0.0379 | C150: -0.0253 | D150: -0.0111 | E150: 0.02679733 | F150: 0.0052 | G150: =IFERROR(INDEX('Get Data'!$A$8:$G$8616,MATCH(A150,'Get Data'!$A$8:$A$8616,1),7),"--") -> -- | H150: -- | I150: --
A151: 1969-12-31 | B151: -0.0263 | C151: -0.0367 | D151: -0.0308 | E151: 0.04357305 | F151: 0.0064 | G151: =IFERROR(INDEX('Get Data'!$A$8:$G$8616,MATCH(A151,'Get Data'!$A$8:$A$8616,1),7),"--") -> -- | H151: -- | I151: --
A152: 1970-01-31 | B152: -0.081 | C152: 0.0291 | D152: 0.0307 | E152: 0.01515516 | F152: 0.006 | G152: =IFERROR(INDEX('Get Data'!$A$8:$G$8616,MATCH(A152,'Get Data'!$A$8:$A$8616,1),7),"--") -> -- | H152: -- | I152: --
A153: 1970-02-28 | B153: 0.0513 | C153: -0.0239 | D153: 0.0402 | E153: -0.02576117 | F153: 0.0062 | G153: =IFERROR(INDEX('Get Data'!$A$8:$G$8616,MATCH(A153,'Get Data'!$A$8:$A$8616,1),7),"--") -> -- | H153: -- | I153: --
A154: 1970-03-31 | B154: -0.0106 | C154: -0.0232 | D154: 0.0425 | E154: 0.01159857 | F154: 0.0057 | G154: =IFERROR(INDEX('Get Data'!$A$8:$G$8616,MATCH(A154,'Get Data'!$A$8:$A$8616,1),7),"--") -> -- | H154: -- | I154: --
A155: 1970-04-30 | B155: -0.11 | C155: -0.0611 | D155: 0.0639 | E155: 0.0416848 | F155: 0.005 | G155: =IFERROR(INDEX('Get Data'!$A$8:$G$8616,MATCH(A155,'Get Data'!$A$8:$A$8616,1),7),"--") -> -- | H155: -- | I155: --
A156: 1970-05-31 | B156: -0.0692 | C156: -0.0451 | D156: 0.0363 | E156: 0.008425605 | F156: 0.0053 | G156: =IFERROR(INDEX('Get Data'!$A$8:$G$8616,MATCH(A156,'Get Data'!$A$8:$A$8616,1),7),"--") -> -- | H156: -- | I156: --
A157: 1970-06-30 | B157: -0.0579 | C157: -0.0213 | D157: 0.0079 | E157: 0.04042035 | F157: 0.0058 | G157: =IFERROR(INDEX('Get Data'!$A$8:$G$8616,MATCH(A157,'Get Data'!$A$8:$A$8616,1),7),"--") -> -- | H157: -- | I157: --
A158: 1970-07-31 | B158: 0.0693 | C158: -0.0055 | D158: 0.0105 | E158: 0.005288462 | F158: 0.0052 | G158: =IFERROR(INDEX('Get Data'!$A$8:$G$8616,MATCH(A158,'Get Data'!$A$8:$A$8616,1),7),"--") -> -- | H158: -- | I158: --
A159: 1970-08-31 | B159: 0.0449 | C159: 0.0153 | D159: 0.0108 | E159: -0.02368714 | F159: 0.0053 | G159: =IFERROR(INDEX('Get Data'!$A$8:$G$8616,MATCH(A159,'Get Data'!$A$8:$A$8616,1),7),"--") -> -- | H159: -- | I159: --
A160: 1970-09-30 | B160: 0.0418 | C160: 0.0862 | D160: -0.055 | E160: -0.03822688 | F160: 0.0054 | G160: =IFERROR(INDEX('Get Data'!$A$8:$G$8616,MATCH(A160,'Get Data'!$A$8:$A$8616,1),7),"--") -> -- | H160: -- | I160: --
A161: 1970-10-31 | B161: -0.0228 | C161: -0.0422 | D161: 0.0021 | E161: 0.04510995 | F161: 0.0046 | G161: =IFERROR(INDEX('Get Data'!$A$8:$G$8616,MATCH(A161,'Get Data'!$A$8:$A$8616,1),7),"--") -> -- | H161: -- | I161: --
A162: 1970-11-30 | B162: 0.0459 | C162: -0.0407 | D162: 0.0169 | E162: 0.009961852 | F162: 0.0046 | G162: =IFERROR(INDEX('Get Data'!$A$8:$G$8616,MATCH(A162,'Get Data'!$A$8:$A$8616,1),7),"--") -> -- | H162: -- | I162: --
A163: 1970-12-31 | B163: 0.0572 | C163: 0.0293 | D163: 0.0098 | E163: -0.01083989 | F163: 0.0042 | G163: =IFERROR(INDEX('Get Data'!$A$8:$G$8616,MATCH(A163,'Get Data'!$A$8:$A$8616,1),7),"--") -> -- | H163: -- | I163: --
A164: 1971-01-31 | B164: 0.0484 | C164: 0.0744 | D164: 0.0135 | E164: -0.04204443 | F164: 0.0038 | G164: =IFERROR(INDEX('Get Data'!$A$8:$G$8616,MATCH(A164,'Get Data'!$A$8:$A$8616,1),7),"--") -> -- | H164: -- | I164: --
A165: 1971-02-28 | B165: 0.0141 | C165: 0.019 | D165: -0.0134 | E165: 0.01002153 | F165: 0.0033 | G165: =IFERROR(INDEX('Get Data'!$A$8:$G$8616,MATCH(A165,'Get Data'!$A$8:$A$8616,1),7),"--") -> -- | H165: -- | I165: --
A166: 1971-03-31 | B166: 0.0413 | C166: 0.0257 | D166: -0.0399 | E166: 0.00378744 | F166: 0.003 | G166: =IFERROR(INDEX('Get Data'!$A$8:$G$8616,MATCH(A166,'Get Data'!$A$8:$A$8616,1),7),"--") -> -- | H166: -- | I166: --
A167: 1971-04-30 | B167: 0.0315 | C167: -0.0048 | D167: 0.0074 | E167: -0.01521082 | F167: 0.0028 | G167: =IFERROR(INDEX('Get Data'!$A$8:$G$8616,MATCH(A167,'Get Data'!$A$8:$A$8616,1),7),"--") -> -- | H167: -- | I167: --
A168: 1971-05-31 | B168: -0.0398 | C168: -0.0111 | D168: -0.0137 | E168: 0.01651953 | F168: 0.0029 | G168: =IFERROR(INDEX('Get Data'!$A$8:$G$8616,MATCH(A168,'Get Data'!$A$8:$A$8616,1),7),"--") -> -- | H168: -- | I168: --
A169: 1971-06-30 | B169: -0.001 | C169: -0.0143 | D169: -0.02 | E169: 0.00535405 | F169: 0.0037 | G169: =IFERROR(INDEX('Get Data'!$A$8:$G$8616,MATCH(A169,'Get Data'!$A$8:$A$8616,1),7),"--") -> -- | H169: -- | I169: --
A170: 1971-07-31 | B170: -0.045 | C170: -0.015 | D170: 0.0017 | E170: 0.02512336 | F170: 0.004 | G170: =IFERROR(INDEX('Get Data'!$A$8:$G$8616,MATCH(A170,'Get Data'!$A$8:$A$8616,1),7),"--") -> -- | H170: -- | I170: --
A171: 1971-08-31 | B171: 0.0379 | C171: -0.0018 | D171: 0.0271 | E171: -0.02740325 | F171: 0.0047 | G171: =IFERROR(INDEX('Get Data'!$A$8:$G$8616,MATCH(A171,'Get Data'!$A$8:$A$8616,1),7),"--") -> -- | H171: -- | I171: --
A172: 1971-09-30 | B172: -0.0085 | C172: 0.0041 | D172: -0.0294 | E172: 0.0236191 | F172: 0.0037 | G172: =IFERROR(INDEX('Get Data'!$A$8:$G$8616,MATCH(A172,'Get Data'!$A$8:$A$8616,1),7),"--") -> -- | H172: -- | I172: --
A173: 1971-10-31 | B173: -0.0442 | C173: -0.0178 | D173: -0.0047 | E173: 0.0229119 | F173: 0.0037 | G173: =IFERROR(INDEX('Get Data'!$A$8:$G$8616,MATCH(A173,'Get Data'!$A$8:$A$8616,1),7),"--") -> -- | H173: -- | I173: --
A174: 1971-11-30 | B174: -0.0046 | C174: -0.0283 | D174: -0.0174 | E174: 0.02135264 | F174: 0.0037 | G174: =IFERROR(INDEX('Get Data'!$A$8:$G$8616,MATCH(A174,'Get Data'!$A$8:$A$8616,1),7),"--") -> -- | H174: -- | I174: --
A175: 1971-12-31 | B175: 0.0871 | C175: 0.0329 | D175: -0.003 | E175: -0.02095443 | F175: 0.0037 | G175: =IFERROR(INDEX('Get Data'!$A$8:$G$8616,MATCH(A175,'Get Data'!$A$8:$A$8616,1),7),"--") -> -- | H175: -- | I175: --
A176: 1972-01-31 | B176: 0.0249 | C176: 0.0611 | D176: 0.0203 | E176: -0.0186044 | F176: 0.0029 | G176: =IFERROR(INDEX('Get Data'!$A$8:$G$8616,MATCH(A176,'Get Data'!$A$8:$A$8616,1),7),"--") -> -- | H176: -- | I176: --
A177: 1972-02-29 | B177: 0.0287 | C177: 0.0138 | D177: -0.0276 | E177: 0.0103856 | F177: 0.0025 | G177: =IFERROR(INDEX('Get Data'!$A$8:$G$8616,MATCH(A177,'Get Data'!$A$8:$A$8616,1),7),"--") -> -- | H177: -- | I177: --
A178: 1972-03-31 | B178: 0.0063 | C178: -0.0027 | D178: -0.0169 | E178: 0.008652033 | F178: 0.0027 | G178: =IFERROR(INDEX('Get Data'!$A$8:$G$8616,MATCH(A178,'Get Data'!$A$8:$A$8616,1),7),"--") -> -- | H178: -- | I178: --
A179: 1972-04-30 | B179: 0.0029 | C179: 0 | D179: 0.0022 | E179: -0.005451962 | F179: 0.0029 | G179: =IFERROR(INDEX('Get Data'!$A$8:$G$8616,MATCH(A179,'Get Data'!$A$8:$A$8616,1),7),"--") -> -- | H179: -- | I179: --
A180: 1972-05-31 | B180: 0.0125 | C180: -0.0279 | D180: -0.0269 | E180: 0.03036982 | F180: 0.003 | G180: =IFERROR(INDEX('Get Data'!$A$8:$G$8616,MATCH(A180,'Get Data'!$A$8:$A$8616,1),7),"--") -> -- | H180: -- | I180: --
A181: 1972-06-30 | B181: -0.0243 | C181: 0.0033 | D181: -0.0248 | E181: 0.03103082 | F181: 0.0029 | G181: =IFERROR(INDEX('Get Data'!$A$8:$G$8616,MATCH(A181,'Get Data'!$A$8:$A$8616,1),7),"--") -> -- | H181: -- | I181: --
A182: 1972-07-31 | B182: -0.008 | C182: -0.0288 | D182: 0.0077 | E182: 0.02196325 | F182: 0.0031 | G182: =IFERROR(INDEX('Get Data'!$A$8:$G$8616,MATCH(A182,'Get Data'!$A$8:$A$8616,1),7),"--") -> -- | H182: -- | I182: --
A183: 1972-08-31 | B183: 0.0326 | C183: -0.0407 | D183: 0.0468 | E183: -0.01429005 | F183: 0.0029 | G183: =IFERROR(INDEX('Get Data'!$A$8:$G$8616,MATCH(A183,'Get Data'!$A$8:$A$8616,1),7),"--") -> -- | H183: -- | I183: --
A184: 1972-09-30 | B184: -0.0114 | C184: -0.0269 | D184: 0.0049 | E184: 0.01521512 | F184: 0.0034 | G184: =IFERROR(INDEX('Get Data'!$A$8:$G$8616,MATCH(A184,'Get Data'!$A$8:$A$8616,1),7),"--") -> -- | H184: -- | I184: --
A185: 1972-10-31 | B185: 0.0052 | C185: -0.0271 | D185: 0.0132 | E185: -1.106046e-05 | F185: 0.004 | G185: =IFERROR(INDEX('Get Data'!$A$8:$G$8616,MATCH(A185,'Get Data'!$A$8:$A$8616,1),7),"--") -> -- | H185: -- | I185: --
A186: 1972-11-30 | B186: 0.046 | C186: -0.0112 | D186: 0.0478 | E186: -0.02178808 | F186: 0.0037 | G186: =IFERROR(INDEX('Get Data'!$A$8:$G$8616,MATCH(A186,'Get Data'!$A$8:$A$8616,1),7),"--") -> -- | H186: -- | I186: --
A187: 1972-12-31 | B187: 0.0062 | C187: -0.0186 | D187: -0.0229 | E187: 0.02985438 | F187: 0.0037 | G187: =IFERROR(INDEX('Get Data'!$A$8:$G$8616,MATCH(A187,'Get Data'!$A$8:$A$8616,1),7),"--") -> -- | H187: -- | I187: --
A188: 1973-01-31 | B188: -0.0329 | C188: -0.035 | D188: 0.0268 | E188: 0.03012227 | F188: 0.0044 | G188: =IFERROR(INDEX('Get Data'!$A$8:$G$8616,MATCH(A188,'Get Data'!$A$8:$A$8616,1),7),"--") -> -- | H188: -- | I188: --
A189: 1973-02-28 | B189: -0.0485 | C189: -0.0399 | D189: 0.0168 | E189: 0.009385974 | F189: 0.0041 | G189: =IFERROR(INDEX('Get Data'!$A$8:$G$8616,MATCH(A189,'Get Data'!$A$8:$A$8616,1),7),"--") -> -- | H189: -- | I189: --
A190: 1973-03-31 | B190: -0.0129 | C190: -0.0287 | D190: 0.0284 | E190: -0.001675698 | F190: 0.0046 | G190: =IFERROR(INDEX('Get Data'!$A$8:$G$8616,MATCH(A190,'Get Data'!$A$8:$A$8616,1),7),"--") -> -- | H190: -- | I190: --
A191: 1973-04-30 | B191: -0.0568 | C191: -0.0398 | D191: 0.0566 | E191: 0.007230222 | F191: 0.0052 | G191: =IFERROR(INDEX('Get Data'!$A$8:$G$8616,MATCH(A191,'Get Data'!$A$8:$A$8616,1),7),"--") -> -- | H191: -- | I191: --
A192: 1973-05-31 | B192: -0.0294 | C192: -0.0611 | D192: 0.0019 | E192: 0.01848858 | F192: 0.0051 | G192: =IFERROR(INDEX('Get Data'!$A$8:$G$8616,MATCH(A192,'Get Data'!$A$8:$A$8616,1),7),"--") -> -- | H192: -- | I192: --
A193: 1973-06-30 | B193: -0.0156 | C193: -0.0294 | D193: 0.0143 | E193: 0.01375348 | F193: 0.0051 | G193: =IFERROR(INDEX('Get Data'!$A$8:$G$8616,MATCH(A193,'Get Data'!$A$8:$A$8616,1),7),"--") -> -- | H193: -- | I193: --
A194: 1973-07-31 | B194: 0.0504 | C194: 0.0786 | D194: -0.0518 | E194: -0.02572459 | F194: 0.0064 | G194: =IFERROR(INDEX('Get Data'!$A$8:$G$8616,MATCH(A194,'Get Data'!$A$8:$A$8616,1),7),"--") -> -- | H194: -- | I194: --
A195: 1973-08-31 | B195: -0.0384 | C195: -0.0205 | D195: 0.0118 | E195: -0.005853729 | F195: 0.007 | G195: =IFERROR(INDEX('Get Data'!$A$8:$G$8616,MATCH(A195,'Get Data'!$A$8:$A$8616,1),7),"--") -> -- | H195: -- | I195: --
A196: 1973-09-30 | B196: 0.0475 | C196: 0.0292 | D196: 0.0211 | E196: -0.04884459 | F196: 0.0068 | G196: =IFERROR(INDEX('Get Data'!$A$8:$G$8616,MATCH(A196,'Get Data'!$A$8:$A$8616,1),7),"--") -> -- | H196: -- | I196: --
A197: 1973-10-31 | B197: -0.0086 | C197: -0.0017 | D197: 0.0174 | E197: 0.00103006 | F197: 0.0065 | G197: =IFERROR(INDEX('Get Data'!$A$8:$G$8616,MATCH(A197,'Get Data'!$A$8:$A$8616,1),7),"--") -> -- | H197: -- | I197: --
A198: 1973-11-30 | B198: -0.1274 | C198: -0.0771 | D198: 0.04 | E198: 0.01923181 | F198: 0.0056 | G198: =IFERROR(INDEX('Get Data'!$A$8:$G$8616,MATCH(A198,'Get Data'!$A$8:$A$8616,1),7),"--") -> -- | H198: -- | I198: --
A199: 1973-12-31 | B199: 0.0058 | C199: -0.0533 | D199: 0.0425 | E199: -0.03014945 | F199: 0.0064 | G199: =IFERROR(INDEX('Get Data'!$A$8:$G$8616,MATCH(A199,'Get Data'!$A$8:$A$8616,1),7),"--") -> -- | H199: -- | I199: --
A200: 1974-01-31 | B200: -0.0017 | C200: 0.0987 | D200: 0.0586 | E200: -0.03591904 | F200: 0.0063 | G200: =IFERROR(INDEX('Get Data'!$A$8:$G$8616,MATCH(A200,'Get Data'!$A$8:$A$8616,1),7),"--") -> -- | H200: -- | I200: --
... 495 more rows

Sheet FF 5 factor
B1: Mkt-RF | C1: SMB | D1: HML | E1: RMW | F1: CMA | G1: RF | H1: =ticker -> FVDFX | I1: Return | J1: Excess Return | L1: Factor Model Analysis
A2: 1963-07-31 | B2: -0.0039 | C2: -0.0046 | D2: -0.0082 | E2: 0.0072 | F2: -0.0115 | G2: 0.0027 | H2: =IFERROR(INDEX('Get Data'!$A$8:$G$8616,MATCH(A2,'Get Data'!$A$8:$A$8616,1),7),"--") -> -- | I2: =IFERROR(H2/#REF!-1,"--") -> -- | J2: =IFERROR(I2-G2,"--") -> -- | L2: Asset Pricing Model | M2: Alpha (annual) | N2: Rm-rf | O2: SMB | P2: HML | Q2: RMW | R2: CMA
A3: 1963-08-31 | B3: 0.0507 | C3: -0.0085 | D3: 0.0163 | E3: 0.0042 | F3: -0.0034 | G3: 0.0025 | H3: =IFERROR(INDEX('Get Data'!$A$8:$G$8616,MATCH(A3,'Get Data'!$A$8:$A$8616,1),7),"--") -> -- | I3: =IFERROR(H3/H2-1,"--") -> -- | J3: =IFERROR(I3-G3,"--") -> -- | L3: 5 Factor (FF) | M3: =INDEX(LINEST(INDIRECT($J$622),INDIRECT($D$622),,1),1,6)*12 -> -0.0004321330416 | N3: =INDEX(LINEST(INDIRECT($J$622),INDIRECT($D$622),,1),1,5) -> 1.046158759 | O3: =INDEX(LINEST(INDIRECT($J$622),INDIRECT($D$622),,1),1,4) -> 0.04150276721 | P3: =INDEX(LINEST(INDIRECT($J$622),INDIRECT($D$622),,1),1,3) -> 0.2378211896 | Q3: =INDEX(LINEST(INDIRECT($J$622),INDIRECT($D$622),,1),1,2) -> -0.05138263345 | R3: =INDEX(LINEST(INDIRECT($J$622),INDIRECT($D$622),,1),1,1) -> -0.06154425661
A4: 1963-09-30 | B4: -0.0157 | C4: -0.005 | D4: 0.0019 | E4: -0.008 | F4: 0.0027 | G4: 0.0027 | H4: =IFERROR(INDEX('Get Data'!$A$8:$G$8616,MATCH(A4,'Get Data'!$A$8:$A$8616,1),7),"--") -> -- | I4: =IFERROR(H4/H3-1,"--") -> -- | J4: =IFERROR(I4-G4,"--") -> -- | L4: p-value | M4: =TDIST(ABS(INDEX(LINEST(INDIRECT($J$622),INDIRECT($D$622),,1),1,6)/INDEX(LINEST(INDIRECT($J$622),INDIRECT($D$622),,1),2,6)),INDEX(LINEST(INDIRECT($J$622),INDIRECT($D$622),,1),4,2),2) -> 0.9651695446 | N4: =TDIST(ABS(INDEX(LINEST(INDIRECT($J$622),INDIRECT($D$622),,1),1,5)/INDEX(LINEST(INDIRECT($J$622),INDIRECT($D$622),,1),2,5)),INDEX(LINEST(INDIRECT($J$622),INDIRECT($D$622),,1),4,2),2) -> 5.255896262e-82 | O4: =TDIST(ABS(INDEX(LINEST(INDIRECT($J$622),INDIRECT($D$622),,1),1,4)/INDEX(LINEST(INDIRECT($J$622),INDIRECT($D$622),,1),2,4)),INDEX(LINEST(INDIRECT($J$622),INDIRECT($D$622),,1),4,2),2) -> 0.305159511 | P4: =TDIST(ABS(INDEX(LINEST(INDIRECT($J$622),INDIRECT($D$622),,1),1,3)/INDEX(LINEST(INDIRECT($J$622),INDIRECT($D$622),,1),2,3)),INDEX(LINEST(INDIRECT($J$622),INDIRECT($D$622),,1),4,2),2) -> 2.853960941e-08 | Q4: =TDIST(ABS(INDEX(LINEST(INDIRECT($J$622),INDIRECT($D$622),,1),1,2)/INDEX(LINEST(INDIRECT($J$622),INDIRECT($D$622),,1),2,2)),INDEX(LINEST(INDIRECT($J$622),INDIRECT($D$622),,1),4,2),2) -> 0.3798537386 | R4: =TDIST(ABS(INDEX(LINEST(INDIRECT($J$622),INDIRECT($D$622),,1),1,1)/INDEX(LINEST(INDIRECT($J$622),INDIRECT($D$622),,1),2,1)),INDEX(LINEST(INDIRECT($J$622),INDIRECT($D$622),,1),4,2),2) -> 0.3503990423
A5: 1963-10-31 | B5: 0.0253 | C5: -0.013 | D5: -0.0011 | E5: 0.0275 | F5: -0.0224 | G5: 0.0029 | H5: =IFERROR(INDEX('Get Data'!$A$8:$G$8616,MATCH(A5,'Get Data'!$A$8:$A$8616,1),7),"--") -> -- | I5: =IFERROR(H5/H4-1,"--") -> -- | J5: =IFERROR(I5-G5,"--") -> --
A6: 1963-11-30 | B6: -0.0085 | C6: -0.0083 | D6: 0.0166 | E6: -0.0034 | F6: 0.0222 | G6: 0.0027 | H6: =IFERROR(INDEX('Get Data'!$A$8:$G$8616,MATCH(A6,'Get Data'!$A$8:$A$8616,1),7),"--") -> -- | I6: -- | J6: --
A7: 1963-12-31 | B7: 0.0183 | C7: -0.0187 | D7: -0.0011 | E7: 0.0018 | F7: -0.003 | G7: 0.0029 | H7: =IFERROR(INDEX('Get Data'!$A$8:$G$8616,MATCH(A7,'Get Data'!$A$8:$A$8616,1),7),"--") -> -- | I7: -- | J7: --
A8: 1964-01-31 | B8: 0.0224 | C8: 0.0012 | D8: 0.0164 | E8: 0.0021 | F8: 0.0146 | G8: 0.003 | H8: =IFERROR(INDEX('Get Data'!$A$8:$G$8616,MATCH(A8,'Get Data'!$A$8:$A$8616,1),7),"--") -> -- | I8: -- | J8: --
A9: 1964-02-29 | B9: 0.0154 | C9: 0.0031 | D9: 0.0283 | E9: 0.0004 | F9: 0.0086 | G9: 0.0026 | H9: =IFERROR(INDEX('Get Data'!$A$8:$G$8616,MATCH(A9,'Get Data'!$A$8:$A$8616,1),7),"--") -> -- | I9: -- | J9: --
A10: 1964-03-31 | B10: 0.0141 | C10: 0.0144 | D10: 0.0336 | E10: -0.0202 | F10: 0.0293 | G10: 0.0031 | H10: =IFERROR(INDEX('Get Data'!$A$8:$G$8616,MATCH(A10,'Get Data'!$A$8:$A$8616,1),7),"--") -> -- | I10: -- | J10: --
A11: 1964-04-30 | B11: 0.001 | C11: -0.0152 | D11: -0.0042 | E11: -0.0139 | F11: -0.0108 | G11: 0.0029 | H11: =IFERROR(INDEX('Get Data'!$A$8:$G$8616,MATCH(A11,'Get Data'!$A$8:$A$8616,1),7),"--") -> -- | I11: -- | J11: --
A12: 1964-05-31 | B12: 0.0142 | C12: -0.0069 | D12: 0.0188 | E12: -0.0028 | F12: 0.0028 | G12: 0.0026 | H12: =IFERROR(INDEX('Get Data'!$A$8:$G$8616,MATCH(A12,'Get Data'!$A$8:$A$8616,1),7),"--") -> -- | I12: -- | J12: =IFERROR(I12-G12,"--") -> --
A13: 1964-06-30 | B13: 0.0127 | C13: 0.0005 | D13: 0.0072 | E13: -0.0036 | F13: 0.0017 | G13: 0.003 | H13: =IFERROR(INDEX('Get Data'!$A$8:$G$8616,MATCH(A13,'Get Data'!$A$8:$A$8616,1),7),"--") -> -- | I13: =IFERROR(H13/H12-1,"--") -> -- | J13: --
A14: 1964-07-31 | B14: 0.0174 | C14: 0.0047 | D14: 0.007 | E14: 0.0002 | F14: 0.0191 | G14: 0.003 | H14: =IFERROR(INDEX('Get Data'!$A$8:$G$8616,MATCH(A14,'Get Data'!$A$8:$A$8616,1),7),"--") -> -- | I14: -- | J14: --
A15: 1964-08-31 | B15: -0.0144 | C15: 0.003 | D15: 0.0012 | E15: -0.0009 | F15: 0.0035 | G15: 0.0028 | H15: =IFERROR(INDEX('Get Data'!$A$8:$G$8616,MATCH(A15,'Get Data'!$A$8:$A$8616,1),7),"--") -> -- | I15: -- | J15: --
A16: 1964-09-30 | B16: 0.0269 | C16: -0.0031 | D16: 0.0165 | E16: -0.0036 | F16: 0.0059 | G16: 0.0028 | H16: =IFERROR(INDEX('Get Data'!$A$8:$G$8616,MATCH(A16,'Get Data'!$A$8:$A$8616,1),7),"--") -> -- | I16: -- | J16: --
A17: 1964-10-31 | B17: 0.0059 | C17: 0.0091 | D17: 0.0114 | E17: -0.0018 | F17: 0.0045 | G17: 0.0029 | H17: =IFERROR(INDEX('Get Data'!$A$8:$G$8616,MATCH(A17,'Get Data'!$A$8:$A$8616,1),7),"--") -> -- | I17: -- | J17: --
A18: 1964-11-30 | B18: 0 | C18: -0.0028 | D18: -0.0196 | E18: 0.0062 | F18: -0.0017 | G18: 0.0029 | H18: =IFERROR(INDEX('Get Data'!$A$8:$G$8616,MATCH(A18,'Get Data'!$A$8:$A$8616,1),7),"--") -> -- | I18: -- | J18: --
A19: 1964-12-31 | B19: 0.0003 | C19: -0.0056 | D19: -0.0258 | E19: 0.0127 | F19: -0.0164 | G19: 0.0031 | H19: =IFERROR(INDEX('Get Data'!$A$8:$G$8616,MATCH(A19,'Get Data'!$A$8:$A$8616,1),7),"--") -> -- | I19: -- | J19: --
A20: 1965-01-31 | B20: 0.0354 | C20: 0.0248 | D20: 0.002 | E20: 0.0075 | F20: 0.0015 | G20: 0.0028 | H20: =IFERROR(INDEX('Get Data'!$A$8:$G$8616,MATCH(A20,'Get Data'!$A$8:$A$8616,1),7),"--") -> -- | I20: -- | J20: --
A21: 1965-02-28 | B21: 0.0044 | C21: 0.033 | D21: 0.0019 | E21: 0.0026 | F21: -0.0067 | G21: 0.003 | H21: =IFERROR(INDEX('Get Data'!$A$8:$G$8616,MATCH(A21,'Get Data'!$A$8:$A$8616,1),7),"--") -> -- | I21: -- | J21: --
A22: 1965-03-31 | B22: -0.0134 | C22: 0.0201 | D22: 0.0107 | E22: -0.0032 | F22: 0.0074 | G22: 0.0036 | H22: =IFERROR(INDEX('Get Data'!$A$8:$G$8616,MATCH(A22,'Get Data'!$A$8:$A$8616,1),7),"--") -> -- | I22: -- | J22: --
A23: 1965-04-30 | B23: 0.0311 | C23: 0.0119 | D23: 0.007 | E23: 0.0034 | F23: -0.023 | G23: 0.0031 | H23: =IFERROR(INDEX('Get Data'!$A$8:$G$8616,MATCH(A23,'Get Data'!$A$8:$A$8616,1),7),"--") -> -- | I23: -- | J23: --
A24: 1965-05-31 | B24: -0.0077 | C24: 0.0004 | D24: -0.0162 | E24: -0.0047 | F24: 0.0074 | G24: 0.0031 | H24: =IFERROR(INDEX('Get Data'!$A$8:$G$8616,MATCH(A24,'Get Data'!$A$8:$A$8616,1),7),"--") -> -- | I24: -- | J24: --
A25: 1965-06-30 | B25: -0.0551 | C25: -0.0431 | D25: 0.0058 | E25: 0.0013 | F25: 0.0044 | G25: 0.0035 | H25: =IFERROR(INDEX('Get Data'!$A$8:$G$8616,MATCH(A25,'Get Data'!$A$8:$A$8616,1),7),"--") -> -- | I25: -- | J25: --
A26: 1965-07-31 | B26: 0.0143 | C26: 0.0104 | D26: 0.0222 | E26: -0.0145 | F26: 0 | G26: 0.0031 | H26: =IFERROR(INDEX('Get Data'!$A$8:$G$8616,MATCH(A26,'Get Data'!$A$8:$A$8616,1),7),"--") -> -- | I26: -- | J26: --
A27: 1965-08-31 | B27: 0.0273 | C27: 0.0274 | D27: -0.0107 | E27: 0.0187 | F27: -0.0072 | G27: 0.0033 | H27: =IFERROR(INDEX('Get Data'!$A$8:$G$8616,MATCH(A27,'Get Data'!$A$8:$A$8616,1),7),"--") -> -- | I27: -- | J27: --
A28: 1965-09-30 | B28: 0.0286 | C28: 0.006 | D28: -0.0011 | E28: -0.0108 | F28: 0.0084 | G28: 0.0031 | H28: =IFERROR(INDEX('Get Data'!$A$8:$G$8616,MATCH(A28,'Get Data'!$A$8:$A$8616,1),7),"--") -> -- | I28: -- | J28: --
A29: 1965-10-31 | B29: 0.026 | C29: 0.0341 | D29: 0.016 | E29: 0.0123 | F29: -0.0073 | G29: 0.0031 | H29: =IFERROR(INDEX('Get Data'!$A$8:$G$8616,MATCH(A29,'Get Data'!$A$8:$A$8616,1),7),"--") -> -- | I29: -- | J29: --
A30: 1965-11-30 | B30: -0.0003 | C30: 0.0522 | D30: 0.0023 | E30: -0.0107 | F30: -0.0089 | G30: 0.0035 | H30: =IFERROR(INDEX('Get Data'!$A$8:$G$8616,MATCH(A30,'Get Data'!$A$8:$A$8616,1),7),"--") -> -- | I30: -- | J30: --
A31: 1965-12-31 | B31: 0.0101 | C31: 0.0269 | D31: 0.0208 | E31: -0.0104 | F31: -0.005 | G31: 0.0033 | H31: =IFERROR(INDEX('Get Data'!$A$8:$G$8616,MATCH(A31,'Get Data'!$A$8:$A$8616,1),7),"--") -> -- | I31: -- | J31: --
A32: 1966-01-31 | B32: 0.0072 | C32: 0.0467 | D32: 0.0357 | E32: -0.0303 | F32: -0.0006 | G32: 0.0038 | H32: =IFERROR(INDEX('Get Data'!$A$8:$G$8616,MATCH(A32,'Get Data'!$A$8:$A$8616,1),7),"--") -> -- | I32: -- | J32: --
A33: 1966-02-28 | B33: -0.0121 | C33: 0.0479 | D33: 0.0036 | E33: 0.0011 | F33: -0.0145 | G33: 0.0035 | H33: =IFERROR(INDEX('Get Data'!$A$8:$G$8616,MATCH(A33,'Get Data'!$A$8:$A$8616,1),7),"--") -> -- | I33: -- | J33: --
A34: 1966-03-31 | B34: -0.0251 | C34: 0.0024 | D34: -0.0205 | E34: 0.0126 | F34: -0.0004 | G34: 0.0038 | H34: =IFERROR(INDEX('Get Data'!$A$8:$G$8616,MATCH(A34,'Get Data'!$A$8:$A$8616,1),7),"--") -> -- | I34: -- | J34: --
A35: 1966-04-30 | B35: 0.0214 | C35: 0.0337 | D35: -0.0045 | E35: 0.0042 | F35: -0.0092 | G35: 0.0034 | H35: =IFERROR(INDEX('Get Data'!$A$8:$G$8616,MATCH(A35,'Get Data'!$A$8:$A$8616,1),7),"--") -> -- | I35: -- | J35: --
A36: 1966-05-31 | B36: -0.0566 | C36: -0.0515 | D36: -0.0165 | E36: 0.0174 | F36: -0.015 | G36: 0.0041 | H36: =IFERROR(INDEX('Get Data'!$A$8:$G$8616,MATCH(A36,'Get Data'!$A$8:$A$8616,1),7),"--") -> -- | I36: -- | J36: --
A37: 1966-06-30 | B37: -0.0144 | C37: 0.0138 | D37: 0.0049 | E37: -0.0005 | F37: 0.0077 | G37: 0.0038 | H37: =IFERROR(INDEX('Get Data'!$A$8:$G$8616,MATCH(A37,'Get Data'!$A$8:$A$8616,1),7),"--") -> -- | I37: -- | J37: --
A38: 1966-07-31 | B38: -0.0163 | C38: -0.0035 | D38: 0.0082 | E38: -0.0054 | F38: 0.0164 | G38: 0.0035 | H38: =IFERROR(INDEX('Get Data'!$A$8:$G$8616,MATCH(A38,'Get Data'!$A$8:$A$8616,1),7),"--") -> -- | I38: -- | J38: --
A39: 1966-08-31 | B39: -0.0791 | C39: -0.0306 | D39: 0.0056 | E39: 0.002 | F39: 0.0087 | G39: 0.0041 | H39: =IFERROR(INDEX('Get Data'!$A$8:$G$8616,MATCH(A39,'Get Data'!$A$8:$A$8616,1),7),"--") -> -- | I39: -- | J39: --
A40: 1966-09-30 | B40: -0.0106 | C40: -0.0112 | D40: 0.005 | E40: -0.0123 | F40: 0.0245 | G40: 0.004 | H40: =IFERROR(INDEX('Get Data'!$A$8:$G$8616,MATCH(A40,'Get Data'!$A$8:$A$8616,1),7),"--") -> -- | I40: -- | J40: --
A41: 1966-10-31 | B41: 0.0386 | C41: -0.0646 | D41: 0.0281 | E41: -0.0359 | F41: 0.0423 | G41: 0.0045 | H41: =IFERROR(INDEX('Get Data'!$A$8:$G$8616,MATCH(A41,'Get Data'!$A$8:$A$8616,1),7),"--") -> -- | I41: -- | J41: --
A42: 1966-11-30 | B42: 0.014 | C42: 0.0349 | D42: -0.046 | E42: 0.0415 | F42: -0.067 | G42: 0.004 | H42: =IFERROR(INDEX('Get Data'!$A$8:$G$8616,MATCH(A42,'Get Data'!$A$8:$A$8616,1),7),"--") -> -- | I42: -- | J42: --
A43: 1966-12-31 | B43: 0.0013 | C43: 0.0195 | D43: -0.0129 | E43: 0.0091 | F43: -0.002 | G43: 0.004 | H43: =IFERROR(INDEX('Get Data'!$A$8:$G$8616,MATCH(A43,'Get Data'!$A$8:$A$8616,1),7),"--") -> -- | I43: -- | J43: --
A44: 1967-01-31 | B44: 0.0815 | C44: 0.0908 | D44: 0.0203 | E44: 0.0062 | F44: -0.0319 | G44: 0.0043 | H44: =IFERROR(INDEX('Get Data'!$A$8:$G$8616,MATCH(A44,'Get Data'!$A$8:$A$8616,1),7),"--") -> -- | I44: -- | J44: --
A45: 1967-02-28 | B45: 0.0078 | C45: 0.0309 | D45: -0.0226 | E45: 0.0211 | F45: -0.0099 | G45: 0.0036 | H45: =IFERROR(INDEX('Get Data'!$A$8:$G$8616,MATCH(A45,'Get Data'!$A$8:$A$8616,1),7),"--") -> -- | I45: -- | J45: --
A46: 1967-03-31 | B46: 0.0399 | C46: 0.02 | D46: 0.0019 | E46: 0.0067 | F46: -0.0163 | G46: 0.0039 | H46: =IFERROR(INDEX('Get Data'!$A$8:$G$8616,MATCH(A46,'Get Data'!$A$8:$A$8616,1),7),"--") -> -- | I46: -- | J46: --
A47: 1967-04-30 | B47: 0.0389 | C47: 0.0045 | D47: -0.0254 | E47: 0.0253 | F47: -0.0369 | G47: 0.0032 | H47: =IFERROR(INDEX('Get Data'!$A$8:$G$8616,MATCH(A47,'Get Data'!$A$8:$A$8616,1),7),"--") -> -- | I47: -- | J47: --
A48: 1967-05-31 | B48: -0.0433 | C48: 0.0236 | D48: 0.0089 | E48: -0.0188 | F48: 0.0164 | G48: 0.0033 | H48: =IFERROR(INDEX('Get Data'!$A$8:$G$8616,MATCH(A48,'Get Data'!$A$8:$A$8616,1),7),"--") -> -- | I48: -- | J48: --
A49: 1967-06-30 | B49: 0.0241 | C49: 0.0652 | D49: 0.0095 | E49: -0.0065 | F49: -0.0239 | G49: 0.0027 | H49: =IFERROR(INDEX('Get Data'!$A$8:$G$8616,MATCH(A49,'Get Data'!$A$8:$A$8616,1),7),"--") -> -- | I49: -- | J49: --
A50: 1967-07-31 | B50: 0.0458 | C50: 0.0323 | D50: 0.0265 | E50: -0.0158 | F50: 0.0272 | G50: 0.0031 | H50: =IFERROR(INDEX('Get Data'!$A$8:$G$8616,MATCH(A50,'Get Data'!$A$8:$A$8616,1),7),"--") -> -- | I50: -- | J50: --
A51: 1967-08-31 | B51: -0.0089 | C51: 0.0074 | D51: 0.0146 | E51: 0.0051 | F51: 0.014 | G51: 0.0031 | H51: =IFERROR(INDEX('Get Data'!$A$8:$G$8616,MATCH(A51,'Get Data'!$A$8:$A$8616,1),7),"--") -> -- | I51: -- | J51: --
A52: 1967-09-30 | B52: 0.0311 | C52: 0.0238 | D52: -0.0246 | E52: -0.0001 | F52: -0.0092 | G52: 0.0032 | H52: =IFERROR(INDEX('Get Data'!$A$8:$G$8616,MATCH(A52,'Get Data'!$A$8:$A$8616,1),7),"--") -> -- | I52: -- | J52: --
A53: 1967-10-31 | B53: -0.0309 | C53: 0.0049 | D53: -0.0338 | E53: 0.009 | F53: -0.0261 | G53: 0.0039 | H53: =IFERROR(INDEX('Get Data'!$A$8:$G$8616,MATCH(A53,'Get Data'!$A$8:$A$8616,1),7),"--") -> -- | I53: -- | J53: --
A54: 1967-11-30 | B54: 0.0037 | C54: 0 | D54: -0.0171 | E54: 0.0129 | F54: -0.0229 | G54: 0.0036 | H54: =IFERROR(INDEX('Get Data'!$A$8:$G$8616,MATCH(A54,'Get Data'!$A$8:$A$8616,1),7),"--") -> -- | I54: -- | J54: --
A55: 1967-12-31 | B55: 0.0305 | C55: 0.0572 | D55: -0.0039 | E55: -0.0103 | F55: 0.0008 | G55: 0.0033 | H55: =IFERROR(INDEX('Get Data'!$A$8:$G$8616,MATCH(A55,'Get Data'!$A$8:$A$8616,1),7),"--") -> -- | I55: -- | J55: --
A56: 1968-01-31 | B56: -0.0406 | C56: 0.0452 | D56: 0.0477 | E56: -0.0388 | F56: 0.0648 | G56: 0.004 | H56: =IFERROR(INDEX('Get Data'!$A$8:$G$8616,MATCH(A56,'Get Data'!$A$8:$A$8616,1),7),"--") -> -- | I56: -- | J56: --
A57: 1968-02-29 | B57: -0.0375 | C57: -0.0291 | D57: 0.0115 | E57: -0.0009 | F57: 0.0247 | G57: 0.0039 | H57: =IFERROR(INDEX('Get Data'!$A$8:$G$8616,MATCH(A57,'Get Data'!$A$8:$A$8616,1),7),"--") -> -- | I57: -- | J57: --
A58: 1968-03-31 | B58: 0.002 | C58: -0.0158 | D58: -0.0059 | E58: 0.0103 | F58: -0.0115 | G58: 0.0038 | H58: =IFERROR(INDEX('Get Data'!$A$8:$G$8616,MATCH(A58,'Get Data'!$A$8:$A$8616,1),7),"--") -> -- | I58: -- | J58: --
A59: 1968-04-30 | B59: 0.0905 | C59: 0.0619 | D59: -0.0102 | E59: 0.0204 | F59: -0.0367 | G59: 0.0043 | H59: =IFERROR(INDEX('Get Data'!$A$8:$G$8616,MATCH(A59,'Get Data'!$A$8:$A$8616,1),7),"--") -> -- | I59: -- | J59: --
A60: 1968-05-31 | B60: 0.0228 | C60: 0.0695 | D60: 0.0085 | E60: -0.0022 | F60: -0.0184 | G60: 0.0045 | H60: =IFERROR(INDEX('Get Data'!$A$8:$G$8616,MATCH(A60,'Get Data'!$A$8:$A$8616,1),7),"--") -> -- | I60: -- | J60: --
A61: 1968-06-30 | B61: 0.0069 | C61: -0.0026 | D61: 0.0068 | E61: -0.01 | F61: 0.0276 | G61: 0.0043 | H61: =IFERROR(INDEX('Get Data'!$A$8:$G$8616,MATCH(A61,'Get Data'!$A$8:$A$8616,1),7),"--") -> -- | I61: -- | J61: --
A62: 1968-07-31 | B62: -0.0272 | C62: -0.0137 | D62: 0.0548 | E62: -0.0316 | F62: 0.036 | G62: 0.0048 | H62: =IFERROR(INDEX('Get Data'!$A$8:$G$8616,MATCH(A62,'Get Data'!$A$8:$A$8616,1),7),"--") -> -- | I62: -- | J62: --
A63: 1968-08-31 | B63: 0.0134 | C63: 0.0229 | D63: 0.0101 | E63: -0.0057 | F63: 0.0042 | G63: 0.0042 | H63: =IFERROR(INDEX('Get Data'!$A$8:$G$8616,MATCH(A63,'Get Data'!$A$8:$A$8616,1),7),"--") -> -- | I63: -- | J63: --
A64: 1968-09-30 | B64: 0.0403 | C64: 0.028 | D64: 0.0026 | E64: -0.0219 | F64: 0.009 | G64: 0.0043 | H64: =IFERROR(INDEX('Get Data'!$A$8:$G$8616,MATCH(A64,'Get Data'!$A$8:$A$8616,1),7),"--") -> -- | I64: -- | J64: --
A65: 1968-10-31 | B65: 0.0042 | C65: -0.0044 | D65: 0.0291 | E65: -0.0136 | F65: 0.0277 | G65: 0.0044 | H65: =IFERROR(INDEX('Get Data'!$A$8:$G$8616,MATCH(A65,'Get Data'!$A$8:$A$8616,1),7),"--") -> -- | I65: -- | J65: --
A66: 1968-11-30 | B66: 0.0543 | C66: 0.0243 | D66: -0.009 | E66: 0.0049 | F66: -0.025 | G66: 0.0042 | H66: =IFERROR(INDEX('Get Data'!$A$8:$G$8616,MATCH(A66,'Get Data'!$A$8:$A$8616,1),7),"--") -> -- | I66: -- | J66: --
A67: 1968-12-31 | B67: -0.0394 | C67: 0.036 | D67: 0.0002 | E67: -0.0176 | F67: 0.0165 | G67: 0.0043 | H67: =IFERROR(INDEX('Get Data'!$A$8:$G$8616,MATCH(A67,'Get Data'!$A$8:$A$8616,1),7),"--") -> -- | I67: -- | J67: --
A68: 1969-01-31 | B68: -0.0125 | C68: -0.0048 | D68: 0.0169 | E68: -0.0152 | F68: 0.0137 | G68: 0.0053 | H68: =IFERROR(INDEX('Get Data'!$A$8:$G$8616,MATCH(A68,'Get Data'!$A$8:$A$8616,1),7),"--") -> -- | I68: -- | J68: --
A69: 1969-02-28 | B69: -0.0584 | C69: -0.0411 | D69: 0.0092 | E69: 0.021 | F69: 0.0079 | G69: 0.0046 | H69: =IFERROR(INDEX('Get Data'!$A$8:$G$8616,MATCH(A69,'Get Data'!$A$8:$A$8616,1),7),"--") -> -- | I69: -- | J69: --
A70: 1969-03-31 | B70: 0.0264 | C70: -0.0041 | D70: -0.0045 | E70: -0.014 | F70: -0.0042 | G70: 0.0046 | H70: =IFERROR(INDEX('Get Data'!$A$8:$G$8616,MATCH(A70,'Get Data'!$A$8:$A$8616,1),7),"--") -> -- | I70: -- | J70: --
A71: 1969-04-30 | B71: 0.0146 | C71: -0.0081 | D71: 0.0006 | E71: 0.0033 | F71: 0.0011 | G71: 0.0053 | H71: =IFERROR(INDEX('Get Data'!$A$8:$G$8616,MATCH(A71,'Get Data'!$A$8:$A$8616,1),7),"--") -> -- | I71: -- | J71: --
A72: 1969-05-31 | B72: -0.001 | C72: -0.0018 | D72: 0.0073 | E72: -0.0102 | F72: 0.0151 | G72: 0.0048 | H72: =IFERROR(INDEX('Get Data'!$A$8:$G$8616,MATCH(A72,'Get Data'!$A$8:$A$8616,1),7),"--") -> -- | I72: -- | J72: --
A73: 1969-06-30 | B73: -0.0718 | C73: -0.0547 | D73: -0.011 | E73: 0.0423 | F73: -0.0153 | G73: 0.0051 | H73: =IFERROR(INDEX('Get Data'!$A$8:$G$8616,MATCH(A73,'Get Data'!$A$8:$A$8616,1),7),"--") -> -- | I73: -- | J73: --
A74: 1969-07-31 | B74: -0.07 | C74: -0.0336 | D74: 0.0141 | E74: 0.0133 | F74: 0.0196 | G74: 0.0053 | H74: =IFERROR(INDEX('Get Data'!$A$8:$G$8616,MATCH(A74,'Get Data'!$A$8:$A$8616,1),7),"--") -> -- | I74: -- | J74: --
A75: 1969-08-31 | B75: 0.0468 | C75: 0.007 | D75: -0.0385 | E75: 0.012 | F75: -0.0407 | G75: 0.005 | H75: =IFERROR(INDEX('Get Data'!$A$8:$G$8616,MATCH(A75,'Get Data'!$A$8:$A$8616,1),7),"--") -> -- | I75: -- | J75: --
A76: 1969-09-30 | B76: -0.0298 | C76: 0.0131 | D76: -0.0321 | E76: 0.0332 | F76: -0.0088 | G76: 0.0062 | H76: =IFERROR(INDEX('Get Data'!$A$8:$G$8616,MATCH(A76,'Get Data'!$A$8:$A$8616,1),7),"--") -> -- | I76: -- | J76: =IFERROR(I76-G76,"--") -> --
A77: 1969-10-31 | B77: 0.0506 | C77: 0.0387 | D77: -0.0322 | E77: -0.0016 | F77: -0.0202 | G77: 0.006 | H77: =IFERROR(INDEX('Get Data'!$A$8:$G$8616,MATCH(A77,'Get Data'!$A$8:$A$8616,1),7),"--") -> -- | I77: =IFERROR(H77/H76-1,"--") -> -- | J77: --
A78: 1969-11-30 | B78: -0.0379 | C78: -0.0241 | D78: -0.0111 | E78: 0.0131 | F78: 0.0031 | G78: 0.0052 | H78: =IFERROR(INDEX('Get Data'!$A$8:$G$8616,MATCH(A78,'Get Data'!$A$8:$A$8616,1),7),"--") -> -- | I78: -- | J78: --
A79: 1969-12-31 | B79: -0.0263 | C79: -0.037 | D79: -0.0308 | E79: 0.0212 | F79: -0.0208 | G79: 0.0064 | H79: =IFERROR(INDEX('Get Data'!$A$8:$G$8616,MATCH(A79,'Get Data'!$A$8:$A$8616,1),7),"--") -> -- | I79: -- | J79: --
A80: 1970-01-31 | B80: -0.081 | C80: 0.0309 | D80: 0.0307 | E80: -0.0197 | F80: 0.0388 | G80: 0.006 | H80: =IFERROR(INDEX('Get Data'!$A$8:$G$8616,MATCH(A80,'Get Data'!$A$8:$A$8616,1),7),"--") -> -- | I80: -- | J80: --
A81: 1970-02-28 | B81: 0.0513 | C81: -0.0257 | D81: 0.0402 | E81: -0.0215 | F81: 0.0302 | G81: 0.0062 | H81: =IFERROR(INDEX('Get Data'!$A$8:$G$8616,MATCH(A81,'Get Data'!$A$8:$A$8616,1),7),"--") -> -- | I81: -- | J81: --
A82: 1970-03-31 | B82: -0.0106 | C82: -0.0243 | D82: 0.0425 | E82: -0.0107 | F82: 0.0443 | G82: 0.0057 | H82: =IFERROR(INDEX('Get Data'!$A$8:$G$8616,MATCH(A82,'Get Data'!$A$8:$A$8616,1),7),"--") -> -- | I82: -- | J82: --
A83: 1970-04-30 | B83: -0.11 | C83: -0.0629 | D83: 0.0639 | E83: -0.0098 | F83: 0.0589 | G83: 0.005 | H83: =IFERROR(INDEX('Get Data'!$A$8:$G$8616,MATCH(A83,'Get Data'!$A$8:$A$8616,1),7),"--") -> -- | I83: -- | J83: --
A84: 1970-05-31 | B84: -0.0692 | C84: -0.0441 | D84: 0.0363 | E84: -0.0138 | F84: 0.0363 | G84: 0.0053 | H84: =IFERROR(INDEX('Get Data'!$A$8:$G$8616,MATCH(A84,'Get Data'!$A$8:$A$8616,1),7),"--") -> -- | I84: -- | J84: --
A85: 1970-06-30 | B85: -0.0579 | C85: -0.0215 | D85: 0.0079 | E85: 0.0001 | F85: 0.0284 | G85: 0.0058 | H85: =IFERROR(INDEX('Get Data'!$A$8:$G$8616,MATCH(A85,'Get Data'!$A$8:$A$8616,1),7),"--") -> -- | I85: -- | J85: --
A86: 1970-07-31 | B86: 0.0693 | C86: -0.0068 | D86: 0.0105 | E86: -0.0014 | F86: 0.0204 | G86: 0.0052 | H86: =IFERROR(INDEX('Get Data'!$A$8:$G$8616,MATCH(A86,'Get Data'!$A$8:$A$8616,1),7),"--") -> -- | I86: -- | J86: --
A87: 1970-08-31 | B87: 0.0449 | C87: 0.0154 | D87: 0.0108 | E87: 0.0066 | F87: -0.0014 | G87: 0.0053 | H87: =IFERROR(INDEX('Get Data'!$A$8:$G$8616,MATCH(A87,'Get Data'!$A$8:$A$8616,1),7),"--") -> -- | I87: -- | J87: --
A88: 1970-09-30 | B88: 0.0418 | C88: 0.0849 | D88: -0.055 | E88: 0.0038 | F88: -0.0592 | G88: 0.0054 | H88: =IFERROR(INDEX('Get Data'!$A$8:$G$8616,MATCH(A88,'Get Data'!$A$8:$A$8616,1),7),"--") -> -- | I88: -- | J88: --
A89: 1970-10-31 | B89: -0.0228 | C89: -0.0447 | D89: 0.0021 | E89: 0.0188 | F89: 0.0242 | G89: 0.0046 | H89: =IFERROR(INDEX('Get Data'!$A$8:$G$8616,MATCH(A89,'Get Data'!$A$8:$A$8616,1),7),"--") -> -- | I89: -- | J89: --
A90: 1970-11-30 | B90: 0.0459 | C90: -0.0401 | D90: 0.0169 | E90: 0.0169 | F90: 0.0157 | G90: 0.0046 | H90: =IFERROR(INDEX('Get Data'!$A$8:$G$8616,MATCH(A90,'Get Data'!$A$8:$A$8616,1),7),"--") -> -- | I90: -- | J90: --
A91: 1970-12-31 | B91: 0.0572 | C91: 0.0299 | D91: 0.0098 | E91: 0.0008 | F91: 0.003 | G91: 0.0042 | H91: =IFERROR(INDEX('Get Data'!$A$8:$G$8616,MATCH(A91,'Get Data'!$A$8:$A$8616,1),7),"--") -> -- | I91: -- | J91: --
A92: 1971-01-31 | B92: 0.0484 | C92: 0.0757 | D92: 0.0135 | E92: -0.0203 | F92: -0.0017 | G92: 0.0038 | H92: =IFERROR(INDEX('Get Data'!$A$8:$G$8616,MATCH(A92,'Get Data'!$A$8:$A$8616,1),7),"--") -> -- | I92: -- | J92: --
A93: 1971-02-28 | B93: 0.0141 | C93: 0.0204 | D93: -0.0134 | E93: 0.0054 | F93: -0.0076 | G93: 0.0033 | H93: =IFERROR(INDEX('Get Data'!$A$8:$G$8616,MATCH(A93,'Get Data'!$A$8:$A$8616,1),7),"--") -> -- | I93: -- | J93: --
A94: 1971-03-31 | B94: 0.0413 | C94: 0.0216 | D94: -0.0399 | E94: 0.0201 | F94: -0.0275 | G94: 0.003 | H94: =IFERROR(INDEX('Get Data'!$A$8:$G$8616,MATCH(A94,'Get Data'!$A$8:$A$8616,1),7),"--") -> -- | I94: -- | J94: --
A95: 1971-04-30 | B95: 0.0315 | C95: -0.0036 | D95: 0.0074 | E95: -0.0141 | F95: 0.0075 | G95: 0.0028 | H95: =IFERROR(INDEX('Get Data'!$A$8:$G$8616,MATCH(A95,'Get Data'!$A$8:$A$8616,1),7),"--") -> -- | I95: -- | J95: --
A96: 1971-05-31 | B96: -0.0398 | C96: -0.0118 | D96: -0.0137 | E96: 0.0129 | F96: 0.0028 | G96: 0.0029 | H96: =IFERROR(INDEX('Get Data'!$A$8:$G$8616,MATCH(A96,'Get Data'!$A$8:$A$8616,1),7),"--") -> -- | I96: -- | J96: --
A97: 1971-06-30 | B97: -0.001 | C97: -0.0145 | D97: -0.02 | E97: 0.0149 | F97: -0.0174 | G97: 0.0037 | H97: =IFERROR(INDEX('Get Data'!$A$8:$G$8616,MATCH(A97,'Get Data'!$A$8:$A$8616,1),7),"--") -> -- | I97: -- | J97: --
A98: 1971-07-31 | B98: -0.045 | C98: -0.014 | D98: 0.0017 | E98: 0.0051 | F98: 0.0162 | G98: 0.004 | H98: =IFERROR(INDEX('Get Data'!$A$8:$G$8616,MATCH(A98,'Get Data'!$A$8:$A$8616,1),7),"--") -> -- | I98: -- | J98: --
A99: 1971-08-31 | B99: 0.0379 | C99: -0.0019 | D99: 0.0271 | E99: -0.0037 | F99: 0.0262 | G99: 0.0047 | H99: =IFERROR(INDEX('Get Data'!$A$8:$G$8616,MATCH(A99,'Get Data'!$A$8:$A$8616,1),7),"--") -> -- | I99: -- | J99: --
A100: 1971-09-30 | B100: -0.0085 | C100: 0.0021 | D100: -0.0294 | E100: 0.0253 | F100: -0.0154 | G100: 0.0037 | H100: =IFERROR(INDEX('Get Data'!$A$8:$G$8616,MATCH(A100,'Get Data'!$A$8:$A$8616,1),7),"--") -> -- | I100: -- | J100: --
A101: 1971-10-31 | B101: -0.0442 | C101: -0.0164 | D101: -0.0047 | E101: 0.0135 | F101: -0.0127 | G101: 0.0037 | H101: =IFERROR(INDEX('Get Data'!$A$8:$G$8616,MATCH(A101,'Get Data'!$A$8:$A$8616,1),7),"--") -> -- | I101: -- | J101: --
A102: 1971-11-30 | B102: -0.0046 | C102: -0.029 | D102: -0.0174 | E102: 0.0225 | F102: -0.004 | G102: 0.0037 | H102: =IFERROR(INDEX('Get Data'!$A$8:$G$8616,MATCH(A102,'Get Data'!$A$8:$A$8616,1),7),"--") -> -- | I102: -- | J102: --
A103: 1971-12-31 | B103: 0.0871 | C103: 0.0324 | D103: -0.003 | E103: -0.0045 | F103: -0.0178 | G103: 0.0037 | H103: =IFERROR(INDEX('Get Data'!$A$8:$G$8616,MATCH(A103,'Get Data'!$A$8:$A$8616,1),7),"--") -> -- | I103: -- | J103: --
A104: 1972-01-31 | B104: 0.0249 | C104: 0.0631 | D104: 0.0203 | E104: -0.018 | F104: 0.003 | G104: 0.0029 | H104: =IFERROR(INDEX('Get Data'!$A$8:$G$8616,MATCH(A104,'Get Data'!$A$8:$A$8616,1),7),"--") -> -- | I104: -- | J104: --
A105: 1972-02-29 | B105: 0.0287 | C105: 0.0098 | D105: -0.0276 | E105: 0.02 | F105: -0.0055 | G105: 0.0025 | H105: =IFERROR(INDEX('Get Data'!$A$8:$G$8616,MATCH(A105,'Get Data'!$A$8:$A$8616,1),7),"--") -> -- | I105: -- | J105: --
A106: 1972-03-31 | B106: 0.0063 | C106: -0.0048 | D106: -0.0169 | E106: 0.0149 | F106: -0.0018 | G106: 0.0027 | H106: =IFERROR(INDEX('Get Data'!$A$8:$G$8616,MATCH(A106,'Get Data'!$A$8:$A$8616,1),7),"--") -> -- | I106: -- | J106: --
A107: 1972-04-30 | B107: 0.0029 | C107: 0.0014 | D107: 0.0022 | E107: -0.0046 | F107: -0.009 | G107: 0.0029 | H107: =IFERROR(INDEX('Get Data'!$A$8:$G$8616,MATCH(A107,'Get Data'!$A$8:$A$8616,1),7),"--") -> -- | I107: -- | J107: --
A108: 1972-05-31 | B108: 0.0125 | C108: -0.0314 | D108: -0.0269 | E108: 0.0239 | F108: -0.0185 | G108: 0.003 | H108: =IFERROR(INDEX('Get Data'!$A$8:$G$8616,MATCH(A108,'Get Data'!$A$8:$A$8616,1),7),"--") -> -- | I108: -- | J108: --
A109: 1972-06-30 | B109: -0.0243 | C109: -0.0036 | D109: -0.0248 | E109: 0.0173 | F109: -0.0035 | G109: 0.0029 | H109: =IFERROR(INDEX('Get Data'!$A$8:$G$8616,MATCH(A109,'Get Data'!$A$8:$A$8616,1),7),"--") -> -- | I109: -- | J109: --
A110: 1972-07-31 | B110: -0.008 | C110: -0.0274 | D110: 0.0077 | E110: 0.0104 | F110: -0.0059 | G110: 0.0031 | H110: =IFERROR(INDEX('Get Data'!$A$8:$G$8616,MATCH(A110,'Get Data'!$A$8:$A$8616,1),7),"--") -> -- | I110: -- | J110: --
A111: 1972-08-31 | B111: 0.0326 | C111: -0.0353 | D111: 0.0468 | E111: -0.0218 | F111: 0.0296 | G111: 0.0029 | H111: =IFERROR(INDEX('Get Data'!$A$8:$G$8616,MATCH(A111,'Get Data'!$A$8:$A$8616,1),7),"--") -> -- | I111: -- | J111: --
A112: 1972-09-30 | B112: -0.0114 | C112: -0.0227 | D112: 0.0049 | E112: 0.0164 | F112: -0.0196 | G112: 0.0034 | H112: =IFERROR(INDEX('Get Data'!$A$8:$G$8616,MATCH(A112,'Get Data'!$A$8:$A$8616,1),7),"--") -> -- | I112: -- | J112: --
A113: 1972-10-31 | B113: 0.0052 | C113: -0.0251 | D113: 0.0132 | E113: -0.0006 | F113: -0.0004 | G113: 0.004 | H113: =IFERROR(INDEX('Get Data'!$A$8:$G$8616,MATCH(A113,'Get Data'!$A$8:$A$8616,1),7),"--") -> -- | I113: -- | J113: --
A114: 1972-11-30 | B114: 0.046 | C114: -0.0055 | D114: 0.0478 | E114: -0.02 | F114: 0.0334 | G114: 0.0037 | H114: =IFERROR(INDEX('Get Data'!$A$8:$G$8616,MATCH(A114,'Get Data'!$A$8:$A$8616,1),7),"--") -> -- | I114: -- | J114: --
A115: 1972-12-31 | B115: 0.0062 | C115: -0.0182 | D115: -0.0229 | E115: 0.0245 | F115: -0.022 | G115: 0.0037 | H115: =IFERROR(INDEX('Get Data'!$A$8:$G$8616,MATCH(A115,'Get Data'!$A$8:$A$8616,1),7),"--") -> -- | I115: -- | J115: --
A116: 1973-01-31 | B116: -0.0329 | C116: -0.0281 | D116: 0.0268 | E116: 0.0046 | F116: 0.0095 | G116: 0.0044 | H116: =IFERROR(INDEX('Get Data'!$A$8:$G$8616,MATCH(A116,'Get Data'!$A$8:$A$8616,1),7),"--") -> -- | I116: -- | J116: --
A117: 1973-02-28 | B117: -0.0485 | C117: -0.0403 | D117: 0.0168 | E117: -0.0052 | F117: 0.0002 | G117: 0.0041 | H117: =IFERROR(INDEX('Get Data'!$A$8:$G$8616,MATCH(A117,'Get Data'!$A$8:$A$8616,1),7),"--") -> -- | I117: -- | J117: --
A118: 1973-03-31 | B118: -0.0129 | C118: -0.0236 | D118: 0.0284 | E118: -0.0103 | F118: 0.0073 | G118: 0.0046 | H118: =IFERROR(INDEX('Get Data'!$A$8:$G$8616,MATCH(A118,'Get Data'!$A$8:$A$8616,1),7),"--") -> -- | I118: -- | J118: --
A119: 1973-04-30 | B119: -0.0568 | C119: -0.0301 | D119: 0.0566 | E119: -0.0174 | F119: 0.0273 | G119: 0.0052 | H119: =IFERROR(INDEX('Get Data'!$A$8:$G$8616,MATCH(A119,'Get Data'!$A$8:$A$8616,1),7),"--") -> -- | I119: -- | J119: --
A120: 1973-05-31 | B120: -0.0294 | C120: -0.0599 | D120: 0.0019 | E120: 0.0191 | F120: -0.0177 | G120: 0.0051 | H120: =IFERROR(INDEX('Get Data'!$A$8:$G$8616,MATCH(A120,'Get Data'!$A$8:$A$8616,1),7),"--") -> -- | I120: -- | J120: --
A121: 1973-06-30 | B121: -0.0156 | C121: -0.0255 | D121: 0.0143 | E121: -0.0033 | F121: 0.0023 | G121: 0.0051 | H121: =IFERROR(INDEX('Get Data'!$A$8:$G$8616,MATCH(A121,'Get Data'!$A$8:$A$8616,1),7),"--") -> -- | I121: -- | J121: --
A122: 1973-07-31 | B122: 0.0504 | C122: 0.0725 | D122: -0.0518 | E122: 0.0001 | F122: -0.0344 | G122: 0.0064 | H122: =IFERROR(INDEX('Get Data'!$A$8:$G$8616,MATCH(A122,'Get Data'!$A$8:$A$8616,1),7),"--") -> -- | I122: -- | J122: --
A123: 1973-08-31 | B123: -0.0384 | C123: -0.0177 | D123: 0.0118 | E123: -0.0145 | F123: 0.0124 | G123: 0.007 | H123: =IFERROR(INDEX('Get Data'!$A$8:$G$8616,MATCH(A123,'Get Data'!$A$8:$A$8616,1),7),"--") -> -- | I123: -- | J123: --
A124: 1973-09-30 | B124: 0.0475 | C124: 0.0354 | D124: 0.0211 | E124: -0.0222 | F124: 0.0187 | G124: 0.0068 | H124: =IFERROR(INDEX('Get Data'!$A$8:$G$8616,MATCH(A124,'Get Data'!$A$8:$A$8616,1),7),"--") -> -- | I124: -- | J124: --
A125: 1973-10-31 | B125: -0.0086 | C125: -0.0021 | D125: 0.0174 | E125: -0.0194 | F125: 0.0266 | G125: 0.0065 | H125: =IFERROR(INDEX('Get Data'!$A$8:$G$8616,MATCH(A125,'Get Data'!$A$8:$A$8616,1),7),"--") -> -- | I125: -- | J125: --
A126: 1973-11-30 | B126: -0.1274 | C126: -0.073 | D126: 0.04 | E126: -0.0282 | F126: 0.0151 | G126: 0.0056 | H126: =IFERROR(INDEX('Get Data'!$A$8:$G$8616,MATCH(A126,'Get Data'!$A$8:$A$8616,1),7),"--") -> -- | I126: -- | J126: --
A127: 1973-12-31 | B127: 0.0058 | C127: -0.0463 | D127: 0.0425 | E127: -0.0302 | F127: 0.0238 | G127: 0.0064 | H127: =IFERROR(INDEX('Get Data'!$A$8:$G$8616,MATCH(A127,'Get Data'!$A$8:$A$8616,1),7),"--") -> -- | I127: -- | J127: --
A128: 1974-01-31 | B128: -0.0017 | C128: 0.1051 | D128: 0.0586 | E128: -0.0298 | F128: 0.0439 | G128: 0.0063 | H128: =IFERROR(INDEX('Get Data'!$A$8:$G$8616,MATCH(A128,'Get Data'!$A$8:$A$8616,1),7),"--") -> -- | I128: -- | J128: --
A129: 1974-02-28 | B129: -0.0048 | C129: 0.0016 | D129: 0.0255 | E129: -0.0197 | F129: 0.0268 | G129: 0.0058 | H129: =IFERROR(INDEX('Get Data'!$A$8:$G$8616,MATCH(A129,'Get Data'!$A$8:$A$8616,1),7),"--") -> -- | I129: -- | J129: --
A130: 1974-03-31 | B130: -0.0281 | C130: 0.0261 | D130: -0.0009 | E130: 0.0295 | F130: 0.0038 | G130: 0.0056 | H130: =IFERROR(INDEX('Get Data'!$A$8:$G$8616,MATCH(A130,'Get Data'!$A$8:$A$8616,1),7),"--") -> -- | I130: -- | J130: --
A131: 1974-04-30 | B131: -0.0529 | C131: -0.0063 | D131: 0.0101 | E131: 0.0281 | F131: 0.0179 | G131: 0.0075 | H131: =IFERROR(INDEX('Get Data'!$A$8:$G$8616,MATCH(A131,'Get Data'!$A$8:$A$8616,1),7),"--") -> -- | I131: -- | J131: --
A132: 1974-05-31 | B132: -0.0467 | C132: -0.0321 | D132: -0.0207 | E132: 0.0506 | F132: -0.001 | G132: 0.0075 | H132: =IFERROR(INDEX('Get Data'!$A$8:$G$8616,MATCH(A132,'Get Data'!$A$8:$A$8616,1),7),"--") -> -- | I132: -- | J132: --
A133: 1974-06-30 | B133: -0.0283 | C133: 0.0002 | D133: 0.0079 | E133: 0.0067 | F133: 0.0315 | G133: 0.006 | H133: =IFERROR(INDEX('Get Data'!$A$8:$G$8616,MATCH(A133,'Get Data'!$A$8:$A$8616,1),7),"--") -> -- | I133: -- | J133: --
A134: 1974-07-31 | B134: -0.0805 | C134: 0.0198 | D134: 0.0521 | E134: -0.0324 | F134: 0.0456 | G134: 0.007 | H134: =IFERROR(INDEX('Get Data'!$A$8:$G$8616,MATCH(A134,'Get Data'!$A$8:$A$8616,1),7),"--") -> -- | I134: -- | J134: --
A135: 1974-08-31 | B135: -0.0935 | C135: 0.0031 | D135: 0.0257 | E135: -0.0012 | F135: 0.0255 | G135: 0.006 | H135: =IFERROR(INDEX('Get Data'!$A$8:$G$8616,MATCH(A135,'Get Data'!$A$8:$A$8616,1),7),"--") -> -- | I135: -- | J135: --
A136: 1974-09-30 | B136: -0.1177 | C136: 0.0146 | D136: 0.0552 | E136: -0.044 | F136: 0.0591 | G136: 0.0081 | H136: =IFERROR(INDEX('Get Data'!$A$8:$G$8616,MATCH(A136,'Get Data'!$A$8:$A$8616,1),7),"--") -> -- | I136: -- | J136: --
A137: 1974-10-31 | B137: 0.161 | C137: -0.0685 | D137: -0.0972 | E137: 0.0002 | F137: -0.0294 | G137: 0.0051 | H137: =IFERROR(INDEX('Get Data'!$A$8:$G$8616,MATCH(A137,'Get Data'!$A$8:$A$8616,1),7),"--") -> -- | I137: -- | J137: --
A138: 1974-11-30 | B138: -0.0451 | C138: -0.0145 | D138: -0.0008 | E138: -0.0339 | F138: 0.0296 | G138: 0.0054 | H138: =IFERROR(INDEX('Get Data'!$A$8:$G$8616,MATCH(A138,'Get Data'!$A$8:$A$8616,1),7),"--") -> -- | I138: -- | J138: --
A139: 1974-12-31 | B139: -0.0344 | C139: -0.0435 | D139: 0.0006 | E139: -0.0059 | F139: 0.0323 | G139: 0.007 | H139: =IFERROR(INDEX('Get Data'!$A$8:$G$8616,MATCH(A139,'Get Data'!$A$8:$A$8616,1),7),"--") -> -- | I139: -- | J139: --
A140: 1975-01-31 | B140: 0.1366 | C140: 0.128 | D140: 0.0821 | E140: -0.0095 | F140: -0.0087 | G140: 0.0058 | H140: =IFERROR(INDEX('Get Data'!$A$8:$G$8616,MATCH(A140,'Get Data'!$A$8:$A$8616,1),7),"--") -> -- | I140: -- | J140: =IFERROR(I140-G140,"--") -> --
A141: 1975-02-28 | B141: 0.0556 | C141: -0.0066 | D141: -0.0453 | E141: 0.0106 | F141: -0.0215 | G141: 0.0043 | H141: =IFERROR(INDEX('Get Data'!$A$8:$G$8616,MATCH(A141,'Get Data'!$A$8:$A$8616,1),7),"--") -> -- | I141: =IFERROR(H141/H140-1,"--") -> -- | J141: --
A142: 1975-03-31 | B142: 0.0266 | C142: 0.0401 | D142: 0.0242 | E142: 0.0135 | F142: -0.0125 | G142: 0.0041 | H142: =IFERROR(INDEX('Get Data'!$A$8:$G$8616,MATCH(A142,'Get Data'!$A$8:$A$8616,1),7),"--") -> -- | I142: -- | J142: --
A143: 1975-04-30 | B143: 0.0423 | C143: -0.0056 | D143: -0.0116 | E143: 0.0148 | F143: -0.0135 | G143: 0.0044 | H143: =IFERROR(INDEX('Get Data'!$A$8:$G$8616,MATCH(A143,'Get Data'!$A$8:$A$8616,1),7),"--") -> -- | I143: -- | J143: --
A144: 1975-05-31 | B144: 0.0519 | C144: 0.0289 | D144: -0.0407 | E144: -0.0099 | F144: -0.0062 | G144: 0.0044 | H144: =IFERROR(INDEX('Get Data'!$A$8:$G$8616,MATCH(A144,'Get Data'!$A$8:$A$8616,1),7),"--") -> -- | I144: -- | J144: --
A145: 1975-06-30 | B145: 0.0482 | C145: 0.0132 | D145: 0.0129 | E145: -0.029 | F145: 0.0108 | G145: 0.0041 | H145: =IFERROR(INDEX('Get Data'!$A$8:$G$8616,MATCH(A145,'Get Data'!$A$8:$A$8616,1),7),"--") -> -- | I145: -- | J145: --
A146: 1975-07-31 | B146: -0.0659 | C146: 0.0342 | D146: 0.0165 | E146: 0.0046 | F146: 0.0121 | G146: 0.0048 | H146: =IFERROR(INDEX('Get Data'!$A$8:$G$8616,MATCH(A146,'Get Data'!$A$8:$A$8616,1),7),"--") -> -- | I146: -- | J146: --
A147: 1975-08-31 | B147: -0.0285 | C147: -0.028 | D147: -0.009 | E147: 0.0106 | F147: -0.0089 | G147: 0.0048 | H147: =IFERROR(INDEX('Get Data'!$A$8:$G$8616,MATCH(A147,'Get Data'!$A$8:$A$8616,1),7),"--") -> -- | I147: -- | J147: --
A148: 1975-09-30 | B148: -0.0426 | C148: 0.0002 | D148: 0.0033 | E148: 0.0068 | F148: 0.0049 | G148: 0.0053 | H148: =IFERROR(INDEX('Get Data'!$A$8:$G$8616,MATCH(A148,'Get Data'!$A$8:$A$8616,1),7),"--") -> -- | I148: -- | J148: --
A149: 1975-10-31 | B149: 0.0531 | C149: -0.0421 | D149: 0.0029 | E149: -0.0041 | F149: 0.0227 | G149: 0.0056 | H149: =IFERROR(INDEX('Get Data'!$A$8:$G$8616,MATCH(A149,'Get Data'!$A$8:$A$8616,1),7),"--") -> -- | I149: -- | J149: --
A150: 1975-11-30 | B150: 0.0265 | C150: -0.0107 | D150: 0.0199 | E150: -0.0056 | F150: 0.0171 | G150: 0.0041 | H150: =IFERROR(INDEX('Get Data'!$A$8:$G$8616,MATCH(A150,'Get Data'!$A$8:$A$8616,1),7),"--") -> -- | I150: -- | J150: --
A151: 1975-12-31 | B151: -0.016 | C151: -0.0003 | D151: 0.0178 | E151: -0.0012 | F151: 0.0062 | G151: 0.0048 | H151: =IFERROR(INDEX('Get Data'!$A$8:$G$8616,MATCH(A151,'Get Data'!$A$8:$A$8616,1),7),"--") -> -- | I151: -- | J151: --
A152: 1976-01-31 | B152: 0.1216 | C152: 0.0634 | D152: 0.086 | E152: -0.0189 | F152: 0.0237 | G152: 0.0047 | H152: =IFERROR(INDEX('Get Data'!$A$8:$G$8616,MATCH(A152,'Get Data'!$A$8:$A$8616,1),7),"--") -> -- | I152: -- | J152: --
A153: 1976-02-29 | B153: 0.0032 | C153: 0.0797 | D153: 0.0585 | E153: -0.0271 | F153: 0.0383 | G153: 0.0034 | H153: =IFERROR(INDEX('Get Data'!$A$8:$G$8616,MATCH(A153,'Get Data'!$A$8:$A$8616,1),7),"--") -> -- | I153: -- | J153: --
A154: 1976-03-31 | B154: 0.0233 | C154: -0.0132 | D154: -0.0002 | E154: -0.0051 | F154: 0.0109 | G154: 0.004 | H154: =IFERROR(INDEX('Get Data'!$A$8:$G$8616,MATCH(A154,'Get Data'!$A$8:$A$8616,1),7),"--") -> -- | I154: -- | J154: --
A155: 1976-04-30 | B155: -0.0149 | C155: 0.0012 | D155: -0.0002 | E155: 0.0043 | F155: -0.0111 | G155: 0.0042 | H155: =IFERROR(INDEX('Get Data'!$A$8:$G$8616,MATCH(A155,'Get Data'!$A$8:$A$8616,1),7),"--") -> -- | I155: -- | J155: --
A156: 1976-05-31 | B156: -0.0135 | C156: -0.0113 | D156: -0.0131 | E156: 0.0253 | F156: -0.0141 | G156: 0.0037 | H156: =IFERROR(INDEX('Get Data'!$A$8:$G$8616,MATCH(A156,'Get Data'!$A$8:$A$8616,1),7),"--") -> -- | I156: -- | J156: --
A157: 1976-06-30 | B157: 0.0405 | C157: -0.0114 | D157: 0.0073 | E157: -0.0053 | F157: 0.0093 | G157: 0.0043 | H157: =IFERROR(INDEX('Get Data'!$A$8:$G$8616,MATCH(A157,'Get Data'!$A$8:$A$8616,1),7),"--") -> -- | I157: -- | J157: --
A158: 1976-07-31 | B158: -0.0107 | C158: 0.0061 | D158: 0.0173 | E158: -0.0111 | F158: 0.0028 | G158: 0.0047 | H158: =IFERROR(INDEX('Get Data'!$A$8:$G$8616,MATCH(A158,'Get Data'!$A$8:$A$8616,1),7),"--") -> -- | I158: -- | J158: --
A159: 1976-08-31 | B159: -0.0056 | C159: -0.0203 | D159: 0.0077 | E159: -0.0044 | F159: -0.0058 | G159: 0.0042 | H159: =IFERROR(INDEX('Get Data'!$A$8:$G$8616,MATCH(A159,'Get Data'!$A$8:$A$8616,1),7),"--") -> -- | I159: -- | J159: --
A160: 1976-09-30 | B160: 0.0206 | C160: 0.0013 | D160: -0.0028 | E160: 0.0099 | F160: -0.0112 | G160: 0.0044 | H160: =IFERROR(INDEX('Get Data'!$A$8:$G$8616,MATCH(A160,'Get Data'!$A$8:$A$8616,1),7),"--") -> -- | I160: -- | J160: --
A161: 1976-10-31 | B161: -0.0242 | C161: 0.0014 | D161: -0.0013 | E161: -0.0023 | F161: -0.0033 | G161: 0.0041 | H161: =IFERROR(INDEX('Get Data'!$A$8:$G$8616,MATCH(A161,'Get Data'!$A$8:$A$8616,1),7),"--") -> -- | I161: -- | J161: --
A162: 1976-11-30 | B162: 0.0036 | C162: 0.0271 | D162: 0.0152 | E162: -0.0122 | F162: 0.0008 | G162: 0.004 | H162: =IFERROR(INDEX('Get Data'!$A$8:$G$8616,MATCH(A162,'Get Data'!$A$8:$A$8616,1),7),"--") -> -- | I162: -- | J162: --
A163: 1976-12-31 | B163: 0.0565 | C163: 0.0362 | D163: 0.0223 | E163: -0.0044 | F163: 0.0223 | G163: 0.004 | H163: =IFERROR(INDEX('Get Data'!$A$8:$G$8616,MATCH(A163,'Get Data'!$A$8:$A$8616,1),7),"--") -> -- | I163: -- | J163: --
A164: 1977-01-31 | B164: -0.0405 | C164: 0.0592 | D164: 0.0426 | E164: -0.0045 | F164: 0.0189 | G164: 0.0036 | H164: =IFERROR(INDEX('Get Data'!$A$8:$G$8616,MATCH(A164,'Get Data'!$A$8:$A$8616,1),7),"--") -> -- | I164: -- | J164: --
A165: 1977-02-28 | B165: -0.0195 | C165: 0.0112 | D165: 0.0048 | E165: -0.0016 | F165: -0.0021 | G165: 0.0035 | H165: =IFERROR(INDEX('Get Data'!$A$8:$G$8616,MATCH(A165,'Get Data'!$A$8:$A$8616,1),7),"--") -> -- | I165: -- | J165: --
A166: 1977-03-31 | B166: -0.0137 | C166: 0.0131 | D166: 0.0104 | E166: -0.0038 | F166: -0.0012 | G166: 0.0038 | H166: =IFERROR(INDEX('Get Data'!$A$8:$G$8616,MATCH(A166,'Get Data'!$A$8:$A$8616,1),7),"--") -> -- | I166: -- | J166: --
A167: 1977-04-30 | B167: 0.0015 | C167: 0.006 | D167: 0.0345 | E167: -0.02 | F167: 0.0115 | G167: 0.0038 | H167: =IFERROR(INDEX('Get Data'!$A$8:$G$8616,MATCH(A167,'Get Data'!$A$8:$A$8616,1),7),"--") -> -- | I167: -- | J167: --
A168: 1977-05-31 | B168: -0.0146 | C168: 0.013 | D168: 0.0083 | E168: 0.0037 | F168: 0.0009 | G168: 0.0037 | H168: =IFERROR(INDEX('Get Data'!$A$8:$G$8616,MATCH(A168,'Get Data'!$A$8:$A$8616,1),7),"--") -> -- | I168: -- | J168: --
A169: 1977-06-30 | B169: 0.0471 | C169: 0.0208 | D169: -0.0064 | E169: 0.0095 | F169: -0.0123 | G169: 0.004 | H169: =IFERROR(INDEX('Get Data'!$A$8:$G$8616,MATCH(A169,'Get Data'!$A$8:$A$8616,1),7),"--") -> -- | I169: -- | J169: --
A170: 1977-07-31 | B170: -0.0169 | C170: 0.0181 | D170: -0.0061 | E170: 0.0059 | F170: 0.0004 | G170: 0.0042 | H170: =IFERROR(INDEX('Get Data'!$A$8:$G$8616,MATCH(A170,'Get Data'!$A$8:$A$8616,1),7),"--") -> -- | I170: -- | J170: --
A171: 1977-08-31 | B171: -0.0175 | C171: 0.0088 | D171: -0.0279 | E171: 0.0095 | F171: -0.0059 | G171: 0.0044 | H171: =IFERROR(INDEX('Get Data'!$A$8:$G$8616,MATCH(A171,'Get Data'!$A$8:$A$8616,1),7),"--") -> -- | I171: -- | J171: --
A172: 1977-09-30 | B172: -0.0027 | C172: 0.0154 | D172: -0.0051 | E172: 0.0113 | F172: -0.0082 | G172: 0.0043 | H172: =IFERROR(INDEX('Get Data'!$A$8:$G$8616,MATCH(A172,'Get Data'!$A$8:$A$8616,1),7),"--") -> -- | I172: -- | J172: --
A173: 1977-10-31 | B173: -0.0438 | C173: 0.0151 | D173: 0.0171 | E173: -0.0009 | F173: -0.0027 | G173: 0.0049 | H173: =IFERROR(INDEX('Get Data'!$A$8:$G$8616,MATCH(A173,'Get Data'!$A$8:$A$8616,1),7),"--") -> -- | I173: -- | J173: --
A174: 1977-11-30 | B174: 0.04 | C174: 0.0362 | D174: 0.0035 | E174: -0.0009 | F174: 0.0066 | G174: 0.005 | H174: =IFERROR(INDEX('Get Data'!$A$8:$G$8616,MATCH(A174,'Get Data'!$A$8:$A$8616,1),7),"--") -> -- | I174: -- | J174: --
A175: 1977-12-31 | B175: 0.0027 | C175: 0.0162 | D175: -0.0034 | E175: 0.0106 | F175: -0.0067 | G175: 0.0049 | H175: =IFERROR(INDEX('Get Data'!$A$8:$G$8616,MATCH(A175,'Get Data'!$A$8:$A$8616,1),7),"--") -> -- | I175: -- | J175: --
A176: 1978-01-31 | B176: -0.0601 | C176: 0.0269 | D176: 0.0329 | E176: -0.0166 | F176: 0.0152 | G176: 0.0049 | H176: =IFERROR(INDEX('Get Data'!$A$8:$G$8616,MATCH(A176,'Get Data'!$A$8:$A$8616,1),7),"--") -> -- | I176: -- | J176: --
A177: 1978-02-28 | B177: -0.0138 | C177: 0.0366 | D177: 0.008 | E177: 0.0026 | F177: 0.0104 | G177: 0.0046 | H177: =IFERROR(INDEX('Get Data'!$A$8:$G$8616,MATCH(A177,'Get Data'!$A$8:$A$8616,1),7),"--") -> -- | I177: -- | J177: --
A178: 1978-03-31 | B178: 0.0285 | C178: 0.0372 | D178: 0.0125 | E178: -0.0045 | F178: 0.0188 | G178: 0.0053 | H178: =IFERROR(INDEX('Get Data'!$A$8:$G$8616,MATCH(A178,'Get Data'!$A$8:$A$8616,1),7),"--") -> -- | I178: -- | J178: --
A179: 1978-04-30 | B179: 0.0788 | C179: -0.0032 | D179: -0.0347 | E179: 0.0247 | F179: -0.0135 | G179: 0.0054 | H179: =IFERROR(INDEX('Get Data'!$A$8:$G$8616,MATCH(A179,'Get Data'!$A$8:$A$8616,1),7),"--") -> -- | I179: -- | J179: --
A180: 1978-05-31 | B180: 0.0176 | C180: 0.0461 | D180: -0.006 | E180: 0.0036 | F180: 0.0034 | G180: 0.0051 | H180: =IFERROR(INDEX('Get Data'!$A$8:$G$8616,MATCH(A180,'Get Data'!$A$8:$A$8616,1),7),"--") -> -- | I180: -- | J180: --
A181: 1978-06-30 | B181: -0.0169 | C181: 0.016 | D181: 0.0058 | E181: -0.0138 | F181: 0 | G181: 0.0054 | H181: =IFERROR(INDEX('Get Data'!$A$8:$G$8616,MATCH(A181,'Get Data'!$A$8:$A$8616,1),7),"--") -> -- | I181: -- | J181: --
A182: 1978-07-31 | B182: 0.0511 | C182: 0.0016 | D182: -0.0111 | E182: 0.015 | F182: -0.0079 | G182: 0.0056 | H182: =IFERROR(INDEX('Get Data'!$A$8:$G$8616,MATCH(A182,'Get Data'!$A$8:$A$8616,1),7),"--") -> -- | I182: -- | J182: --
A183: 1978-08-31 | B183: 0.0375 | C183: 0.0497 | D183: -0.0048 | E183: 0.0145 | F183: 0.0039 | G183: 0.0056 | H183: =IFERROR(INDEX('Get Data'!$A$8:$G$8616,MATCH(A183,'Get Data'!$A$8:$A$8616,1),7),"--") -> -- | I183: -- | J183: --
A184: 1978-09-30 | B184: -0.0143 | C184: -0.0031 | D184: 0.0188 | E184: -0.0072 | F184: 0.0181 | G184: 0.0062 | H184: =IFERROR(INDEX('Get Data'!$A$8:$G$8616,MATCH(A184,'Get Data'!$A$8:$A$8616,1),7),"--") -> -- | I184: -- | J184: --
A185: 1978-10-31 | B185: -0.1191 | C185: -0.1008 | D185: 0.0136 | E185: 0.0016 | F185: 0.0106 | G185: 0.0068 | H185: =IFERROR(INDEX('Get Data'!$A$8:$G$8616,MATCH(A185,'Get Data'!$A$8:$A$8616,1),7),"--") -> -- | I185: -- | J185: --
A186: 1978-11-30 | B186: 0.0271 | C186: 0.0286 | D186: -0.0221 | E186: 0.0122 | F186: -0.0123 | G186: 0.007 | H186: =IFERROR(INDEX('Get Data'!$A$8:$G$8616,MATCH(A186,'Get Data'!$A$8:$A$8616,1),7),"--") -> -- | I186: -- | J186: --
A187: 1978-12-31 | B187: 0.0088 | C187: 0.0109 | D187: -0.0219 | E187: 0.02 | F187: -0.0141 | G187: 0.0078 | H187: =IFERROR(INDEX('Get Data'!$A$8:$G$8616,MATCH(A187,'Get Data'!$A$8:$A$8616,1),7),"--") -> -- | I187: -- | J187: --
A188: 1979-01-31 | B188: 0.0423 | C188: 0.0387 | D188: 0.0225 | E188: -0.0249 | F188: 0.0157 | G188: 0.0077 | H188: =IFERROR(INDEX('Get Data'!$A$8:$G$8616,MATCH(A188,'Get Data'!$A$8:$A$8616,1),7),"--") -> -- | I188: -- | J188: --
A189: 1979-02-28 | B189: -0.0356 | C189: 0.0055 | D189: 0.0118 | E189: -0.0114 | F189: 0.0102 | G189: 0.0073 | H189: =IFERROR(INDEX('Get Data'!$A$8:$G$8616,MATCH(A189,'Get Data'!$A$8:$A$8616,1),7),"--") -> -- | I189: -- | J189: --
A190: 1979-03-31 | B190: 0.0568 | C190: 0.0317 | D190: -0.0065 | E190: 0.0066 | F190: 0.0025 | G190: 0.0081 | H190: =IFERROR(INDEX('Get Data'!$A$8:$G$8616,MATCH(A190,'Get Data'!$A$8:$A$8616,1),7),"--") -> -- | I190: -- | J190: --
A191: 1979-04-30 | B191: -0.0006 | C191: 0.024 | D191: 0.0107 | E191: 0.0119 | F191: 0.0023 | G191: 0.008 | H191: =IFERROR(INDEX('Get Data'!$A$8:$G$8616,MATCH(A191,'Get Data'!$A$8:$A$8616,1),7),"--") -> -- | I191: -- | J191: --
A192: 1979-05-31 | B192: -0.0221 | C192: 0.0041 | D192: 0.0183 | E192: -0.0092 | F192: -0.0076 | G192: 0.0082 | H192: =IFERROR(INDEX('Get Data'!$A$8:$G$8616,MATCH(A192,'Get Data'!$A$8:$A$8616,1),7),"--") -> -- | I192: -- | J192: --
A193: 1979-06-30 | B193: 0.0385 | C193: 0.0097 | D193: 0.0144 | E193: -0.0173 | F193: -0.0046 | G193: 0.0081 | H193: =IFERROR(INDEX('Get Data'!$A$8:$G$8616,MATCH(A193,'Get Data'!$A$8:$A$8616,1),7),"--") -> -- | I193: -- | J193: --
A194: 1979-07-31 | B194: 0.0082 | C194: 0.0124 | D194: 0.0172 | E194: -0.0019 | F194: 0.0059 | G194: 0.0077 | H194: =IFERROR(INDEX('Get Data'!$A$8:$G$8616,MATCH(A194,'Get Data'!$A$8:$A$8616,1),7),"--") -> -- | I194: -- | J194: --
A195: 1979-08-31 | B195: 0.0553 | C195: 0.0194 | D195: -0.0152 | E195: 0.015 | F195: -0.0145 | G195: 0.0077 | H195: =IFERROR(INDEX('Get Data'!$A$8:$G$8616,MATCH(A195,'Get Data'!$A$8:$A$8616,1),7),"--") -> -- | I195: -- | J195: --
A196: 1979-09-30 | B196: -0.0082 | C196: -0.0029 | D196: -0.0092 | E196: 0.0085 | F196: 0.0055 | G196: 0.0083 | H196: =IFERROR(INDEX('Get Data'!$A$8:$G$8616,MATCH(A196,'Get Data'!$A$8:$A$8616,1),7),"--") -> -- | I196: -- | J196: --
A197: 1979-10-31 | B197: -0.081 | C197: -0.0346 | D197: -0.0186 | E197: 0.0102 | F197: 0.0026 | G197: 0.0087 | H197: =IFERROR(INDEX('Get Data'!$A$8:$G$8616,MATCH(A197,'Get Data'!$A$8:$A$8616,1),7),"--") -> -- | I197: -- | J197: --
A198: 1979-11-30 | B198: 0.0521 | C198: 0.0243 | D198: -0.0328 | E198: 0.0017 | F198: -0.0197 | G198: 0.0099 | H198: =IFERROR(INDEX('Get Data'!$A$8:$G$8616,MATCH(A198,'Get Data'!$A$8:$A$8616,1),7),"--") -> -- | I198: -- | J198: --
A199: 1979-12-31 | B199: 0.0179 | C199: 0.0433 | D199: -0.0201 | E199: -0.0062 | F199: -0.0101 | G199: 0.0095 | H199: =IFERROR(INDEX('Get Data'!$A$8:$G$8616,MATCH(A199,'Get Data'!$A$8:$A$8616,1),7),"--") -> -- | I199: -- | J199: --
A200: 1980-01-31 | B200: 0.0551 | C200: 0.019 | D200: 0.0182 | E200: -0.0184 | F200: 0.02 | G200: 0.008 | H200: =IFERROR(INDEX('Get Data'!$A$8:$G$8616,MATCH(A200,'Get Data'!$A$8:$A$8616,1),7),"--") -> -- | I200: -- | J200: --
... 423 more rows
